Workbook

Sheet 1234
K2: b2 | L2: (radians) | M2: b41 | N2: b42 | O2: -Z1x | P2: -Z1y | Q2: R1x | R2: R1y | S2: -Z2x | T2: -Z2y | U2: R2x | V2: R12y
A3: d2 | B3: 1.5 | C3: 0.9 | D3: a2 | E3: =F3*PI()/180 -> 0.1745329252 | F3: 10 | K3: 0 | L3: =K3*PI()/180 -> 0 | M3: =Burmester(B3:C3,B4:C4,B5:C5,E3,E4,E5,L3) -> 1.368348261 | N3: 5.896775921e-16 | O3: =ThreePosition_Basic2(E3,E5,B3:C3,B5:C5,L3,M3) -> -4.393523536 | P3: 9.022539227 | Q3: -2.942914628 | R3: 4.147044099 | S3: =ThreePosition_Basic2(E3,E5,B3:C3,B5:C5,L3,N3) -> -4.274906632 | T3: 8.229500464 | U3: 8475236477337089 | V3: -5450197813944790
A4: d3 | B4: 1.6 | C4: 1.5 | D4: a3 | E4: =F4*PI()/180 -> 0.3490658504 | F4: 20
A5: d4 | B5: 2 | C5: 3 | D5: a4 | E5: =F5*PI()/180 -> 1.047197551 | F5: 60
A7: b2 | C7: b41 | D7: b42 | E7: -Z1 | G7: R1 | I7: -Z2 | K7: R2
A8: 0 | B8: =A8*PI()/180 -> 0 | C8: =Burmester($B$3:$C$3,$B$4:$C$4,$B$5:$C$5,$E$3,$E$4,$E$5,B8) -> 1.368348261 | D8: 5.896775921e-16 | E8: =ThreePosition_Basic2($E$3,$E$5,$B$3:$C$3,$B$5:$C$5,B8,C8) -> -4.393523536 | F8: 9.022539227 | G8: -2.942914628 | H8: 4.147044099 | I8: =ThreePosition_Basic2($E$3,$E$5,$B$3:$C$3,$B$5:$C$5,B8,D8) -> -4.274906632 | J8: 8.229500464 | K8: 8475236477337089 | L8: -5450197813944790
A9: 0.5 | B9: =A9*PI()/180 -> 0.00872664626 | C9: =Burmester($B$3:$C$3,$B$4:$C$4,$B$5:$C$5,$E$3,$E$4,$E$5,B9) -> 1.360771504 | D9: 0.02511649765 | E9: =ThreePosition_Basic2($E$3,$E$5,$B$3:$C$3,$B$5:$C$5,B9,C9) -> -4.446458923 | F9: 9.283343804 | G9: -2.961334072 | H9: 4.179304391 | I9: =ThreePosition_Basic2($E$3,$E$5,$B$3:$C$3,$B$5:$C$5,B9,D9) -> -3.468353077 | J9: -1.984055061 | K9: -40.09053195 | L9: 215.5838541
A10: 1 | B10: 0.01745329252 | C10: =Burmester($B$3:$C$3,$B$4:$C$4,$B$5:$C$5,$E$3,$E$4,$E$5,B10) -> 1.352829008 | D10: 0.05063668062 | E10: =ThreePosition_Basic2($E$3,$E$5,$B$3:$C$3,$B$5:$C$5,B10,C10) -> -4.503479756 | F10: 9.569104513 | G10: -2.980392483 | H10: 4.213306865 | I10: =ThreePosition_Basic2($E$3,$E$5,$B$3:$C$3,$B$5:$C$5,B10,D10) -> -3.456328508 | J10: -2.094913868 | K10: -21.49934939 | L10: 107.8632984
A11: 1.5 | B11: 0.02617993878 | C11: =Burmester($B$3:$C$3,$B$4:$C$4,$B$5:$C$5,$E$3,$E$4,$E$5,B11) -> 1.344491382 | D11: 0.07659017714 | E11: =ThreePosition_Basic2($E$3,$E$5,$B$3:$C$3,$B$5:$C$5,B11,C11) -> -4.565215512 | F11: 9.883880197 | G11: -3.000142093 | H11: 4.249219783 | I11: =ThreePosition_Basic2($E$3,$E$5,$B$3:$C$3,$B$5:$C$5,B11,D11) -> -3.443010068 | J11: -2.212335729 | K11: -15.29828419 | L11: 71.91920973
A12: 2 | B12: 0.03490658504 | C12: =Burmester($B$3:$C$3,$B$4:$C$4,$B$5:$C$5,$E$3,$E$4,$E$5,B12) -> 1.335725157 | D12: 0.1030106902 | E12: =ThreePosition_Basic2($E$3,$E$5,$B$3:$C$3,$B$5:$C$5,B12,C12) -> -4.632442472 | F12: 10.23269501 | G12: -3.020642411 | H12: 4.287236881 | I12: =ThreePosition_Basic2($E$3,$E$5,$B$3:$C$3,$B$5:$C$5,B12,D12) -> -3.428254202 | J12: -2.337089152 | K12: -12.19419186 | L12: 53.91742208
A13: 2.5 | B13: 0.0436332313 | C13: =Burmester($B$3:$C$3,$B$4:$C$4,$B$5:$C$5,$E$3,$E$4,$E$5,B13) -> 1.326491962 | D13: 0.1299368242 | E13: =ThreePosition_Basic2($E$3,$E$5,$B$3:$C$3,$B$5:$C$5,B13,C13) -> -4.706130659 | F13: 10.6218497 | G13: -3.041961721 | H13: 4.327582849 | I13: =ThreePosition_Basic2($E$3,$E$5,$B$3:$C$3,$B$5:$C$5,B13,D13) -> -3.411892606 | J13: -2.47008317 | K13: -10.32838607 | L13: 43.09091265
A14: 3 | B14: 0.05235987756 | C14: =Burmester($B$3:$C$3,$B$4:$C$4,$B$5:$C$5,$E$3,$E$4,$E$5,B14) -> 1.316747469 | D14: 0.1574131408 | E14: =ThreePosition_Basic2($E$3,$E$5,$B$3:$C$3,$B$5:$C$5,B14,C14) -> -4.787510319 | F14: 11.05936314 | G14: -3.064179005 | H14: 4.37052038 | I14: =ThreePosition_Basic2($E$3,$E$5,$B$3:$C$3,$B$5:$C$5,B14,D14) -> -3.393726117 | J14: -2.61240317 | K14: -9.081247492 | L14: 35.85048296
A15: 3.5 | B15: 0.06108652382 | C15: =Burmester($B$3:$C$3,$B$4:$C$4,$B$5:$C$5,$E$3,$E$4,$E$5,B15) -> 1.306440023 | D15: 0.1854915249 | E15: =ThreePosition_Basic2($E$3,$E$5,$B$3:$C$3,$B$5:$C$5,B15,C15) -> -4.878168281 | F15: 11.55561331 | G15: -3.087386436 | H15: 4.416359387 | I15: =ThreePosition_Basic2($E$3,$E$5,$B$3:$C$3,$B$5:$C$5,B15,D15) -> -3.373516591 | J15: -2.765358751 | K15: -8.187165791 | L15: 30.65770504
A16: 4 | B16: 0.06981317008 | C16: =Burmester($B$3:$C$3,$B$4:$C$4,$B$5:$C$5,$E$3,$E$4,$E$5,B16) -> 1.295508848 | D16: 0.2142329816 | E16: =ThreePosition_Basic2($E$3,$E$5,$B$3:$C$3,$B$5:$C$5,B16,C16) -> -4.980191323 | F16: 12.12429187 | G16: -3.11169267 | H16: 4.465469221 | I16: =ThreePosition_Basic2($E$3,$E$5,$B$3:$C$3,$B$5:$C$5,B16,D16) -> -3.350975925 | J16: -2.930548783 | K16: -7.51327239 | L16: 26.74314806
A17: 4.5 | B17: 0.07853981634 | C17: =Burmester($B$3:$C$3,$B$4:$C$4,$B$5:$C$5,$E$3,$E$4,$E$5,B17) -> 1.283881643 | D17: 0.2437100416 | E17: =ThreePosition_Basic2($E$3,$E$5,$B$3:$C$3,$B$5:$C$5,B17,C17) -> -5.096385887 | F17: 12.78386912 | G17: -3.137227273 | H17: 4.518295202 | I17: =ThreePosition_Basic2($E$3,$E$5,$B$3:$C$3,$B$5:$C$5,B17,D17) -> -3.325750897 | J17: -3.109951596 | K17: -6.985681422 | L17: 23.67910812
A18: 5 | B18: 0.0872664626 | C18: =Burmester($B$3:$C$3,$B$4:$C$4,$B$5:$C$5,$E$3,$E$4,$E$5,B18) -> 1.27147129 | D18: 0.2740100491 | E18: =ThreePosition_Basic2($E$3,$E$5,$B$3:$C$3,$B$5:$C$5,B18,C18) -> -5.230626786 | F18: 13.55992151 | G18: -3.164146794 | H18: 4.575381408 | I18: =ThreePosition_Basic2($E$3,$E$5,$B$3:$C$3,$B$5:$C$5,B18,D18) -> -3.297401794 | J18: -3.306052807 | K18: -6.5599818 | L18: 21.20868394
A19: 5.5 | B19: 0.09599310886 | C19: =Burmester($B$3:$C$3,$B$4:$C$4,$B$5:$C$5,$E$3,$E$4,$E$5,B19) -> 1.258171259 | D19: 0.3052397597 | E19: =ThreePosition_Basic2($E$3,$E$5,$B$3:$C$3,$B$5:$C$5,B19,C19) -> -5.388433666 | F19: 14.4889836 | G19: -3.192643293 | H19: 4.637402893 | I19: =ThreePosition_Basic2($E$3,$E$5,$B$3:$C$3,$B$5:$C$5,B19,D19) -> -3.265371481 | J19: -3.52203121 | K19: -6.207818742 | L19: 19.16806217
A20: 6 | B20: 0.1047197551 | C20: =Burmester($B$3:$C$3,$B$4:$C$4,$B$5:$C$5,$E$3,$E$4,$E$5,B20) -> 1.243848993 | D20: 0.3375319526 | E20: =ThreePosition_Basic2($E$3,$E$5,$B$3:$C$3,$B$5:$C$5,B20,C20) -> -5.577971813 | F20: 15.62524217 | G20: -3.222956674 | H20: 4.705212479 | I20: =ThreePosition_Basic2($E$3,$E$5,$B$3:$C$3,$B$5:$C$5,B20,D20) -> -3.228939284 | J20: -3.762037255 | K20: -5.910176482 | L20: 17.44762933
A21: 6.5 | B21: 0.1134464014 | C21: =Burmester($B$3:$C$3,$B$4:$C$4,$B$5:$C$5,$E$3,$E$4,$E$5,B21) -> 1.22833609 | D21: 0.3710552505 | E21: =ThreePosition_Basic2($E$3,$E$5,$B$3:$C$3,$B$5:$C$5,B21,C21) -> -5.811896362 | F21: 17.05288316 | G21: -3.255393071 | H21: 4.779910991 | I21: =ThreePosition_Basic2($E$3,$E$5,$B$3:$C$3,$B$5:$C$5,B21,D21) -> -3.187149793 | J21: -4.031625167 | K21: -5.653749496 | L21: 15.97098707
A22: 7 | B22: 0.1221730476 | C22: =Burmester($B$3:$C$3,$B$4:$C$4,$B$5:$C$5,$E$3,$E$4,$E$5,B22) -> 1.211413144 | D22: 0.4060292812 | E22: =ThreePosition_Basic2($E$3,$E$5,$B$3:$C$3,$B$5:$C$5,B22,C22) -> -6.111012959 | F22: 18.91062049 | G22: -3.290353411 | H22: 4.862956907 | I22: =ThreePosition_Basic2($E$3,$E$5,$B$3:$C$3,$B$5:$C$5,B22,D22) -> -3.138698211 | J22: -4.338452251 | K22: -5.428850885 | L22: 14.68289136
A23: 7.5 | B23: 0.1308996939 | C23: =Burmester($B$3:$C$3,$B$4:$C$4,$B$5:$C$5,$E$3,$E$4,$E$5,B23) -> 1.192785185 | D23: 0.4427492302 | E23: =ThreePosition_Basic2($E$3,$E$5,$B$3:$C$3,$B$5:$C$5,B23,C23) -> -6.512273315 | F23: 21.44531242 | G23: -3.328379909 | H23: 4.956345956 | I23: =ThreePosition_Basic2($E$3,$E$5,$B$3:$C$3,$B$5:$C$5,B23,D23) -> -3.08173604 | J23: -4.6934702 | K23: -5.228128021 | L23: 13.5419022
A24: 8 | B24: 0.1396263402 | C24: =Burmester($B$3:$C$3,$B$4:$C$4,$B$5:$C$5,$E$3,$E$4,$E$5,B24) -> 1.172039481 | D24: 0.4816280462 | E24: =ThreePosition_Basic2($E$3,$E$5,$B$3:$C$3,$B$5:$C$5,B24,C24) -> -7.088629487 | F24: 25.14518835 | G24: -3.370236491 | H24: 5.062923531 | I24: =ThreePosition_Basic2($E$3,$E$5,$B$3:$C$3,$B$5:$C$5,B24,D24) -> -3.013519903 | J24: -5.113089331 | K24: -5.045708477 | L24: 12.51558953
A25: 8.5 | B25: 0.1483529864 | C25: =Burmester($B$3:$C$3,$B$4:$C$4,$B$5:$C$5,$E$3,$E$4,$E$5,B25) -> 1.148567134 | D25: 0.5232748385 | E25: =ThreePosition_Basic2($E$3,$E$5,$B$3:$C$3,$B$5:$C$5,B25,C25) -> -8.008232731 | F25: 31.13730883 | G25: -3.417059147 | H25: 5.18697228 | I25: =ThreePosition_Basic2($E$3,$E$5,$B$3:$C$3,$B$5:$C$5,B25,D25) -> -2.929722013 | J25: -5.623450872 | K25: -4.876549073 | L25: 11.57704571
A26: 9 | B26: 0.1570796327 | C26: =Burmester($B$3:$C$3,$B$4:$C$4,$B$5:$C$5,$E$3,$E$4,$E$5,B26) -> 1.121401345 | D26: 0.5686566188 | E26: =ThreePosition_Basic2($E$3,$E$5,$B$3:$C$3,$B$5:$C$5,B26,C26) -> -9.76998527 | F26: 42.76975248 | G26: -3.470668301 | H26: 5.335440344 | I26: =ThreePosition_Basic2($E$3,$E$5,$B$3:$C$3,$B$5:$C$5,B26,D26) -> -2.822915714 | J26: -6.269862959 | K26: -4.71578976 | L26: 10.70172402
A27: 9.5 | B27: 0.1658062789 | C27: =Burmester($B$3:$C$3,$B$4:$C$4,$B$5:$C$5,$E$3,$E$4,$E$5,B27) -> 1.088828952 | D27: 0.6194867563 | E27: =ThreePosition_Basic2($E$3,$E$5,$B$3:$C$3,$B$5:$C$5,B27,C27) -> -14.84571204 | F27: 76.64538155 | G27: -3.534324826 | H27: 5.520932826 | I27: =ThreePosition_Basic2($E$3,$E$5,$B$3:$C$3,$B$5:$C$5,B27,D27) -> -2.678664932 | J27: -7.141309854 | K27: -4.557769267 | L27: 9.863124427
A28: 10 | B28: 0.1745329252 | C28: =Burmester($B$3:$C$3,$B$4:$C$4,$B$5:$C$5,$E$3,$E$4,$E$5,B28) -> 1.047197551 | D28: 0.6794178602 | E28: =ThreePosition_Basic2($E$3,$E$5,$B$3:$C$3,$B$5:$C$5,B28,C28) ->  | I28: =ThreePosition_Basic2($E$3,$E$5,$B$3:$C$3,$B$5:$C$5,B28,D28) -> -2.46241056 | J28: -8.453173679 | K28: -4.393523536 | L28: 9.022539227
A29: 10.5 | B29: 0.1832595715 | C29: =Burmester($B$3:$C$3,$B$4:$C$4,$B$5:$C$5,$E$3,$E$4,$E$5,B29) -> 0.9848079954 | D29: 0.7601492814 | E29: =ThreePosition_Basic2($E$3,$E$5,$B$3:$C$3,$B$5:$C$5,B29,C29) -> 4.144961302 | F29: -51.62566727 | G29: -3.735851759 | H29: 6.176984991 | I29: =ThreePosition_Basic2($E$3,$E$5,$B$3:$C$3,$B$5:$C$5,B29,D29) -> -2.043598242 | J29: -11.02962427 | K29: -4.198554092 | L29: 8.079744935
A30: 11 | B30: 0.1919862177 | C30: =Burmester($B$3:$C$3,$B$4:$C$4,$B$5:$C$5,$E$3,$E$4,$E$5,B30) ->  | E30: =ThreePosition_Basic2($E$3,$E$5,$B$3:$C$3,$B$5:$C$5,B30,C30) ->  | I30: =ThreePosition_Basic2($E$3,$E$5,$B$3:$C$3,$B$5:$C$5,B30,D30) -> 
A31: 11.5 | B31: 0.200712864 | C31: =Burmester($B$3:$C$3,$B$4:$C$4,$B$5:$C$5,$E$3,$E$4,$E$5,B31) ->  | E31: =ThreePosition_Basic2($E$3,$E$5,$B$3:$C$3,$B$5:$C$5,B31,C31) ->  | I31: =ThreePosition_Basic2($E$3,$E$5,$B$3:$C$3,$B$5:$C$5,B31,D31) -> 
A32: 12 | B32: 0.2094395102 | C32: =Burmester($B$3:$C$3,$B$4:$C$4,$B$5:$C$5,$E$3,$E$4,$E$5,B32) ->  | E32: =ThreePosition_Basic2($E$3,$E$5,$B$3:$C$3,$B$5:$C$5,B32,C32) ->  | I32: =ThreePosition_Basic2($E$3,$E$5,$B$3:$C$3,$B$5:$C$5,B32,D32) -> 
A33: 12.5 | B33: 0.2181661565 | C33: =Burmester($B$3:$C$3,$B$4:$C$4,$B$5:$C$5,$E$3,$E$4,$E$5,B33) ->  | E33: =ThreePosition_Basic2($E$3,$E$5,$B$3:$C$3,$B$5:$C$5,B33,C33) ->  | I33: =ThreePosition_Basic2($E$3,$E$5,$B$3:$C$3,$B$5:$C$5,B33,D33) -> 
A34: 13 | B34: 0.2268928028 | C34: =Burmester($B$3:$C$3,$B$4:$C$4,$B$5:$C$5,$E$3,$E$4,$E$5,B34) ->  | E34: =ThreePosition_Basic2($E$3,$E$5,$B$3:$C$3,$B$5:$C$5,B34,C34) ->  | I34: =ThreePosition_Basic2($E$3,$E$5,$B$3:$C$3,$B$5:$C$5,B34,D34) -> 
A35: 13.5 | B35: 0.235619449 | C35: =Burmester($B$3:$C$3,$B$4:$C$4,$B$5:$C$5,$E$3,$E$4,$E$5,B35) ->  | E35: =ThreePosition_Basic2($E$3,$E$5,$B$3:$C$3,$B$5:$C$5,B35,C35) ->  | I35: =ThreePosition_Basic2($E$3,$E$5,$B$3:$C$3,$B$5:$C$5,B35,D35) -> 
A36: 14 | B36: 0.2443460953 | C36: =Burmester($B$3:$C$3,$B$4:$C$4,$B$5:$C$5,$E$3,$E$4,$E$5,B36) ->  | E36: =ThreePosition_Basic2($E$3,$E$5,$B$3:$C$3,$B$5:$C$5,B36,C36) ->  | I36: =ThreePosition_Basic2($E$3,$E$5,$B$3:$C$3,$B$5:$C$5,B36,D36) -> 
A37: 14.5 | B37: 0.2530727415 | C37: =Burmester($B$3:$C$3,$B$4:$C$4,$B$5:$C$5,$E$3,$E$4,$E$5,B37) ->  | E37: =ThreePosition_Basic2($E$3,$E$5,$B$3:$C$3,$B$5:$C$5,B37,C37) ->  | I37: =ThreePosition_Basic2($E$3,$E$5,$B$3:$C$3,$B$5:$C$5,B37,D37) -> 
A38: 15 | B38: 0.2617993878 | C38: =Burmester($B$3:$C$3,$B$4:$C$4,$B$5:$C$5,$E$3,$E$4,$E$5,B38) ->  | E38: =ThreePosition_Basic2($E$3,$E$5,$B$3:$C$3,$B$5:$C$5,B38,C38) ->  | I38: =ThreePosition_Basic2($E$3,$E$5,$B$3:$C$3,$B$5:$C$5,B38,D38) -> 
A39: 15.5 | B39: 0.2705260341 | C39: =Burmester($B$3:$C$3,$B$4:$C$4,$B$5:$C$5,$E$3,$E$4,$E$5,B39) ->  | E39: =ThreePosition_Basic2($E$3,$E$5,$B$3:$C$3,$B$5:$C$5,B39,C39) ->  | I39: =ThreePosition_Basic2($E$3,$E$5,$B$3:$C$3,$B$5:$C$5,B39,D39) -> 
A40: 16 | B40: 0.2792526803 | C40: =Burmester($B$3:$C$3,$B$4:$C$4,$B$5:$C$5,$E$3,$E$4,$E$5,B40) ->  | E40: =ThreePosition_Basic2($E$3,$E$5,$B$3:$C$3,$B$5:$C$5,B40,C40) ->  | I40: =ThreePosition_Basic2($E$3,$E$5,$B$3:$C$3,$B$5:$C$5,B40,D40) -> 
A41: 16.5 | B41: 0.2879793266 | C41: =Burmester($B$3:$C$3,$B$4:$C$4,$B$5:$C$5,$E$3,$E$4,$E$5,B41) ->  | E41: =ThreePosition_Basic2($E$3,$E$5,$B$3:$C$3,$B$5:$C$5,B41,C41) ->  | I41: =ThreePosition_Basic2($E$3,$E$5,$B$3:$C$3,$B$5:$C$5,B41,D41) -> 
A42: 17 | B42: 0.2967059728 | C42: =Burmester($B$3:$C$3,$B$4:$C$4,$B$5:$C$5,$E$3,$E$4,$E$5,B42) ->  | E42: =ThreePosition_Basic2($E$3,$E$5,$B$3:$C$3,$B$5:$C$5,B42,C42) ->  | I42: =ThreePosition_Basic2($E$3,$E$5,$B$3:$C$3,$B$5:$C$5,B42,D42) -> 
A43: 17.5 | B43: 0.3054326191 | C43: =Burmester($B$3:$C$3,$B$4:$C$4,$B$5:$C$5,$E$3,$E$4,$E$5,B43) ->  | E43: =ThreePosition_Basic2($E$3,$E$5,$B$3:$C$3,$B$5:$C$5,B43,C43) ->  | I43: =ThreePosition_Basic2($E$3,$E$5,$B$3:$C$3,$B$5:$C$5,B43,D43) -> 
A44: 18 | B44: 0.3141592654 | C44: =Burmester($B$3:$C$3,$B$4:$C$4,$B$5:$C$5,$E$3,$E$4,$E$5,B44) ->  | E44: =ThreePosition_Basic2($E$3,$E$5,$B$3:$C$3,$B$5:$C$5,B44,C44) ->  | I44: =ThreePosition_Basic2($E$3,$E$5,$B$3:$C$3,$B$5:$C$5,B44,D44) -> 
A45: 18.5 | B45: 0.3228859116 | C45: =Burmester($B$3:$C$3,$B$4:$C$4,$B$5:$C$5,$E$3,$E$4,$E$5,B45) ->  | E45: =ThreePosition_Basic2($E$3,$E$5,$B$3:$C$3,$B$5:$C$5,B45,C45) ->  | I45: =ThreePosition_Basic2($E$3,$E$5,$B$3:$C$3,$B$5:$C$5,B45,D45) -> 
A46: 19 | B46: 0.3316125579 | C46: =Burmester($B$3:$C$3,$B$4:$C$4,$B$5:$C$5,$E$3,$E$4,$E$5,B46) ->  | E46: =ThreePosition_Basic2($E$3,$E$5,$B$3:$C$3,$B$5:$C$5,B46,C46) ->  | I46: =ThreePosition_Basic2($E$3,$E$5,$B$3:$C$3,$B$5:$C$5,B46,D46) -> 
A47: 19.5 | B47: 0.3403392041 | C47: =Burmester($B$3:$C$3,$B$4:$C$4,$B$5:$C$5,$E$3,$E$4,$E$5,B47) ->  | E47: =ThreePosition_Basic2($E$3,$E$5,$B$3:$C$3,$B$5:$C$5,B47,C47) ->  | I47: =ThreePosition_Basic2($E$3,$E$5,$B$3:$C$3,$B$5:$C$5,B47,D47) -> 
A48: 20 | B48: 0.3490658504 | C48: =Burmester($B$3:$C$3,$B$4:$C$4,$B$5:$C$5,$E$3,$E$4,$E$5,B48) ->  | E48: =ThreePosition_Basic2($E$3,$E$5,$B$3:$C$3,$B$5:$C$5,B48,C48) ->  | I48: =ThreePosition_Basic2($E$3,$E$5,$B$3:$C$3,$B$5:$C$5,B48,D48) -> 
A49: 20.5 | B49: 0.3577924967 | C49: =Burmester($B$3:$C$3,$B$4:$C$4,$B$5:$C$5,$E$3,$E$4,$E$5,B49) ->  | E49: =ThreePosition_Basic2($E$3,$E$5,$B$3:$C$3,$B$5:$C$5,B49,C49) ->  | I49: =ThreePosition_Basic2($E$3,$E$5,$B$3:$C$3,$B$5:$C$5,B49,D49) -> 
A50: 21 | B50: 0.3665191429 | C50: =Burmester($B$3:$C$3,$B$4:$C$4,$B$5:$C$5,$E$3,$E$4,$E$5,B50) ->  | E50: =ThreePosition_Basic2($E$3,$E$5,$B$3:$C$3,$B$5:$C$5,B50,C50) ->  | I50: =ThreePosition_Basic2($E$3,$E$5,$B$3:$C$3,$B$5:$C$5,B50,D50) -> 
A51: 21.5 | B51: 0.3752457892 | C51: =Burmester($B$3:$C$3,$B$4:$C$4,$B$5:$C$5,$E$3,$E$4,$E$5,B51) ->  | E51: =ThreePosition_Basic2($E$3,$E$5,$B$3:$C$3,$B$5:$C$5,B51,C51) ->  | I51: =ThreePosition_Basic2($E$3,$E$5,$B$3:$C$3,$B$5:$C$5,B51,D51) -> 
A52: 22 | B52: 0.3839724354 | C52: =Burmester($B$3:$C$3,$B$4:$C$4,$B$5:$C$5,$E$3,$E$4,$E$5,B52) ->  | E52: =ThreePosition_Basic2($E$3,$E$5,$B$3:$C$3,$B$5:$C$5,B52,C52) ->  | I52: =ThreePosition_Basic2($E$3,$E$5,$B$3:$C$3,$B$5:$C$5,B52,D52) -> 
A53: 22.5 | B53: 0.3926990817 | C53: =Burmester($B$3:$C$3,$B$4:$C$4,$B$5:$C$5,$E$3,$E$4,$E$5,B53) ->  | E53: =ThreePosition_Basic2($E$3,$E$5,$B$3:$C$3,$B$5:$C$5,B53,C53) ->  | I53: =ThreePosition_Basic2($E$3,$E$5,$B$3:$C$3,$B$5:$C$5,B53,D53) -> 
A54: 23 | B54: 0.401425728 | C54: =Burmester($B$3:$C$3,$B$4:$C$4,$B$5:$C$5,$E$3,$E$4,$E$5,B54) ->  | E54: =ThreePosition_Basic2($E$3,$E$5,$B$3:$C$3,$B$5:$C$5,B54,C54) ->  | I54: =ThreePosition_Basic2($E$3,$E$5,$B$3:$C$3,$B$5:$C$5,B54,D54) -> 
A55: 23.5 | B55: 0.4101523742 | C55: =Burmester($B$3:$C$3,$B$4:$C$4,$B$5:$C$5,$E$3,$E$4,$E$5,B55) ->  | E55: =ThreePosition_Basic2($E$3,$E$5,$B$3:$C$3,$B$5:$C$5,B55,C55) ->  | I55: =ThreePosition_Basic2($E$3,$E$5,$B$3:$C$3,$B$5:$C$5,B55,D55) -> 
A56: 24 | B56: 0.4188790205 | C56: =Burmester($B$3:$C$3,$B$4:$C$4,$B$5:$C$5,$E$3,$E$4,$E$5,B56) ->  | E56: =ThreePosition_Basic2($E$3,$E$5,$B$3:$C$3,$B$5:$C$5,B56,C56) ->  | I56: =ThreePosition_Basic2($E$3,$E$5,$B$3:$C$3,$B$5:$C$5,B56,D56) -> 
A57: 24.5 | B57: 0.4276056667 | C57: =Burmester($B$3:$C$3,$B$4:$C$4,$B$5:$C$5,$E$3,$E$4,$E$5,B57) ->  | E57: =ThreePosition_Basic2($E$3,$E$5,$B$3:$C$3,$B$5:$C$5,B57,C57) ->  | I57: =ThreePosition_Basic2($E$3,$E$5,$B$3:$C$3,$B$5:$C$5,B57,D57) -> 
A58: 25 | B58: 0.436332313 | C58: =Burmester($B$3:$C$3,$B$4:$C$4,$B$5:$C$5,$E$3,$E$4,$E$5,B58) ->  | E58: =ThreePosition_Basic2($E$3,$E$5,$B$3:$C$3,$B$5:$C$5,B58,C58) ->  | I58: =ThreePosition_Basic2($E$3,$E$5,$B$3:$C$3,$B$5:$C$5,B58,D58) -> 
A59: 25.5 | B59: 0.4450589593 | C59: =Burmester($B$3:$C$3,$B$4:$C$4,$B$5:$C$5,$E$3,$E$4,$E$5,B59) ->  | E59: =ThreePosition_Basic2($E$3,$E$5,$B$3:$C$3,$B$5:$C$5,B59,C59) ->  | I59: =ThreePosition_Basic2($E$3,$E$5,$B$3:$C$3,$B$5:$C$5,B59,D59) -> 
A60: 26 | B60: 0.4537856055 | C60: =Burmester($B$3:$C$3,$B$4:$C$4,$B$5:$C$5,$E$3,$E$4,$E$5,B60) ->  | E60: =ThreePosition_Basic2($E$3,$E$5,$B$3:$C$3,$B$5:$C$5,B60,C60) ->  | I60: =ThreePosition_Basic2($E$3,$E$5,$B$3:$C$3,$B$5:$C$5,B60,D60) -> 
A61: 26.5 | B61: 0.4625122518 | C61: =Burmester($B$3:$C$3,$B$4:$C$4,$B$5:$C$5,$E$3,$E$4,$E$5,B61) ->  | E61: =ThreePosition_Basic2($E$3,$E$5,$B$3:$C$3,$B$5:$C$5,B61,C61) ->  | I61: =ThreePosition_Basic2($E$3,$E$5,$B$3:$C$3,$B$5:$C$5,B61,D61) -> 
A62: 27 | B62: 0.471238898 | C62: =Burmester($B$3:$C$3,$B$4:$C$4,$B$5:$C$5,$E$3,$E$4,$E$5,B62) ->  | E62: =ThreePosition_Basic2($E$3,$E$5,$B$3:$C$3,$B$5:$C$5,B62,C62) ->  | I62: =ThreePosition_Basic2($E$3,$E$5,$B$3:$C$3,$B$5:$C$5,B62,D62) -> 
A63: 27.5 | B63: 0.4799655443 | C63: =Burmester($B$3:$C$3,$B$4:$C$4,$B$5:$C$5,$E$3,$E$4,$E$5,B63) ->  | E63: =ThreePosition_Basic2($E$3,$E$5,$B$3:$C$3,$B$5:$C$5,B63,C63) ->  | I63: =ThreePosition_Basic2($E$3,$E$5,$B$3:$C$3,$B$5:$C$5,B63,D63) -> 
A64: 28 | B64: 0.4886921906 | C64: =Burmester($B$3:$C$3,$B$4:$C$4,$B$5:$C$5,$E$3,$E$4,$E$5,B64) ->  | E64: =ThreePosition_Basic2($E$3,$E$5,$B$3:$C$3,$B$5:$C$5,B64,C64) ->  | I64: =ThreePosition_Basic2($E$3,$E$5,$B$3:$C$3,$B$5:$C$5,B64,D64) -> 
A65: 28.5 | B65: 0.4974188368 | C65: =Burmester($B$3:$C$3,$B$4:$C$4,$B$5:$C$5,$E$3,$E$4,$E$5,B65) ->  | E65: =ThreePosition_Basic2($E$3,$E$5,$B$3:$C$3,$B$5:$C$5,B65,C65) ->  | I65: =ThreePosition_Basic2($E$3,$E$5,$B$3:$C$3,$B$5:$C$5,B65,D65) -> 
A66: 29 | B66: 0.5061454831 | C66: =Burmester($B$3:$C$3,$B$4:$C$4,$B$5:$C$5,$E$3,$E$4,$E$5,B66) ->  | E66: =ThreePosition_Basic2($E$3,$E$5,$B$3:$C$3,$B$5:$C$5,B66,C66) ->  | I66: =ThreePosition_Basic2($E$3,$E$5,$B$3:$C$3,$B$5:$C$5,B66,D66) -> 
A67: 29.5 | B67: 0.5148721293 | C67: =Burmester($B$3:$C$3,$B$4:$C$4,$B$5:$C$5,$E$3,$E$4,$E$5,B67) ->  | E67: =ThreePosition_Basic2($E$3,$E$5,$B$3:$C$3,$B$5:$C$5,B67,C67) ->  | I67: =ThreePosition_Basic2($E$3,$E$5,$B$3:$C$3,$B$5:$C$5,B67,D67) -> 
A68: 30 | B68: 0.5235987756 | C68: =Burmester($B$3:$C$3,$B$4:$C$4,$B$5:$C$5,$E$3,$E$4,$E$5,B68) ->  | E68: =ThreePosition_Basic2($E$3,$E$5,$B$3:$C$3,$B$5:$C$5,B68,C68) ->  | I68: =ThreePosition_Basic2($E$3,$E$5,$B$3:$C$3,$B$5:$C$5,B68,D68) -> 
A69: 30.5 | B69: 0.5323254219 | C69: =Burmester($B$3:$C$3,$B$4:$C$4,$B$5:$C$5,$E$3,$E$4,$E$5,B69) ->  | E69: =ThreePosition_Basic2($E$3,$E$5,$B$3:$C$3,$B$5:$C$5,B69,C69) ->  | I69: =ThreePosition_Basic2($E$3,$E$5,$B$3:$C$3,$B$5:$C$5,B69,D69) -> 
A70: 31 | B70: 0.5410520681 | C70: =Burmester($B$3:$C$3,$B$4:$C$4,$B$5:$C$5,$E$3,$E$4,$E$5,B70) ->  | E70: =ThreePosition_Basic2($E$3,$E$5,$B$3:$C$3,$B$5:$C$5,B70,C70) ->  | I70: =ThreePosition_Basic2($E$3,$E$5,$B$3:$C$3,$B$5:$C$5,B70,D70) -> 
A71: 31.5 | B71: 0.5497787144 | C71: =Burmester($B$3:$C$3,$B$4:$C$4,$B$5:$C$5,$E$3,$E$4,$E$5,B71) ->  | E71: =ThreePosition_Basic2($E$3,$E$5,$B$3:$C$3,$B$5:$C$5,B71,C71) ->  | I71: =ThreePosition_Basic2($E$3,$E$5,$B$3:$C$3,$B$5:$C$5,B71,D71) -> 
A72: 32 | B72: 0.5585053606 | C72: =Burmester($B$3:$C$3,$B$4:$C$4,$B$5:$C$5,$E$3,$E$4,$E$5,B72) ->  | E72: =ThreePosition_Basic2($E$3,$E$5,$B$3:$C$3,$B$5:$C$5,B72,C72) ->  | I72: =ThreePosition_Basic2($E$3,$E$5,$B$3:$C$3,$B$5:$C$5,B72,D72) -> 
A73: 32.5 | B73: =A73*PI()/180 -> 0.5672320069 | C73: =Burmester($B$3:$C$3,$B$4:$C$4,$B$5:$C$5,$E$3,$E$4,$E$5,B73) ->  | E73: =ThreePosition_Basic2($E$3,$E$5,$B$3:$C$3,$B$5:$C$5,B73,C73) ->  | I73: =ThreePosition_Basic2($E$3,$E$5,$B$3:$C$3,$B$5:$C$5,B73,D73) -> 
A74: 33 | B74: 0.5759586532 | C74: =Burmester($B$3:$C$3,$B$4:$C$4,$B$5:$C$5,$E$3,$E$4,$E$5,B74) ->  | E74: =ThreePosition_Basic2($E$3,$E$5,$B$3:$C$3,$B$5:$C$5,B74,C74) ->  | I74: =ThreePosition_Basic2($E$3,$E$5,$B$3:$C$3,$B$5:$C$5,B74,D74) -> 
A75: 33.5 | B75: 0.5846852994 | C75: =Burmester($B$3:$C$3,$B$4:$C$4,$B$5:$C$5,$E$3,$E$4,$E$5,B75) ->  | E75: =ThreePosition_Basic2($E$3,$E$5,$B$3:$C$3,$B$5:$C$5,B75,C75) ->  | I75: =ThreePosition_Basic2($E$3,$E$5,$B$3:$C$3,$B$5:$C$5,B75,D75) -> 
A76: 34 | B76: 0.5934119457 | C76: =Burmester($B$3:$C$3,$B$4:$C$4,$B$5:$C$5,$E$3,$E$4,$E$5,B76) ->  | E76: =ThreePosition_Basic2($E$3,$E$5,$B$3:$C$3,$B$5:$C$5,B76,C76) ->  | I76: =ThreePosition_Basic2($E$3,$E$5,$B$3:$C$3,$B$5:$C$5,B76,D76) -> 
A77: 34.5 | B77: 0.6021385919 | C77: =Burmester($B$3:$C$3,$B$4:$C$4,$B$5:$C$5,$E$3,$E$4,$E$5,B77) ->  | E77: =ThreePosition_Basic2($E$3,$E$5,$B$3:$C$3,$B$5:$C$5,B77,C77) ->  | I77: =ThreePosition_Basic2($E$3,$E$5,$B$3:$C$3,$B$5:$C$5,B77,D77) -> 
A78: 35 | B78: 0.6108652382 | C78: =Burmester($B$3:$C$3,$B$4:$C$4,$B$5:$C$5,$E$3,$E$4,$E$5,B78) ->  | E78: =ThreePosition_Basic2($E$3,$E$5,$B$3:$C$3,$B$5:$C$5,B78,C78) ->  | I78: =ThreePosition_Basic2($E$3,$E$5,$B$3:$C$3,$B$5:$C$5,B78,D78) -> 
A79: 35.5 | B79: 0.6195918845 | C79: =Burmester($B$3:$C$3,$B$4:$C$4,$B$5:$C$5,$E$3,$E$4,$E$5,B79) ->  | E79: =ThreePosition_Basic2($E$3,$E$5,$B$3:$C$3,$B$5:$C$5,B79,C79) ->  | I79: =ThreePosition_Basic2($E$3,$E$5,$B$3:$C$3,$B$5:$C$5,B79,D79) -> 
A80: 36 | B80: 0.6283185307 | C80: =Burmester($B$3:$C$3,$B$4:$C$4,$B$5:$C$5,$E$3,$E$4,$E$5,B80) ->  | E80: =ThreePosition_Basic2($E$3,$E$5,$B$3:$C$3,$B$5:$C$5,B80,C80) ->  | I80: =ThreePosition_Basic2($E$3,$E$5,$B$3:$C$3,$B$5:$C$5,B80,D80) -> 
A81: 36.5 | B81: 0.637045177 | C81: =Burmester($B$3:$C$3,$B$4:$C$4,$B$5:$C$5,$E$3,$E$4,$E$5,B81) ->  | E81: =ThreePosition_Basic2($E$3,$E$5,$B$3:$C$3,$B$5:$C$5,B81,C81) ->  | I81: =ThreePosition_Basic2($E$3,$E$5,$B$3:$C$3,$B$5:$C$5,B81,D81) -> 
A82: 37 | B82: 0.6457718232 | C82: =Burmester($B$3:$C$3,$B$4:$C$4,$B$5:$C$5,$E$3,$E$4,$E$5,B82) ->  | E82: =ThreePosition_Basic2($E$3,$E$5,$B$3:$C$3,$B$5:$C$5,B82,C82) ->  | I82: =ThreePosition_Basic2($E$3,$E$5,$B$3:$C$3,$B$5:$C$5,B82,D82) -> 
A83: 37.5 | B83: 0.6544984695 | C83: =Burmester($B$3:$C$3,$B$4:$C$4,$B$5:$C$5,$E$3,$E$4,$E$5,B83) ->  | E83: =ThreePosition_Basic2($E$3,$E$5,$B$3:$C$3,$B$5:$C$5,B83,C83) ->  | I83: =ThreePosition_Basic2($E$3,$E$5,$B$3:$C$3,$B$5:$C$5,B83,D83) -> 
A84: 38 | B84: 0.6632251158 | C84: =Burmester($B$3:$C$3,$B$4:$C$4,$B$5:$C$5,$E$3,$E$4,$E$5,B84) ->  | E84: =ThreePosition_Basic2($E$3,$E$5,$B$3:$C$3,$B$5:$C$5,B84,C84) ->  | I84: =ThreePosition_Basic2($E$3,$E$5,$B$3:$C$3,$B$5:$C$5,B84,D84) -> 
A85: 38.5 | B85: 0.671951762 | C85: =Burmester($B$3:$C$3,$B$4:$C$4,$B$5:$C$5,$E$3,$E$4,$E$5,B85) ->  | E85: =ThreePosition_Basic2($E$3,$E$5,$B$3:$C$3,$B$5:$C$5,B85,C85) ->  | I85: =ThreePosition_Basic2($E$3,$E$5,$B$3:$C$3,$B$5:$C$5,B85,D85) -> 
A86: 39 | B86: 0.6806784083 | C86: =Burmester($B$3:$C$3,$B$4:$C$4,$B$5:$C$5,$E$3,$E$4,$E$5,B86) ->  | E86: =ThreePosition_Basic2($E$3,$E$5,$B$3:$C$3,$B$5:$C$5,B86,C86) ->  | I86: =ThreePosition_Basic2($E$3,$E$5,$B$3:$C$3,$B$5:$C$5,B86,D86) -> 
A87: 39.5 | B87: 0.6894050545 | C87: =Burmester($B$3:$C$3,$B$4:$C$4,$B$5:$C$5,$E$3,$E$4,$E$5,B87) ->  | E87: =ThreePosition_Basic2($E$3,$E$5,$B$3:$C$3,$B$5:$C$5,B87,C87) ->  | I87: =ThreePosition_Basic2($E$3,$E$5,$B$3:$C$3,$B$5:$C$5,B87,D87) -> 
A88: 40 | B88: 0.6981317008 | C88: =Burmester($B$3:$C$3,$B$4:$C$4,$B$5:$C$5,$E$3,$E$4,$E$5,B88) ->  | E88: =ThreePosition_Basic2($E$3,$E$5,$B$3:$C$3,$B$5:$C$5,B88,C88) ->  | I88: =ThreePosition_Basic2($E$3,$E$5,$B$3:$C$3,$B$5:$C$5,B88,D88) -> 
A89: 40.5 | B89: 0.7068583471 | C89: =Burmester($B$3:$C$3,$B$4:$C$4,$B$5:$C$5,$E$3,$E$4,$E$5,B89) ->  | E89: =ThreePosition_Basic2($E$3,$E$5,$B$3:$C$3,$B$5:$C$5,B89,C89) ->  | I89: =ThreePosition_Basic2($E$3,$E$5,$B$3:$C$3,$B$5:$C$5,B89,D89) -> 
A90: 41 | B90: 0.7155849933 | C90: =Burmester($B$3:$C$3,$B$4:$C$4,$B$5:$C$5,$E$3,$E$4,$E$5,B90) ->  | E90: =ThreePosition_Basic2($E$3,$E$5,$B$3:$C$3,$B$5:$C$5,B90,C90) ->  | I90: =ThreePosition_Basic2($E$3,$E$5,$B$3:$C$3,$B$5:$C$5,B90,D90) -> 
A91: 41.5 | B91: 0.7243116396 | C91: =Burmester($B$3:$C$3,$B$4:$C$4,$B$5:$C$5,$E$3,$E$4,$E$5,B91) ->  | E91: =ThreePosition_Basic2($E$3,$E$5,$B$3:$C$3,$B$5:$C$5,B91,C91) ->  | I91: =ThreePosition_Basic2($E$3,$E$5,$B$3:$C$3,$B$5:$C$5,B91,D91) -> 
A92: 42 | B92: 0.7330382858 | C92: =Burmester($B$3:$C$3,$B$4:$C$4,$B$5:$C$5,$E$3,$E$4,$E$5,B92) ->  | E92: =ThreePosition_Basic2($E$3,$E$5,$B$3:$C$3,$B$5:$C$5,B92,C92) ->  | I92: =ThreePosition_Basic2($E$3,$E$5,$B$3:$C$3,$B$5:$C$5,B92,D92) -> 
A93: 42.5 | B93: 0.7417649321 | C93: =Burmester($B$3:$C$3,$B$4:$C$4,$B$5:$C$5,$E$3,$E$4,$E$5,B93) ->  | E93: =ThreePosition_Basic2($E$3,$E$5,$B$3:$C$3,$B$5:$C$5,B93,C93) ->  | I93: =ThreePosition_Basic2($E$3,$E$5,$B$3:$C$3,$B$5:$C$5,B93,D93) -> 
A94: 43 | B94: 0.7504915784 | C94: =Burmester($B$3:$C$3,$B$4:$C$4,$B$5:$C$5,$E$3,$E$4,$E$5,B94) ->  | E94: =ThreePosition_Basic2($E$3,$E$5,$B$3:$C$3,$B$5:$C$5,B94,C94) ->  | I94: =ThreePosition_Basic2($E$3,$E$5,$B$3:$C$3,$B$5:$C$5,B94,D94) -> 
A95: 43.5 | B95: 0.7592182246 | C95: =Burmester($B$3:$C$3,$B$4:$C$4,$B$5:$C$5,$E$3,$E$4,$E$5,B95) ->  | E95: =ThreePosition_Basic2($E$3,$E$5,$B$3:$C$3,$B$5:$C$5,B95,C95) ->  | I95: =ThreePosition_Basic2($E$3,$E$5,$B$3:$C$3,$B$5:$C$5,B95,D95) -> 
A96: 44 | B96: 0.7679448709 | C96: =Burmester($B$3:$C$3,$B$4:$C$4,$B$5:$C$5,$E$3,$E$4,$E$5,B96) ->  | E96: =ThreePosition_Basic2($E$3,$E$5,$B$3:$C$3,$B$5:$C$5,B96,C96) ->  | I96: =ThreePosition_Basic2($E$3,$E$5,$B$3:$C$3,$B$5:$C$5,B96,D96) -> 
A97: 44.5 | B97: 0.7766715171 | C97: =Burmester($B$3:$C$3,$B$4:$C$4,$B$5:$C$5,$E$3,$E$4,$E$5,B97) ->  | E97: =ThreePosition_Basic2($E$3,$E$5,$B$3:$C$3,$B$5:$C$5,B97,C97) ->  | I97: =ThreePosition_Basic2($E$3,$E$5,$B$3:$C$3,$B$5:$C$5,B97,D97) -> 
A98: 45 | B98: 0.7853981634 | C98: =Burmester($B$3:$C$3,$B$4:$C$4,$B$5:$C$5,$E$3,$E$4,$E$5,B98) ->  | E98: =ThreePosition_Basic2($E$3,$E$5,$B$3:$C$3,$B$5:$C$5,B98,C98) ->  | I98: =ThreePosition_Basic2($E$3,$E$5,$B$3:$C$3,$B$5:$C$5,B98,D98) -> 
A99: 45.5 | B99: 0.7941248097 | C99: =Burmester($B$3:$C$3,$B$4:$C$4,$B$5:$C$5,$E$3,$E$4,$E$5,B99) ->  | E99: =ThreePosition_Basic2($E$3,$E$5,$B$3:$C$3,$B$5:$C$5,B99,C99) ->  | I99: =ThreePosition_Basic2($E$3,$E$5,$B$3:$C$3,$B$5:$C$5,B99,D99) -> 
A100: 46 | B100: 0.8028514559 | C100: =Burmester($B$3:$C$3,$B$4:$C$4,$B$5:$C$5,$E$3,$E$4,$E$5,B100) ->  | E100: =ThreePosition_Basic2($E$3,$E$5,$B$3:$C$3,$B$5:$C$5,B100,C100) ->  | I100: =ThreePosition_Basic2($E$3,$E$5,$B$3:$C$3,$B$5:$C$5,B100,D100) -> 
A101: 46.5 | B101: 0.8115781022 | C101: =Burmester($B$3:$C$3,$B$4:$C$4,$B$5:$C$5,$E$3,$E$4,$E$5,B101) ->  | E101: =ThreePosition_Basic2($E$3,$E$5,$B$3:$C$3,$B$5:$C$5,B101,C101) ->  | I101: =ThreePosition_Basic2($E$3,$E$5,$B$3:$C$3,$B$5:$C$5,B101,D101) -> 
A102: 47 | B102: 0.8203047484 | C102: =Burmester($B$3:$C$3,$B$4:$C$4,$B$5:$C$5,$E$3,$E$4,$E$5,B102) ->  | E102: =ThreePosition_Basic2($E$3,$E$5,$B$3:$C$3,$B$5:$C$5,B102,C102) ->  | I102: =ThreePosition_Basic2($E$3,$E$5,$B$3:$C$3,$B$5:$C$5,B102,D102) -> 
A103: 47.5 | B103: 0.8290313947 | C103: =Burmester($B$3:$C$3,$B$4:$C$4,$B$5:$C$5,$E$3,$E$4,$E$5,B103) ->  | E103: =ThreePosition_Basic2($E$3,$E$5,$B$3:$C$3,$B$5:$C$5,B103,C103) ->  | I103: =ThreePosition_Basic2($E$3,$E$5,$B$3:$C$3,$B$5:$C$5,B103,D103) -> 
A104: 48 | B104: 0.837758041 | C104: =Burmester($B$3:$C$3,$B$4:$C$4,$B$5:$C$5,$E$3,$E$4,$E$5,B104) ->  | E104: =ThreePosition_Basic2($E$3,$E$5,$B$3:$C$3,$B$5:$C$5,B104,C104) ->  | I104: =ThreePosition_Basic2($E$3,$E$5,$B$3:$C$3,$B$5:$C$5,B104,D104) -> 
A105: 48.5 | B105: 0.8464846872 | C105: =Burmester($B$3:$C$3,$B$4:$C$4,$B$5:$C$5,$E$3,$E$4,$E$5,B105) ->  | E105: =ThreePosition_Basic2($E$3,$E$5,$B$3:$C$3,$B$5:$C$5,B105,C105) ->  | I105: =ThreePosition_Basic2($E$3,$E$5,$B$3:$C$3,$B$5:$C$5,B105,D105) -> 
A106: 49 | B106: 0.8552113335 | C106: =Burmester($B$3:$C$3,$B$4:$C$4,$B$5:$C$5,$E$3,$E$4,$E$5,B106) ->  | E106: =ThreePosition_Basic2($E$3,$E$5,$B$3:$C$3,$B$5:$C$5,B106,C106) ->  | I106: =ThreePosition_Basic2($E$3,$E$5,$B$3:$C$3,$B$5:$C$5,B106,D106) -> 
A107: 49.5 | B107: 0.8639379797 | C107: =Burmester($B$3:$C$3,$B$4:$C$4,$B$5:$C$5,$E$3,$E$4,$E$5,B107) ->  | E107: =ThreePosition_Basic2($E$3,$E$5,$B$3:$C$3,$B$5:$C$5,B107,C107) ->  | I107: =ThreePosition_Basic2($E$3,$E$5,$B$3:$C$3,$B$5:$C$5,B107,D107) -> 
A108: 50 | B108: 0.872664626 | C108: =Burmester($B$3:$C$3,$B$4:$C$4,$B$5:$C$5,$E$3,$E$4,$E$5,B108) ->  | E108: =ThreePosition_Basic2($E$3,$E$5,$B$3:$C$3,$B$5:$C$5,B108,C108) ->  | I108: =ThreePosition_Basic2($E$3,$E$5,$B$3:$C$3,$B$5:$C$5,B108,D108) -> 
A109: 50.5 | B109: 0.8813912723 | C109: =Burmester($B$3:$C$3,$B$4:$C$4,$B$5:$C$5,$E$3,$E$4,$E$5,B109) ->  | E109: =ThreePosition_Basic2($E$3,$E$5,$B$3:$C$3,$B$5:$C$5,B109,C109) ->  | I109: =ThreePosition_Basic2($E$3,$E$5,$B$3:$C$3,$B$5:$C$5,B109,D109) -> 
A110: 51 | B110: 0.8901179185 | C110: =Burmester($B$3:$C$3,$B$4:$C$4,$B$5:$C$5,$E$3,$E$4,$E$5,B110) ->  | E110: =ThreePosition_Basic2($E$3,$E$5,$B$3:$C$3,$B$5:$C$5,B110,C110) ->  | I110: =ThreePosition_Basic2($E$3,$E$5,$B$3:$C$3,$B$5:$C$5,B110,D110) -> 
A111: 51.5 | B111: 0.8988445648 | C111: =Burmester($B$3:$C$3,$B$4:$C$4,$B$5:$C$5,$E$3,$E$4,$E$5,B111) ->  | E111: =ThreePosition_Basic2($E$3,$E$5,$B$3:$C$3,$B$5:$C$5,B111,C111) ->  | I111: =ThreePosition_Basic2($E$3,$E$5,$B$3:$C$3,$B$5:$C$5,B111,D111) -> 
A112: 52 | B112: 0.907571211 | C112: =Burmester($B$3:$C$3,$B$4:$C$4,$B$5:$C$5,$E$3,$E$4,$E$5,B112) ->  | E112: =ThreePosition_Basic2($E$3,$E$5,$B$3:$C$3,$B$5:$C$5,B112,C112) ->  | I112: =ThreePosition_Basic2($E$3,$E$5,$B$3:$C$3,$B$5:$C$5,B112,D112) -> 
A113: 52.5 | B113: 0.9162978573 | C113: =Burmester($B$3:$C$3,$B$4:$C$4,$B$5:$C$5,$E$3,$E$4,$E$5,B113) ->  | E113: =ThreePosition_Basic2($E$3,$E$5,$B$3:$C$3,$B$5:$C$5,B113,C113) ->  | I113: =ThreePosition_Basic2($E$3,$E$5,$B$3:$C$3,$B$5:$C$5,B113,D113) -> 
A114: 53 | B114: 0.9250245036 | C114: =Burmester($B$3:$C$3,$B$4:$C$4,$B$5:$C$5,$E$3,$E$4,$E$5,B114) ->  | E114: =ThreePosition_Basic2($E$3,$E$5,$B$3:$C$3,$B$5:$C$5,B114,C114) ->  | I114: =ThreePosition_Basic2($E$3,$E$5,$B$3:$C$3,$B$5:$C$5,B114,D114) -> 
A115: 53.5 | B115: 0.9337511498 | C115: =Burmester($B$3:$C$3,$B$4:$C$4,$B$5:$C$5,$E$3,$E$4,$E$5,B115) ->  | E115: =ThreePosition_Basic2($E$3,$E$5,$B$3:$C$3,$B$5:$C$5,B115,C115) ->  | I115: =ThreePosition_Basic2($E$3,$E$5,$B$3:$C$3,$B$5:$C$5,B115,D115) -> 
A116: 54 | B116: 0.9424777961 | C116: =Burmester($B$3:$C$3,$B$4:$C$4,$B$5:$C$5,$E$3,$E$4,$E$5,B116) ->  | E116: =ThreePosition_Basic2($E$3,$E$5,$B$3:$C$3,$B$5:$C$5,B116,C116) ->  | I116: =ThreePosition_Basic2($E$3,$E$5,$B$3:$C$3,$B$5:$C$5,B116,D116) -> 
A117: 54.5 | B117: 0.9512044423 | C117: =Burmester($B$3:$C$3,$B$4:$C$4,$B$5:$C$5,$E$3,$E$4,$E$5,B117) ->  | E117: =ThreePosition_Basic2($E$3,$E$5,$B$3:$C$3,$B$5:$C$5,B117,C117) ->  | I117: =ThreePosition_Basic2($E$3,$E$5,$B$3:$C$3,$B$5:$C$5,B117,D117) -> 
A118: 55 | B118: 0.9599310886 | C118: =Burmester($B$3:$C$3,$B$4:$C$4,$B$5:$C$5,$E$3,$E$4,$E$5,B118) ->  | E118: =ThreePosition_Basic2($E$3,$E$5,$B$3:$C$3,$B$5:$C$5,B118,C118) ->  | I118: =ThreePosition_Basic2($E$3,$E$5,$B$3:$C$3,$B$5:$C$5,B118,D118) -> 
A119: 55.5 | B119: 0.9686577349 | C119: =Burmester($B$3:$C$3,$B$4:$C$4,$B$5:$C$5,$E$3,$E$4,$E$5,B119) ->  | E119: =ThreePosition_Basic2($E$3,$E$5,$B$3:$C$3,$B$5:$C$5,B119,C119) ->  | I119: =ThreePosition_Basic2($E$3,$E$5,$B$3:$C$3,$B$5:$C$5,B119,D119) -> 
A120: 56 | B120: 0.9773843811 | C120: =Burmester($B$3:$C$3,$B$4:$C$4,$B$5:$C$5,$E$3,$E$4,$E$5,B120) ->  | E120: =ThreePosition_Basic2($E$3,$E$5,$B$3:$C$3,$B$5:$C$5,B120,C120) ->  | I120: =ThreePosition_Basic2($E$3,$E$5,$B$3:$C$3,$B$5:$C$5,B120,D120) -> 
A121: 56.5 | B121: 0.9861110274 | C121: =Burmester($B$3:$C$3,$B$4:$C$4,$B$5:$C$5,$E$3,$E$4,$E$5,B121) ->  | E121: =ThreePosition_Basic2($E$3,$E$5,$B$3:$C$3,$B$5:$C$5,B121,C121) ->  | I121: =ThreePosition_Basic2($E$3,$E$5,$B$3:$C$3,$B$5:$C$5,B121,D121) -> 
A122: 57 | B122: 0.9948376736 | C122: =Burmester($B$3:$C$3,$B$4:$C$4,$B$5:$C$5,$E$3,$E$4,$E$5,B122) ->  | E122: =ThreePosition_Basic2($E$3,$E$5,$B$3:$C$3,$B$5:$C$5,B122,C122) ->  | I122: =ThreePosition_Basic2($E$3,$E$5,$B$3:$C$3,$B$5:$C$5,B122,D122) -> 
A123: 57.5 | B123: 1.00356432 | C123: =Burmester($B$3:$C$3,$B$4:$C$4,$B$5:$C$5,$E$3,$E$4,$E$5,B123) ->  | E123: =ThreePosition_Basic2($E$3,$E$5,$B$3:$C$3,$B$5:$C$5,B123,C123) ->  | I123: =ThreePosition_Basic2($E$3,$E$5,$B$3:$C$3,$B$5:$C$5,B123,D123) -> 
A124: 58 | B124: 1.012290966 | C124: =Burmester($B$3:$C$3,$B$4:$C$4,$B$5:$C$5,$E$3,$E$4,$E$5,B124) ->  | E124: =ThreePosition_Basic2($E$3,$E$5,$B$3:$C$3,$B$5:$C$5,B124,C124) ->  | I124: =ThreePosition_Basic2($E$3,$E$5,$B$3:$C$3,$B$5:$C$5,B124,D124) -> 
A125: 58.5 | B125: 1.021017612 | C125: =Burmester($B$3:$C$3,$B$4:$C$4,$B$5:$C$5,$E$3,$E$4,$E$5,B125) ->  | E125: =ThreePosition_Basic2($E$3,$E$5,$B$3:$C$3,$B$5:$C$5,B125,C125) ->  | I125: =ThreePosition_Basic2($E$3,$E$5,$B$3:$C$3,$B$5:$C$5,B125,D125) -> 
A126: 59 | B126: 1.029744259 | C126: =Burmester($B$3:$C$3,$B$4:$C$4,$B$5:$C$5,$E$3,$E$4,$E$5,B126) ->  | E126: =ThreePosition_Basic2($E$3,$E$5,$B$3:$C$3,$B$5:$C$5,B126,C126) ->  | I126: =ThreePosition_Basic2($E$3,$E$5,$B$3:$C$3,$B$5:$C$5,B126,D126) -> 
A127: 59.5 | B127: 1.038470905 | C127: =Burmester($B$3:$C$3,$B$4:$C$4,$B$5:$C$5,$E$3,$E$4,$E$5,B127) ->  | E127: =ThreePosition_Basic2($E$3,$E$5,$B$3:$C$3,$B$5:$C$5,B127,C127) ->  | I127: =ThreePosition_Basic2($E$3,$E$5,$B$3:$C$3,$B$5:$C$5,B127,D127) -> 
A128: 60 | B128: 1.047197551 | C128: =Burmester($B$3:$C$3,$B$4:$C$4,$B$5:$C$5,$E$3,$E$4,$E$5,B128) ->  | E128: =ThreePosition_Basic2($E$3,$E$5,$B$3:$C$3,$B$5:$C$5,B128,C128) ->  | I128: =ThreePosition_Basic2($E$3,$E$5,$B$3:$C$3,$B$5:$C$5,B128,D128) -> 
A129: 60.5 | B129: 1.055924197 | C129: =Burmester($B$3:$C$3,$B$4:$C$4,$B$5:$C$5,$E$3,$E$4,$E$5,B129) ->  | E129: =ThreePosition_Basic2($E$3,$E$5,$B$3:$C$3,$B$5:$C$5,B129,C129) ->  | I129: =ThreePosition_Basic2($E$3,$E$5,$B$3:$C$3,$B$5:$C$5,B129,D129) -> 
A130: 61 | B130: 1.064650844 | C130: =Burmester($B$3:$C$3,$B$4:$C$4,$B$5:$C$5,$E$3,$E$4,$E$5,B130) ->  | E130: =ThreePosition_Basic2($E$3,$E$5,$B$3:$C$3,$B$5:$C$5,B130,C130) ->  | I130: =ThreePosition_Basic2($E$3,$E$5,$B$3:$C$3,$B$5:$C$5,B130,D130) -> 
A131: 61.5 | B131: 1.07337749 | C131: =Burmester($B$3:$C$3,$B$4:$C$4,$B$5:$C$5,$E$3,$E$4,$E$5,B131) ->  | E131: =ThreePosition_Basic2($E$3,$E$5,$B$3:$C$3,$B$5:$C$5,B131,C131) ->  | I131: =ThreePosition_Basic2($E$3,$E$5,$B$3:$C$3,$B$5:$C$5,B131,D131) -> 
A132: 62 | B132: 1.082104136 | C132: =Burmester($B$3:$C$3,$B$4:$C$4,$B$5:$C$5,$E$3,$E$4,$E$5,B132) ->  | E132: =ThreePosition_Basic2($E$3,$E$5,$B$3:$C$3,$B$5:$C$5,B132,C132) ->  | I132: =ThreePosition_Basic2($E$3,$E$5,$B$3:$C$3,$B$5:$C$5,B132,D132) -> 
A133: 62.5 | B133: 1.090830782 | C133: =Burmester($B$3:$C$3,$B$4:$C$4,$B$5:$C$5,$E$3,$E$4,$E$5,B133) ->  | E133: =ThreePosition_Basic2($E$3,$E$5,$B$3:$C$3,$B$5:$C$5,B133,C133) ->  | I133: =ThreePosition_Basic2($E$3,$E$5,$B$3:$C$3,$B$5:$C$5,B133,D133) -> 
A134: 63 | B134: 1.099557429 | C134: =Burmester($B$3:$C$3,$B$4:$C$4,$B$5:$C$5,$E$3,$E$4,$E$5,B134) ->  | E134: =ThreePosition_Basic2($E$3,$E$5,$B$3:$C$3,$B$5:$C$5,B134,C134) ->  | I134: =ThreePosition_Basic2($E$3,$E$5,$B$3:$C$3,$B$5:$C$5,B134,D134) -> 
A135: 63.5 | B135: 1.108284075 | C135: =Burmester($B$3:$C$3,$B$4:$C$4,$B$5:$C$5,$E$3,$E$4,$E$5,B135) ->  | E135: =ThreePosition_Basic2($E$3,$E$5,$B$3:$C$3,$B$5:$C$5,B135,C135) ->  | I135: =ThreePosition_Basic2($E$3,$E$5,$B$3:$C$3,$B$5:$C$5,B135,D135) -> 
A136: 64 | B136: 1.117010721 | C136: =Burmester($B$3:$C$3,$B$4:$C$4,$B$5:$C$5,$E$3,$E$4,$E$5,B136) ->  | E136: =ThreePosition_Basic2($E$3,$E$5,$B$3:$C$3,$B$5:$C$5,B136,C136) ->  | I136: =ThreePosition_Basic2($E$3,$E$5,$B$3:$C$3,$B$5:$C$5,B136,D136) -> 
A137: 64.5 | B137: =A137*PI()/180 -> 1.125737368 | C137: =Burmester($B$3:$C$3,$B$4:$C$4,$B$5:$C$5,$E$3,$E$4,$E$5,B137) ->  | E137: =ThreePosition_Basic2($E$3,$E$5,$B$3:$C$3,$B$5:$C$5,B137,C137) ->  | I137: =ThreePosition_Basic2($E$3,$E$5,$B$3:$C$3,$B$5:$C$5,B137,D137) -> 
A138: 65 | B138: 1.134464014 | C138: =Burmester($B$3:$C$3,$B$4:$C$4,$B$5:$C$5,$E$3,$E$4,$E$5,B138) ->  | E138: =ThreePosition_Basic2($E$3,$E$5,$B$3:$C$3,$B$5:$C$5,B138,C138) ->  | I138: =ThreePosition_Basic2($E$3,$E$5,$B$3:$C$3,$B$5:$C$5,B138,D138) -> 
A139: 65.5 | B139: 1.14319066 | C139: =Burmester($B$3:$C$3,$B$4:$C$4,$B$5:$C$5,$E$3,$E$4,$E$5,B139) ->  | E139: =ThreePosition_Basic2($E$3,$E$5,$B$3:$C$3,$B$5:$C$5,B139,C139) ->  | I139: =ThreePosition_Basic2($E$3,$E$5,$B$3:$C$3,$B$5:$C$5,B139,D139) -> 
A140: 66 | B140: 1.151917306 | C140: =Burmester($B$3:$C$3,$B$4:$C$4,$B$5:$C$5,$E$3,$E$4,$E$5,B140) ->  | E140: =ThreePosition_Basic2($E$3,$E$5,$B$3:$C$3,$B$5:$C$5,B140,C140) ->  | I140: =ThreePosition_Basic2($E$3,$E$5,$B$3:$C$3,$B$5:$C$5,B140,D140) -> 
A141: 66.5 | B141: 1.160643953 | C141: =Burmester($B$3:$C$3,$B$4:$C$4,$B$5:$C$5,$E$3,$E$4,$E$5,B141) ->  | E141: =ThreePosition_Basic2($E$3,$E$5,$B$3:$C$3,$B$5:$C$5,B141,C141) ->  | I141: =ThreePosition_Basic2($E$3,$E$5,$B$3:$C$3,$B$5:$C$5,B141,D141) -> 
A142: 67 | B142: 1.169370599 | C142: =Burmester($B$3:$C$3,$B$4:$C$4,$B$5:$C$5,$E$3,$E$4,$E$5,B142) ->  | E142: =ThreePosition_Basic2($E$3,$E$5,$B$3:$C$3,$B$5:$C$5,B142,C142) ->  | I142: =ThreePosition_Basic2($E$3,$E$5,$B$3:$C$3,$B$5:$C$5,B142,D142) -> 
A143: 67.5 | B143: 1.178097245 | C143: =Burmester($B$3:$C$3,$B$4:$C$4,$B$5:$C$5,$E$3,$E$4,$E$5,B143) ->  | E143: =ThreePosition_Basic2($E$3,$E$5,$B$3:$C$3,$B$5:$C$5,B143,C143) ->  | I143: =ThreePosition_Basic2($E$3,$E$5,$B$3:$C$3,$B$5:$C$5,B143,D143) -> 
A144: 68 | B144: 1.186823891 | C144: =Burmester($B$3:$C$3,$B$4:$C$4,$B$5:$C$5,$E$3,$E$4,$E$5,B144) ->  | E144: =ThreePosition_Basic2($E$3,$E$5,$B$3:$C$3,$B$5:$C$5,B144,C144) ->  | I144: =ThreePosition_Basic2($E$3,$E$5,$B$3:$C$3,$B$5:$C$5,B144,D144) -> 
A145: 68.5 | B145: 1.195550538 | C145: =Burmester($B$3:$C$3,$B$4:$C$4,$B$5:$C$5,$E$3,$E$4,$E$5,B145) ->  | E145: =ThreePosition_Basic2($E$3,$E$5,$B$3:$C$3,$B$5:$C$5,B145,C145) ->  | I145: =ThreePosition_Basic2($E$3,$E$5,$B$3:$C$3,$B$5:$C$5,B145,D145) -> 
A146: 69 | B146: 1.204277184 | C146: =Burmester($B$3:$C$3,$B$4:$C$4,$B$5:$C$5,$E$3,$E$4,$E$5,B146) ->  | E146: =ThreePosition_Basic2($E$3,$E$5,$B$3:$C$3,$B$5:$C$5,B146,C146) ->  | I146: =ThreePosition_Basic2($E$3,$E$5,$B$3:$C$3,$B$5:$C$5,B146,D146) -> 
A147: 69.5 | B147: 1.21300383 | C147: =Burmester($B$3:$C$3,$B$4:$C$4,$B$5:$C$5,$E$3,$E$4,$E$5,B147) ->  | E147: =ThreePosition_Basic2($E$3,$E$5,$B$3:$C$3,$B$5:$C$5,B147,C147) ->  | I147: =ThreePosition_Basic2($E$3,$E$5,$B$3:$C$3,$B$5:$C$5,B147,D147) -> 
A148: 70 | B148: 1.221730476 | C148: =Burmester($B$3:$C$3,$B$4:$C$4,$B$5:$C$5,$E$3,$E$4,$E$5,B148) ->  | E148: =ThreePosition_Basic2($E$3,$E$5,$B$3:$C$3,$B$5:$C$5,B148,C148) ->  | I148: =ThreePosition_Basic2($E$3,$E$5,$B$3:$C$3,$B$5:$C$5,B148,D148) -> 
A149: 70.5 | B149: 1.230457123 | C149: =Burmester($B$3:$C$3,$B$4:$C$4,$B$5:$C$5,$E$3,$E$4,$E$5,B149) ->  | E149: =ThreePosition_Basic2($E$3,$E$5,$B$3:$C$3,$B$5:$C$5,B149,C149) ->  | I149: =ThreePosition_Basic2($E$3,$E$5,$B$3:$C$3,$B$5:$C$5,B149,D149) -> 
A150: 71 | B150: 1.239183769 | C150: =Burmester($B$3:$C$3,$B$4:$C$4,$B$5:$C$5,$E$3,$E$4,$E$5,B150) ->  | E150: =ThreePosition_Basic2($E$3,$E$5,$B$3:$C$3,$B$5:$C$5,B150,C150) ->  | I150: =ThreePosition_Basic2($E$3,$E$5,$B$3:$C$3,$B$5:$C$5,B150,D150) -> 
A151: 71.5 | B151: 1.247910415 | C151: =Burmester($B$3:$C$3,$B$4:$C$4,$B$5:$C$5,$E$3,$E$4,$E$5,B151) ->  | E151: =ThreePosition_Basic2($E$3,$E$5,$B$3:$C$3,$B$5:$C$5,B151,C151) ->  | I151: =ThreePosition_Basic2($E$3,$E$5,$B$3:$C$3,$B$5:$C$5,B151,D151) -> 
A152: 72 | B152: 1.256637061 | C152: =Burmester($B$3:$C$3,$B$4:$C$4,$B$5:$C$5,$E$3,$E$4,$E$5,B152) ->  | E152: =ThreePosition_Basic2($E$3,$E$5,$B$3:$C$3,$B$5:$C$5,B152,C152) ->  | I152: =ThreePosition_Basic2($E$3,$E$5,$B$3:$C$3,$B$5:$C$5,B152,D152) -> 
A153: 72.5 | B153: 1.265363708 | C153: =Burmester($B$3:$C$3,$B$4:$C$4,$B$5:$C$5,$E$3,$E$4,$E$5,B153) ->  | E153: =ThreePosition_Basic2($E$3,$E$5,$B$3:$C$3,$B$5:$C$5,B153,C153) ->  | I153: =ThreePosition_Basic2($E$3,$E$5,$B$3:$C$3,$B$5:$C$5,B153,D153) -> 
A154: 73 | B154: 1.274090354 | C154: =Burmester($B$3:$C$3,$B$4:$C$4,$B$5:$C$5,$E$3,$E$4,$E$5,B154) ->  | E154: =ThreePosition_Basic2($E$3,$E$5,$B$3:$C$3,$B$5:$C$5,B154,C154) ->  | I154: =ThreePosition_Basic2($E$3,$E$5,$B$3:$C$3,$B$5:$C$5,B154,D154) -> 
A155: 73.5 | B155: 1.282817 | C155: =Burmester($B$3:$C$3,$B$4:$C$4,$B$5:$C$5,$E$3,$E$4,$E$5,B155) ->  | E155: =ThreePosition_Basic2($E$3,$E$5,$B$3:$C$3,$B$5:$C$5,B155,C155) ->  | I155: =ThreePosition_Basic2($E$3,$E$5,$B$3:$C$3,$B$5:$C$5,B155,D155) -> 
A156: 74 | B156: 1.291543646 | C156: =Burmester($B$3:$C$3,$B$4:$C$4,$B$5:$C$5,$E$3,$E$4,$E$5,B156) ->  | E156: =ThreePosition_Basic2($E$3,$E$5,$B$3:$C$3,$B$5:$C$5,B156,C156) ->  | I156: =ThreePosition_Basic2($E$3,$E$5,$B$3:$C$3,$B$5:$C$5,B156,D156) -> 
A157: 74.5 | B157: 1.300270293 | C157: =Burmester($B$3:$C$3,$B$4:$C$4,$B$5:$C$5,$E$3,$E$4,$E$5,B157) ->  | E157: =ThreePosition_Basic2($E$3,$E$5,$B$3:$C$3,$B$5:$C$5,B157,C157) ->  | I157: =ThreePosition_Basic2($E$3,$E$5,$B$3:$C$3,$B$5:$C$5,B157,D157) -> 
A158: 75 | B158: 1.308996939 | C158: =Burmester($B$3:$C$3,$B$4:$C$4,$B$5:$C$5,$E$3,$E$4,$E$5,B158) ->  | E158: =ThreePosition_Basic2($E$3,$E$5,$B$3:$C$3,$B$5:$C$5,B158,C158) ->  | I158: =ThreePosition_Basic2($E$3,$E$5,$B$3:$C$3,$B$5:$C$5,B158,D158) -> 
A159: 75.5 | B159: 1.317723585 | C159: =Burmester($B$3:$C$3,$B$4:$C$4,$B$5:$C$5,$E$3,$E$4,$E$5,B159) ->  | E159: =ThreePosition_Basic2($E$3,$E$5,$B$3:$C$3,$B$5:$C$5,B159,C159) ->  | I159: =ThreePosition_Basic2($E$3,$E$5,$B$3:$C$3,$B$5:$C$5,B159,D159) -> 
A160: 76 | B160: 1.326450232 | C160: =Burmester($B$3:$C$3,$B$4:$C$4,$B$5:$C$5,$E$3,$E$4,$E$5,B160) ->  | E160: =ThreePosition_Basic2($E$3,$E$5,$B$3:$C$3,$B$5:$C$5,B160,C160) ->  | I160: =ThreePosition_Basic2($E$3,$E$5,$B$3:$C$3,$B$5:$C$5,B160,D160) -> 
A161: 76.5 | B161: 1.335176878 | C161: =Burmester($B$3:$C$3,$B$4:$C$4,$B$5:$C$5,$E$3,$E$4,$E$5,B161) ->  | E161: =ThreePosition_Basic2($E$3,$E$5,$B$3:$C$3,$B$5:$C$5,B161,C161) ->  | I161: =ThreePosition_Basic2($E$3,$E$5,$B$3:$C$3,$B$5:$C$5,B161,D161) -> 
A162: 77 | B162: 1.343903524 | C162: =Burmester($B$3:$C$3,$B$4:$C$4,$B$5:$C$5,$E$3,$E$4,$E$5,B162) ->  | E162: =ThreePosition_Basic2($E$3,$E$5,$B$3:$C$3,$B$5:$C$5,B162,C162) ->  | I162: =ThreePosition_Basic2($E$3,$E$5,$B$3:$C$3,$B$5:$C$5,B162,D162) -> 
A163: 77.5 | B163: 1.35263017 | C163: =Burmester($B$3:$C$3,$B$4:$C$4,$B$5:$C$5,$E$3,$E$4,$E$5,B163) ->  | E163: =ThreePosition_Basic2($E$3,$E$5,$B$3:$C$3,$B$5:$C$5,B163,C163) ->  | I163: =ThreePosition_Basic2($E$3,$E$5,$B$3:$C$3,$B$5:$C$5,B163,D163) -> 
A164: 78 | B164: 1.361356817 | C164: =Burmester($B$3:$C$3,$B$4:$C$4,$B$5:$C$5,$E$3,$E$4,$E$5,B164) ->  | E164: =ThreePosition_Basic2($E$3,$E$5,$B$3:$C$3,$B$5:$C$5,B164,C164) ->  | I164: =ThreePosition_Basic2($E$3,$E$5,$B$3:$C$3,$B$5:$C$5,B164,D164) -> 
A165: 78.5 | B165: 1.370083463 | C165: =Burmester($B$3:$C$3,$B$4:$C$4,$B$5:$C$5,$E$3,$E$4,$E$5,B165) ->  | E165: =ThreePosition_Basic2($E$3,$E$5,$B$3:$C$3,$B$5:$C$5,B165,C165) ->  | I165: =ThreePosition_Basic2($E$3,$E$5,$B$3:$C$3,$B$5:$C$5,B165,D165) -> 
A166: 79 | B166: 1.378810109 | C166: =Burmester($B$3:$C$3,$B$4:$C$4,$B$5:$C$5,$E$3,$E$4,$E$5,B166) ->  | E166: =ThreePosition_Basic2($E$3,$E$5,$B$3:$C$3,$B$5:$C$5,B166,C166) ->  | I166: =ThreePosition_Basic2($E$3,$E$5,$B$3:$C$3,$B$5:$C$5,B166,D166) -> 
A167: 79.5 | B167: 1.387536755 | C167: =Burmester($B$3:$C$3,$B$4:$C$4,$B$5:$C$5,$E$3,$E$4,$E$5,B167) ->  | E167: =ThreePosition_Basic2($E$3,$E$5,$B$3:$C$3,$B$5:$C$5,B167,C167) ->  | I167: =ThreePosition_Basic2($E$3,$E$5,$B$3:$C$3,$B$5:$C$5,B167,D167) -> 
A168: 80 | B168: 1.396263402 | C168: =Burmester($B$3:$C$3,$B$4:$C$4,$B$5:$C$5,$E$3,$E$4,$E$5,B168) ->  | E168: =ThreePosition_Basic2($E$3,$E$5,$B$3:$C$3,$B$5:$C$5,B168,C168) ->  | I168: =ThreePosition_Basic2($E$3,$E$5,$B$3:$C$3,$B$5:$C$5,B168,D168) -> 
A169: 80.5 | B169: 1.404990048 | C169: =Burmester($B$3:$C$3,$B$4:$C$4,$B$5:$C$5,$E$3,$E$4,$E$5,B169) ->  | E169: =ThreePosition_Basic2($E$3,$E$5,$B$3:$C$3,$B$5:$C$5,B169,C169) ->  | I169: =ThreePosition_Basic2($E$3,$E$5,$B$3:$C$3,$B$5:$C$5,B169,D169) -> 
A170: 81 | B170: 1.413716694 | C170: =Burmester($B$3:$C$3,$B$4:$C$4,$B$5:$C$5,$E$3,$E$4,$E$5,B170) ->  | E170: =ThreePosition_Basic2($E$3,$E$5,$B$3:$C$3,$B$5:$C$5,B170,C170) ->  | I170: =ThreePosition_Basic2($E$3,$E$5,$B$3:$C$3,$B$5:$C$5,B170,D170) -> 
A171: 81.5 | B171: 1.42244334 | C171: =Burmester($B$3:$C$3,$B$4:$C$4,$B$5:$C$5,$E$3,$E$4,$E$5,B171) ->  | E171: =ThreePosition_Basic2($E$3,$E$5,$B$3:$C$3,$B$5:$C$5,B171,C171) ->  | I171: =ThreePosition_Basic2($E$3,$E$5,$B$3:$C$3,$B$5:$C$5,B171,D171) -> 
A172: 82 | B172: 1.431169987 | C172: =Burmester($B$3:$C$3,$B$4:$C$4,$B$5:$C$5,$E$3,$E$4,$E$5,B172) ->  | E172: =ThreePosition_Basic2($E$3,$E$5,$B$3:$C$3,$B$5:$C$5,B172,C172) ->  | I172: =ThreePosition_Basic2($E$3,$E$5,$B$3:$C$3,$B$5:$C$5,B172,D172) -> 
A173: 82.5 | B173: 1.439896633 | C173: =Burmester($B$3:$C$3,$B$4:$C$4,$B$5:$C$5,$E$3,$E$4,$E$5,B173) ->  | E173: =ThreePosition_Basic2($E$3,$E$5,$B$3:$C$3,$B$5:$C$5,B173,C173) ->  | I173: =ThreePosition_Basic2($E$3,$E$5,$B$3:$C$3,$B$5:$C$5,B173,D173) -> 
A174: 83 | B174: 1.448623279 | C174: =Burmester($B$3:$C$3,$B$4:$C$4,$B$5:$C$5,$E$3,$E$4,$E$5,B174) ->  | E174: =ThreePosition_Basic2($E$3,$E$5,$B$3:$C$3,$B$5:$C$5,B174,C174) ->  | I174: =ThreePosition_Basic2($E$3,$E$5,$B$3:$C$3,$B$5:$C$5,B174,D174) -> 
A175: 83.5 | B175: 1.457349925 | C175: =Burmester($B$3:$C$3,$B$4:$C$4,$B$5:$C$5,$E$3,$E$4,$E$5,B175) ->  | E175: =ThreePosition_Basic2($E$3,$E$5,$B$3:$C$3,$B$5:$C$5,B175,C175) ->  | I175: =ThreePosition_Basic2($E$3,$E$5,$B$3:$C$3,$B$5:$C$5,B175,D175) -> 
A176: 84 | B176: 1.466076572 | C176: =Burmester($B$3:$C$3,$B$4:$C$4,$B$5:$C$5,$E$3,$E$4,$E$5,B176) ->  | E176: =ThreePosition_Basic2($E$3,$E$5,$B$3:$C$3,$B$5:$C$5,B176,C176) ->  | I176: =ThreePosition_Basic2($E$3,$E$5,$B$3:$C$3,$B$5:$C$5,B176,D176) -> 
A177: 84.5 | B177: 1.474803218 | C177: =Burmester($B$3:$C$3,$B$4:$C$4,$B$5:$C$5,$E$3,$E$4,$E$5,B177) ->  | E177: =ThreePosition_Basic2($E$3,$E$5,$B$3:$C$3,$B$5:$C$5,B177,C177) ->  | I177: =ThreePosition_Basic2($E$3,$E$5,$B$3:$C$3,$B$5:$C$5,B177,D177) -> 
A178: 85 | B178: 1.483529864 | C178: =Burmester($B$3:$C$3,$B$4:$C$4,$B$5:$C$5,$E$3,$E$4,$E$5,B178) ->  | E178: =ThreePosition_Basic2($E$3,$E$5,$B$3:$C$3,$B$5:$C$5,B178,C178) ->  | I178: =ThreePosition_Basic2($E$3,$E$5,$B$3:$C$3,$B$5:$C$5,B178,D178) -> 
A179: 85.5 | B179: 1.49225651 | C179: =Burmester($B$3:$C$3,$B$4:$C$4,$B$5:$C$5,$E$3,$E$4,$E$5,B179) ->  | E179: =ThreePosition_Basic2($E$3,$E$5,$B$3:$C$3,$B$5:$C$5,B179,C179) ->  | I179: =ThreePosition_Basic2($E$3,$E$5,$B$3:$C$3,$B$5:$C$5,B179,D179) -> 
A180: 86 | B180: 1.500983157 | C180: =Burmester($B$3:$C$3,$B$4:$C$4,$B$5:$C$5,$E$3,$E$4,$E$5,B180) ->  | E180: =ThreePosition_Basic2($E$3,$E$5,$B$3:$C$3,$B$5:$C$5,B180,C180) ->  | I180: =ThreePosition_Basic2($E$3,$E$5,$B$3:$C$3,$B$5:$C$5,B180,D180) -> 
A181: 86.5 | B181: 1.509709803 | C181: =Burmester($B$3:$C$3,$B$4:$C$4,$B$5:$C$5,$E$3,$E$4,$E$5,B181) ->  | E181: =ThreePosition_Basic2($E$3,$E$5,$B$3:$C$3,$B$5:$C$5,B181,C181) ->  | I181: =ThreePosition_Basic2($E$3,$E$5,$B$3:$C$3,$B$5:$C$5,B181,D181) -> 
A182: 87 | B182: 1.518436449 | C182: =Burmester($B$3:$C$3,$B$4:$C$4,$B$5:$C$5,$E$3,$E$4,$E$5,B182) ->  | E182: =ThreePosition_Basic2($E$3,$E$5,$B$3:$C$3,$B$5:$C$5,B182,C182) ->  | I182: =ThreePosition_Basic2($E$3,$E$5,$B$3:$C$3,$B$5:$C$5,B182,D182) -> 
A183: 87.5 | B183: 1.527163095 | C183: =Burmester($B$3:$C$3,$B$4:$C$4,$B$5:$C$5,$E$3,$E$4,$E$5,B183) ->  | E183: =ThreePosition_Basic2($E$3,$E$5,$B$3:$C$3,$B$5:$C$5,B183,C183) ->  | I183: =ThreePosition_Basic2($E$3,$E$5,$B$3:$C$3,$B$5:$C$5,B183,D183) -> 
A184: 88 | B184: 1.535889742 | C184: =Burmester($B$3:$C$3,$B$4:$C$4,$B$5:$C$5,$E$3,$E$4,$E$5,B184) ->  | E184: =ThreePosition_Basic2($E$3,$E$5,$B$3:$C$3,$B$5:$C$5,B184,C184) ->  | I184: =ThreePosition_Basic2($E$3,$E$5,$B$3:$C$3,$B$5:$C$5,B184,D184) -> 
A185: 88.5 | B185: 1.544616388 | C185: =Burmester($B$3:$C$3,$B$4:$C$4,$B$5:$C$5,$E$3,$E$4,$E$5,B185) ->  | E185: =ThreePosition_Basic2($E$3,$E$5,$B$3:$C$3,$B$5:$C$5,B185,C185) ->  | I185: =ThreePosition_Basic2($E$3,$E$5,$B$3:$C$3,$B$5:$C$5,B185,D185) -> 
A186: 89 | B186: 1.553343034 | C186: =Burmester($B$3:$C$3,$B$4:$C$4,$B$5:$C$5,$E$3,$E$4,$E$5,B186) ->  | E186: =ThreePosition_Basic2($E$3,$E$5,$B$3:$C$3,$B$5:$C$5,B186,C186) ->  | I186: =ThreePosition_Basic2($E$3,$E$5,$B$3:$C$3,$B$5:$C$5,B186,D186) -> 
A187: 89.5 | B187: 1.562069681 | C187: =Burmester($B$3:$C$3,$B$4:$C$4,$B$5:$C$5,$E$3,$E$4,$E$5,B187) ->  | E187: =ThreePosition_Basic2($E$3,$E$5,$B$3:$C$3,$B$5:$C$5,B187,C187) ->  | I187: =ThreePosition_Basic2($E$3,$E$5,$B$3:$C$3,$B$5:$C$5,B187,D187) -> 
A188: 90 | B188: 1.570796327 | C188: =Burmester($B$3:$C$3,$B$4:$C$4,$B$5:$C$5,$E$3,$E$4,$E$5,B188) ->  | E188: =ThreePosition_Basic2($E$3,$E$5,$B$3:$C$3,$B$5:$C$5,B188,C188) ->  | I188: =ThreePosition_Basic2($E$3,$E$5,$B$3:$C$3,$B$5:$C$5,B188,D188) -> 
A189: 90.5 | B189: 1.579522973 | C189: =Burmester($B$3:$C$3,$B$4:$C$4,$B$5:$C$5,$E$3,$E$4,$E$5,B189) ->  | E189: =ThreePosition_Basic2($E$3,$E$5,$B$3:$C$3,$B$5:$C$5,B189,C189) ->  | I189: =ThreePosition_Basic2($E$3,$E$5,$B$3:$C$3,$B$5:$C$5,B189,D189) -> 
A190: 91 | B190: 1.588249619 | C190: =Burmester($B$3:$C$3,$B$4:$C$4,$B$5:$C$5,$E$3,$E$4,$E$5,B190) ->  | E190: =ThreePosition_Basic2($E$3,$E$5,$B$3:$C$3,$B$5:$C$5,B190,C190) ->  | I190: =ThreePosition_Basic2($E$3,$E$5,$B$3:$C$3,$B$5:$C$5,B190,D190) -> 
A191: 91.5 | B191: 1.596976266 | C191: =Burmester($B$3:$C$3,$B$4:$C$4,$B$5:$C$5,$E$3,$E$4,$E$5,B191) ->  | E191: =ThreePosition_Basic2($E$3,$E$5,$B$3:$C$3,$B$5:$C$5,B191,C191) ->  | I191: =ThreePosition_Basic2($E$3,$E$5,$B$3:$C$3,$B$5:$C$5,B191,D191) -> 
A192: 92 | B192: 1.605702912 | C192: =Burmester($B$3:$C$3,$B$4:$C$4,$B$5:$C$5,$E$3,$E$4,$E$5,B192) ->  | E192: =ThreePosition_Basic2($E$3,$E$5,$B$3:$C$3,$B$5:$C$5,B192,C192) ->  | I192: =ThreePosition_Basic2($E$3,$E$5,$B$3:$C$3,$B$5:$C$5,B192,D192) -> 
A193: 92.5 | B193: 1.614429558 | C193: =Burmester($B$3:$C$3,$B$4:$C$4,$B$5:$C$5,$E$3,$E$4,$E$5,B193) ->  | E193: =ThreePosition_Basic2($E$3,$E$5,$B$3:$C$3,$B$5:$C$5,B193,C193) ->  | I193: =ThreePosition_Basic2($E$3,$E$5,$B$3:$C$3,$B$5:$C$5,B193,D193) -> 
A194: 93 | B194: 1.623156204 | C194: =Burmester($B$3:$C$3,$B$4:$C$4,$B$5:$C$5,$E$3,$E$4,$E$5,B194) ->  | E194: =ThreePosition_Basic2($E$3,$E$5,$B$3:$C$3,$B$5:$C$5,B194,C194) ->  | I194: =ThreePosition_Basic2($E$3,$E$5,$B$3:$C$3,$B$5:$C$5,B194,D194) -> 
A195: 93.5 | B195: 1.631882851 | C195: =Burmester($B$3:$C$3,$B$4:$C$4,$B$5:$C$5,$E$3,$E$4,$E$5,B195) ->  | E195: =ThreePosition_Basic2($E$3,$E$5,$B$3:$C$3,$B$5:$C$5,B195,C195) ->  | I195: =ThreePosition_Basic2($E$3,$E$5,$B$3:$C$3,$B$5:$C$5,B195,D195) -> 
A196: 94 | B196: 1.640609497 | C196: =Burmester($B$3:$C$3,$B$4:$C$4,$B$5:$C$5,$E$3,$E$4,$E$5,B196) ->  | E196: =ThreePosition_Basic2($E$3,$E$5,$B$3:$C$3,$B$5:$C$5,B196,C196) ->  | I196: =ThreePosition_Basic2($E$3,$E$5,$B$3:$C$3,$B$5:$C$5,B196,D196) -> 
A197: 94.5 | B197: 1.649336143 | C197: =Burmester($B$3:$C$3,$B$4:$C$4,$B$5:$C$5,$E$3,$E$4,$E$5,B197) ->  | E197: =ThreePosition_Basic2($E$3,$E$5,$B$3:$C$3,$B$5:$C$5,B197,C197) ->  | I197: =ThreePosition_Basic2($E$3,$E$5,$B$3:$C$3,$B$5:$C$5,B197,D197) -> 
A198: 95 | B198: 1.658062789 | C198: =Burmester($B$3:$C$3,$B$4:$C$4,$B$5:$C$5,$E$3,$E$4,$E$5,B198) ->  | E198: =ThreePosition_Basic2($E$3,$E$5,$B$3:$C$3,$B$5:$C$5,B198,C198) ->  | I198: =ThreePosition_Basic2($E$3,$E$5,$B$3:$C$3,$B$5:$C$5,B198,D198) -> 
A199: 95.5 | B199: 1.666789436 | C199: =Burmester($B$3:$C$3,$B$4:$C$4,$B$5:$C$5,$E$3,$E$4,$E$5,B199) ->  | E199: =ThreePosition_Basic2($E$3,$E$5,$B$3:$C$3,$B$5:$C$5,B199,C199) ->  | I199: =ThreePosition_Basic2($E$3,$E$5,$B$3:$C$3,$B$5:$C$5,B199,D199) -> 
A200: 96 | B200: 1.675516082 | C200: =Burmester($B$3:$C$3,$B$4:$C$4,$B$5:$C$5,$E$3,$E$4,$E$5,B200) ->  | E200: =ThreePosition_Basic2($E$3,$E$5,$B$3:$C$3,$B$5:$C$5,B200,C200) ->  | I200: =ThreePosition_Basic2($E$3,$E$5,$B$3:$C$3,$B$5:$C$5,B200,D200) -> 
A201: 96.5 | B201: =A201*PI()/180 -> 1.684242728 | C201: =Burmester($B$3:$C$3,$B$4:$C$4,$B$5:$C$5,$E$3,$E$4,$E$5,B201) ->  | E201: =ThreePosition_Basic2($E$3,$E$5,$B$3:$C$3,$B$5:$C$5,B201,C201) ->  | I201: =ThreePosition_Basic2($E$3,$E$5,$B$3:$C$3,$B$5:$C$5,B201,D201) -> 
A202: 97 | B202: 1.692969374 | C202: =Burmester($B$3:$C$3,$B$4:$C$4,$B$5:$C$5,$E$3,$E$4,$E$5,B202) ->  | E202: =ThreePosition_Basic2($E$3,$E$5,$B$3:$C$3,$B$5:$C$5,B202,C202) ->  | I202: =ThreePosition_Basic2($E$3,$E$5,$B$3:$C$3,$B$5:$C$5,B202,D202) -> 
... 566 more rows

Sheet 1235
K2: b2 | L2: (radians) | M2: b41 | N2: b42 | O2: -Z1x | P2: -Z1y | Q2: R1x | R2: R1y | S2: -Z2x | T2: -Z2y | U2: R2x | V2: R12y
A3: d2 | B3: 1.5 | C3: 0.9 | D3: a2 | E3: =F3*PI()/180 -> 0.1745329252 | F3: 10 | K3: 15 | L3: =K3*PI()/180 -> 0.2617993878 | M3: =Burmester(B3:C3,B4:C4,B5:C5,E3,E4,E5,L3) ->  | O3: =ThreePosition_Basic2(E3,E5,B3:C3,B5:C5,L3,M3) ->  | S3: =ThreePosition_Basic2(E3,E5,B3:C3,B5:C5,L3,N3) -> 
A4: d3 | B4: 1.6 | C4: 1.5 | D4: a3 | E4: =F4*PI()/180 -> 0.3490658504 | F4: 20
A5: d4 | B5: 2.3 | C5: 3.5 | D5: a4 | E5: =F5*PI()/180 -> 1.570796327 | F5: 90
A7: b2 | C7: b51 | D7: b52 | E7: -Z1 | G7: R1 | I7: -Z2 | K7: R2
A8: 0 | B8: =A8*PI()/180 -> 0 | C8: =Burmester($B$3:$C$3,$B$4:$C$4,$B$5:$C$5,$E$3,$E$4,$E$5,B8) -> 2.064011629 | D8: 4.718167808e-16 | E8: =ThreePosition_Basic2($E$3,$E$5,$B$3:$C$3,$B$5:$C$5,B8,C8) -> -4.393523536 | F8: 9.022539227 | G8: -2.594185977 | H8: 3.3683805 | I8: =ThreePosition_Basic2($E$3,$E$5,$B$3:$C$3,$B$5:$C$5,B8,D8) -> -26110.45022 | J8: -15666.27013 | K8: 9.362905269e+18 | L8: 6.483252864e+19
A9: 0.5 | B9: =A9*PI()/180 -> 0.00872664626 | C9: =Burmester($B$3:$C$3,$B$4:$C$4,$B$5:$C$5,$E$3,$E$4,$E$5,B9) -> 2.048357681 | D9: 0.03424257487 | E9: =ThreePosition_Basic2($E$3,$E$5,$B$3:$C$3,$B$5:$C$5,B9,C9) -> -4.461129148 | F9: 9.325737438 | G9: -2.613855584 | H9: 3.402072296 | I9: =ThreePosition_Basic2($E$3,$E$5,$B$3:$C$3,$B$5:$C$5,B9,D9) -> -3.364888256 | J9: -1.267709876 | K9: -40.86176293 | L9: 201.8694331
A10: 1 | B10: 0.01745329252 | C10: =Burmester($B$3:$C$3,$B$4:$C$4,$B$5:$C$5,$E$3,$E$4,$E$5,B10) -> 2.032303913 | D10: 0.06894055043 | E10: =ThreePosition_Basic2($E$3,$E$5,$B$3:$C$3,$B$5:$C$5,B10,C10) -> -4.534312747 | F10: 9.658445475 | G10: -2.634224075 | H10: 3.437271924 | I10: =ThreePosition_Basic2($E$3,$E$5,$B$3:$C$3,$B$5:$C$5,B10,D10) -> -3.357197343 | J10: -1.373079384 | K10: -21.82159922 | L10: 101.3203989
A11: 1.5 | B11: 0.02617993878 | C11: =Burmester($B$3:$C$3,$B$4:$C$4,$B$5:$C$5,$E$3,$E$4,$E$5,B11) -> 2.015814232 | D11: 0.1041303812 | E11: =ThreePosition_Basic2($E$3,$E$5,$B$3:$C$3,$B$5:$C$5,B11,C11) -> -4.613952664 | F11: 10.02557066 | G11: -2.655343921 | H11: 3.474121975 | I11: =ThreePosition_Basic2($E$3,$E$5,$B$3:$C$3,$B$5:$C$5,B11,D11) -> -3.348294724 | J11: -1.483639701 | K11: -15.47291658 | L11: 67.76256251
A12: 2 | B12: 0.03490658504 | C12: =Burmester($B$3:$C$3,$B$4:$C$4,$B$5:$C$5,$E$3,$E$4,$E$5,B12) -> 1.998847966 | D12: 0.1398530954 | E12: =ThreePosition_Basic2($E$3,$E$5,$B$3:$C$3,$B$5:$C$5,B12,C12) -> -4.701135667 | F12: 10.4332055 | G12: -2.677274293 | H12: 3.512785059 | I12: =ThreePosition_Basic2($E$3,$E$5,$B$3:$C$3,$B$5:$C$5,B12,D12) -> -3.338055353 | J12: -1.599927634 | K12: -12.2965449 | L12: 50.95081156
A13: 2.5 | B13: 0.0436332313 | C13: =Burmester($B$3:$C$3,$B$4:$C$4,$B$5:$C$5,$E$3,$E$4,$E$5,B13) -> 1.981358988 | D13: 0.176155175 | E13: =ThreePosition_Basic2($E$3,$E$5,$B$3:$C$3,$B$5:$C$5,B13,C13) -> -4.7972245 | F13: 10.88901454 | G13: -2.700082333 | H13: 3.553447815 | I13: =ThreePosition_Basic2($E$3,$E$5,$B$3:$C$3,$B$5:$C$5,B13,D13) -> -3.326334943 | J13: -1.722567932 | K13: -10.38859338 | L13: 40.83596169
A14: 3 | B14: 0.05235987756 | C14: =Burmester($B$3:$C$3,$B$4:$C$4,$B$5:$C$5,$E$3,$E$4,$E$5,B14) -> 1.963294609 | D14: 0.2130896606 | E14: =ThreePosition_Basic2($E$3,$E$5,$B$3:$C$3,$B$5:$C$5,B14,C14) -> -4.903953871 | F14: 11.4027848 | G14: -2.723844747 | H14: 3.596325993 | I14: =ThreePosition_Basic2($E$3,$E$5,$B$3:$C$3,$B$5:$C$5,B14,D14) -> -3.312965722 | J14: -1.852293593 | K14: -9.114376046 | L14: 34.06812454
A15: 3.5 | B15: 0.06108652382 | C15: =Burmester($B$3:$C$3,$B$4:$C$4,$B$5:$C$5,$E$3,$E$4,$E$5,B15) -> 1.944594168 | D15: 0.2507175608 | E15: =ThreePosition_Basic2($E$3,$E$5,$B$3:$C$3,$B$5:$C$5,B15,C15) -> -5.023570057 | F15: 11.98722714 | G15: -2.748649843 | H15: 3.64167097 | I15: =ThreePosition_Basic2($E$3,$E$5,$B$3:$C$3,$B$5:$C$5,B15,D15) -> -3.297750919 | J15: -1.989972381 | K15: -8.201827894 | L15: 29.21146881
A16: 4 | B16: 0.06981317008 | C16: =Burmester($B$3:$C$3,$B$4:$C$4,$B$5:$C$5,$E$3,$E$4,$E$5,B16) -> 1.925187215 | D16: 0.2891096691 | E16: =ThreePosition_Basic2($E$3,$E$5,$B$3:$C$3,$B$5:$C$5,B16,C16) -> -5.159039291 | F16: 12.65917352 | G16: -2.774600153 | H16: 3.689778225 | I16: =ThreePosition_Basic2($E$3,$E$5,$B$3:$C$3,$B$5:$C$5,B16,D16) -> -3.280457521 | J16: -2.136641913 | K16: -7.514856763 | L16: 25.5479037
A17: 4.5 | B17: 0.07853981634 | C17: =Burmester($B$3:$C$3,$B$4:$C$4,$B$5:$C$5,$E$3,$E$4,$E$5,B17) -> 1.904991129 | D17: 0.3283489487 | E17: =ThreePosition_Basic2($E$3,$E$5,$B$3:$C$3,$B$5:$C$5,B17,C17) -> -5.314368333 | F17: 13.44142046 | G17: -2.801815891 | H17: 3.740998532 | I17: =ThreePosition_Basic2($E$3,$E$5,$B$3:$C$3,$B$5:$C$5,B17,D17) -> -3.260806568 | J17: -2.293556912 | K17: -6.977791404 | L17: 22.67829833
A18: 5 | B18: 0.0872664626 | C18: =Burmester($B$3:$C$3,$B$4:$C$4,$B$5:$C$5,$E$3,$E$4,$E$5,B18) -> 1.883907932 | D18: 0.368533712 | E18: =ThreePosition_Basic2($E$3,$E$5,$B$3:$C$3,$B$5:$C$5,B18,C18) -> -5.495115078 | F18: 14.36566769 | G18: -2.830439553 | H18: 3.795753011 | I18: =ThreePosition_Basic2($E$3,$E$5,$B$3:$C$3,$B$5:$C$5,B18,D18) -> -3.238459925 | J18: -2.462254006 | K18: -6.545157467 | L18: 20.36295893
A19: 5.5 | B19: 0.09599310886 | C19: =Burmester($B$3:$C$3,$B$4:$C$4,$B$5:$C$5,$E$3,$E$4,$E$5,B19) -> 1.861819968 | D19: 0.4097819492 | E19: =ThreePosition_Basic2($E$3,$E$5,$B$3:$C$3,$B$5:$C$5,B19,C19) -> -5.709235973 | F19: 15.47739872 | G19: -2.860642196 | H19: 3.854553771 | I19: =ThreePosition_Basic2($E$3,$E$5,$B$3:$C$3,$B$5:$C$5,B19,D19) -> -3.213001862 | J19: -2.64464252 | K19: -6.187935115 | L19: 18.44910469
A20: 6 | B20: 0.1047197551 | C20: =Burmester($B$3:$C$3,$B$4:$C$4,$B$5:$C$5,$E$3,$E$4,$E$5,B20) -> 1.838583867 | D20: 0.4522373553 | E20: =ThreePosition_Basic2($E$3,$E$5,$B$3:$C$3,$B$5:$C$5,B20,C20) -> -5.968563041 | F20: 16.84439334 | G20: -2.892632197 | H20: 3.918032883 | I20: =ThreePosition_Basic2($E$3,$E$5,$B$3:$C$3,$B$5:$C$5,B20,D20) -> -3.183912767 | J20: -2.843134805 | K20: -5.886682219 | L20: 16.834587
A21: 6.5 | B21: 0.1134464014 | C21: =Burmester($B$3:$C$3,$B$4:$C$4,$B$5:$C$5,$E$3,$E$4,$E$5,B21) -> 1.814021938 | D21: 0.4960779467 | E21: =ThreePosition_Basic2($E$3,$E$5,$B$3:$C$3,$B$5:$C$5,B21,C21) -> -6.291536715 | F21: 18.57248684 | G21: -2.92666779 | H21: 3.986984159 | I21: =ThreePosition_Basic2($E$3,$E$5,$B$3:$C$3,$B$5:$C$5,B21,D21) -> -3.150530551 | J21: -3.060838681 | K21: -5.627823621 | L21: 15.44832749
A22: 7 | B22: 0.1221730476 | C22: =Burmester($B$3:$C$3,$B$4:$C$4,$B$5:$C$5,$E$3,$E$4,$E$5,B22) -> 1.787909446 | D22: 0.5415287746 | E22: =ThreePosition_Basic2($E$3,$E$5,$B$3:$C$3,$B$5:$C$5,B22,C22) -> -6.708652898 | F22: 20.83699753 | G22: -2.963075602 | H22: 4.062425308 | I22: =ThreePosition_Basic2($E$3,$E$5,$B$3:$C$3,$B$5:$C$5,B22,D22) -> -3.111992091 | J22: -3.301851225 | K22: -5.401519338 | L22: 14.23910149
A23: 7.5 | B23: 0.1308996939 | C23: =Burmester($B$3:$C$3,$B$4:$C$4,$B$5:$C$5,$E$3,$E$4,$E$5,B23) -> 1.759955149 | D23: 0.5888813939 | E23: =ThreePosition_Basic2($E$3,$E$5,$B$3:$C$3,$B$5:$C$5,B23,C23) -> -7.274410138 | F23: 23.95168734 | G23: -3.002279115 | H23: 4.145693981 | I23: =ThreePosition_Basic2($E$3,$E$5,$B$3:$C$3,$B$5:$C$5,B23,D23) -> -3.067140779 | J23: -3.571725337 | K23: -5.200368146 | L23: 13.16874931
A24: 8 | B24: 0.1396263402 | C24: =Burmester($B$3:$C$3,$B$4:$C$4,$B$5:$C$5,$E$3,$E$4,$E$5,B24) -> 1.72977009 | D24: 0.6385250691 | E24: =ThreePosition_Basic2($E$3,$E$5,$B$3:$C$3,$B$5:$C$5,B24,C24) -> -8.097099603 | F24: 28.54077466 | G24: -3.044844385 | H24: 4.238603126 | I24: =ThreePosition_Basic2($E$3,$E$5,$B$3:$C$3,$B$5:$C$5,B24,D24) -> -3.014373363 | J24: -3.878247343 | K24: -5.018569368 | L24: 12.20783805
A25: 8.5 | B25: 0.1483529864 | C25: =Burmester($B$3:$C$3,$B$4:$C$4,$B$5:$C$5,$E$3,$E$4,$E$5,B25) -> 1.696814649 | D25: 0.6909997213 | E25: =ThreePosition_Basic2($E$3,$E$5,$B$3:$C$3,$B$5:$C$5,B25,C25) -> -9.427984957 | F25: 36.05401602 | G25: -3.091557863 | H25: 4.343707126 | I25: =ThreePosition_Basic2($E$3,$E$5,$B$3:$C$3,$B$5:$C$5,B25,D25) -> -2.951370587 | J25: -4.232812985 | K25: -4.851332273 | L25: 11.33268879
A26: 9 | B26: 0.1570796327 | C26: =Burmester($B$3:$C$3,$B$4:$C$4,$B$5:$C$5,$E$3,$E$4,$E$5,B26) -> 1.660301892 | D26: 0.7470925799 | E26: =ThreePosition_Basic2($E$3,$E$5,$B$3:$C$3,$B$5:$C$5,B26,C26) -> -12.01745604 | F26: 50.82415845 | G26: -3.143568911 | H26: 4.464792501 | I26: =ThreePosition_Basic2($E$3,$E$5,$B$3:$C$3,$B$5:$C$5,B26,D26) -> -2.874585612 | J26: -4.653057079 | K26: -4.694391684 | L26: 10.52308156
A27: 9.5 | B27: 0.1658062789 | C27: =Burmester($B$3:$C$3,$B$4:$C$4,$B$5:$C$5,$E$3,$E$4,$E$5,B27) -> 1.619002946 | D27: 0.8080328059 | E27: =ThreePosition_Basic2($E$3,$E$5,$B$3:$C$3,$B$5:$C$5,B27,C27) -> -19.60560032 | F27: 94.45626874 | G27: -3.202677869 | H27: 4.60787651 | I27: =ThreePosition_Basic2($E$3,$E$5,$B$3:$C$3,$B$5:$C$5,B27,D27) -> -2.778167365 | J27: -5.168423563 | K27: -4.543486001 | L27: 9.760022131
A28: 10 | B28: 0.1745329252 | C28: =Burmester($B$3:$C$3,$B$4:$C$4,$B$5:$C$5,$E$3,$E$4,$E$5,B28) -> 1.570796327 | D28: 0.8759421668 | E28: =ThreePosition_Basic2($E$3,$E$5,$B$3:$C$3,$B$5:$C$5,B28,C28) -> -2285865544078560 | F28: -1.582825406e+16 | G28: -4.5 | H28: 8 | I28: =ThreePosition_Basic2($E$3,$E$5,$B$3:$C$3,$B$5:$C$5,B28,D28) -> -2.651338841 | J28: -5.833820375 | K28: -4.393523536 | L28: 9.022539227
A29: 10.5 | B29: 0.1832595715 | C29: =Burmester($B$3:$C$3,$B$4:$C$4,$B$5:$C$5,$E$3,$E$4,$E$5,B29) -> 1.511368209 | D29: 0.9551347628 | E29: =ThreePosition_Basic2($E$3,$E$5,$B$3:$C$3,$B$5:$C$5,B29,C29) -> 9.913935861 | F29: -76.61670454 | G29: -3.357937002 | H29: 5.013783576 | I29: =ThreePosition_Basic2($E$3,$E$5,$B$3:$C$3,$B$5:$C$5,B29,D29) -> -2.470373729 | J29: -6.771712548 | K29: -4.236523888 | L29: 8.280239654
A30: 11 | B30: 0.1919862177 | C30: =Burmester($B$3:$C$3,$B$4:$C$4,$B$5:$C$5,$E$3,$E$4,$E$5,B30) -> 1.428494364 | D30: 1.05783509 | E30: =ThreePosition_Basic2($E$3,$E$5,$B$3:$C$3,$B$5:$C$5,B30,C30) -> 2.112202218 | F30: -31.89999564 | G30: -3.478712335 | H30: 5.36243974 | I30: =ThreePosition_Basic2($E$3,$E$5,$B$3:$C$3,$B$5:$C$5,B30,D30) -> -2.160477405 | J30: -8.373796106 | K30: -4.052937825 | L30: 7.462390036
A31: 11.5 | B31: 0.200712864 | C31: =Burmester($B$3:$C$3,$B$4:$C$4,$B$5:$C$5,$E$3,$E$4,$E$5,B31) ->  | E31: =ThreePosition_Basic2($E$3,$E$5,$B$3:$C$3,$B$5:$C$5,B31,C31) ->  | I31: =ThreePosition_Basic2($E$3,$E$5,$B$3:$C$3,$B$5:$C$5,B31,D31) -> 
A32: 12 | B32: 0.2094395102 | C32: =Burmester($B$3:$C$3,$B$4:$C$4,$B$5:$C$5,$E$3,$E$4,$E$5,B32) ->  | E32: =ThreePosition_Basic2($E$3,$E$5,$B$3:$C$3,$B$5:$C$5,B32,C32) ->  | I32: =ThreePosition_Basic2($E$3,$E$5,$B$3:$C$3,$B$5:$C$5,B32,D32) -> 
A33: 12.5 | B33: 0.2181661565 | C33: =Burmester($B$3:$C$3,$B$4:$C$4,$B$5:$C$5,$E$3,$E$4,$E$5,B33) ->  | E33: =ThreePosition_Basic2($E$3,$E$5,$B$3:$C$3,$B$5:$C$5,B33,C33) ->  | I33: =ThreePosition_Basic2($E$3,$E$5,$B$3:$C$3,$B$5:$C$5,B33,D33) -> 
A34: 13 | B34: 0.2268928028 | C34: =Burmester($B$3:$C$3,$B$4:$C$4,$B$5:$C$5,$E$3,$E$4,$E$5,B34) ->  | E34: =ThreePosition_Basic2($E$3,$E$5,$B$3:$C$3,$B$5:$C$5,B34,C34) ->  | I34: =ThreePosition_Basic2($E$3,$E$5,$B$3:$C$3,$B$5:$C$5,B34,D34) -> 
A35: 13.5 | B35: 0.235619449 | C35: =Burmester($B$3:$C$3,$B$4:$C$4,$B$5:$C$5,$E$3,$E$4,$E$5,B35) ->  | E35: =ThreePosition_Basic2($E$3,$E$5,$B$3:$C$3,$B$5:$C$5,B35,C35) ->  | I35: =ThreePosition_Basic2($E$3,$E$5,$B$3:$C$3,$B$5:$C$5,B35,D35) -> 
A36: 14 | B36: 0.2443460953 | C36: =Burmester($B$3:$C$3,$B$4:$C$4,$B$5:$C$5,$E$3,$E$4,$E$5,B36) ->  | E36: =ThreePosition_Basic2($E$3,$E$5,$B$3:$C$3,$B$5:$C$5,B36,C36) ->  | I36: =ThreePosition_Basic2($E$3,$E$5,$B$3:$C$3,$B$5:$C$5,B36,D36) -> 
A37: 14.5 | B37: 0.2530727415 | C37: =Burmester($B$3:$C$3,$B$4:$C$4,$B$5:$C$5,$E$3,$E$4,$E$5,B37) ->  | E37: =ThreePosition_Basic2($E$3,$E$5,$B$3:$C$3,$B$5:$C$5,B37,C37) ->  | I37: =ThreePosition_Basic2($E$3,$E$5,$B$3:$C$3,$B$5:$C$5,B37,D37) -> 
A38: 15 | B38: 0.2617993878 | C38: =Burmester($B$3:$C$3,$B$4:$C$4,$B$5:$C$5,$E$3,$E$4,$E$5,B38) ->  | E38: =ThreePosition_Basic2($E$3,$E$5,$B$3:$C$3,$B$5:$C$5,B38,C38) ->  | I38: =ThreePosition_Basic2($E$3,$E$5,$B$3:$C$3,$B$5:$C$5,B38,D38) -> 
A39: 15.5 | B39: 0.2705260341 | C39: =Burmester($B$3:$C$3,$B$4:$C$4,$B$5:$C$5,$E$3,$E$4,$E$5,B39) ->  | E39: =ThreePosition_Basic2($E$3,$E$5,$B$3:$C$3,$B$5:$C$5,B39,C39) ->  | I39: =ThreePosition_Basic2($E$3,$E$5,$B$3:$C$3,$B$5:$C$5,B39,D39) -> 
A40: 16 | B40: 0.2792526803 | C40: =Burmester($B$3:$C$3,$B$4:$C$4,$B$5:$C$5,$E$3,$E$4,$E$5,B40) ->  | E40: =ThreePosition_Basic2($E$3,$E$5,$B$3:$C$3,$B$5:$C$5,B40,C40) ->  | I40: =ThreePosition_Basic2($E$3,$E$5,$B$3:$C$3,$B$5:$C$5,B40,D40) -> 
A41: 16.5 | B41: 0.2879793266 | C41: =Burmester($B$3:$C$3,$B$4:$C$4,$B$5:$C$5,$E$3,$E$4,$E$5,B41) ->  | E41: =ThreePosition_Basic2($E$3,$E$5,$B$3:$C$3,$B$5:$C$5,B41,C41) ->  | I41: =ThreePosition_Basic2($E$3,$E$5,$B$3:$C$3,$B$5:$C$5,B41,D41) -> 
A42: 17 | B42: 0.2967059728 | C42: =Burmester($B$3:$C$3,$B$4:$C$4,$B$5:$C$5,$E$3,$E$4,$E$5,B42) ->  | E42: =ThreePosition_Basic2($E$3,$E$5,$B$3:$C$3,$B$5:$C$5,B42,C42) ->  | I42: =ThreePosition_Basic2($E$3,$E$5,$B$3:$C$3,$B$5:$C$5,B42,D42) -> 
A43: 17.5 | B43: 0.3054326191 | C43: =Burmester($B$3:$C$3,$B$4:$C$4,$B$5:$C$5,$E$3,$E$4,$E$5,B43) ->  | E43: =ThreePosition_Basic2($E$3,$E$5,$B$3:$C$3,$B$5:$C$5,B43,C43) ->  | I43: =ThreePosition_Basic2($E$3,$E$5,$B$3:$C$3,$B$5:$C$5,B43,D43) -> 
A44: 18 | B44: 0.3141592654 | C44: =Burmester($B$3:$C$3,$B$4:$C$4,$B$5:$C$5,$E$3,$E$4,$E$5,B44) ->  | E44: =ThreePosition_Basic2($E$3,$E$5,$B$3:$C$3,$B$5:$C$5,B44,C44) ->  | I44: =ThreePosition_Basic2($E$3,$E$5,$B$3:$C$3,$B$5:$C$5,B44,D44) -> 
A45: 18.5 | B45: 0.3228859116 | C45: =Burmester($B$3:$C$3,$B$4:$C$4,$B$5:$C$5,$E$3,$E$4,$E$5,B45) ->  | E45: =ThreePosition_Basic2($E$3,$E$5,$B$3:$C$3,$B$5:$C$5,B45,C45) ->  | I45: =ThreePosition_Basic2($E$3,$E$5,$B$3:$C$3,$B$5:$C$5,B45,D45) -> 
A46: 19 | B46: 0.3316125579 | C46: =Burmester($B$3:$C$3,$B$4:$C$4,$B$5:$C$5,$E$3,$E$4,$E$5,B46) ->  | E46: =ThreePosition_Basic2($E$3,$E$5,$B$3:$C$3,$B$5:$C$5,B46,C46) ->  | I46: =ThreePosition_Basic2($E$3,$E$5,$B$3:$C$3,$B$5:$C$5,B46,D46) -> 
A47: 19.5 | B47: 0.3403392041 | C47: =Burmester($B$3:$C$3,$B$4:$C$4,$B$5:$C$5,$E$3,$E$4,$E$5,B47) ->  | E47: =ThreePosition_Basic2($E$3,$E$5,$B$3:$C$3,$B$5:$C$5,B47,C47) ->  | I47: =ThreePosition_Basic2($E$3,$E$5,$B$3:$C$3,$B$5:$C$5,B47,D47) -> 
A48: 20 | B48: 0.3490658504 | C48: =Burmester($B$3:$C$3,$B$4:$C$4,$B$5:$C$5,$E$3,$E$4,$E$5,B48) ->  | E48: =ThreePosition_Basic2($E$3,$E$5,$B$3:$C$3,$B$5:$C$5,B48,C48) ->  | I48: =ThreePosition_Basic2($E$3,$E$5,$B$3:$C$3,$B$5:$C$5,B48,D48) -> 
A49: 20.5 | B49: 0.3577924967 | C49: =Burmester($B$3:$C$3,$B$4:$C$4,$B$5:$C$5,$E$3,$E$4,$E$5,B49) ->  | E49: =ThreePosition_Basic2($E$3,$E$5,$B$3:$C$3,$B$5:$C$5,B49,C49) ->  | I49: =ThreePosition_Basic2($E$3,$E$5,$B$3:$C$3,$B$5:$C$5,B49,D49) -> 
A50: 21 | B50: 0.3665191429 | C50: =Burmester($B$3:$C$3,$B$4:$C$4,$B$5:$C$5,$E$3,$E$4,$E$5,B50) ->  | E50: =ThreePosition_Basic2($E$3,$E$5,$B$3:$C$3,$B$5:$C$5,B50,C50) ->  | I50: =ThreePosition_Basic2($E$3,$E$5,$B$3:$C$3,$B$5:$C$5,B50,D50) -> 
A51: 21.5 | B51: 0.3752457892 | C51: =Burmester($B$3:$C$3,$B$4:$C$4,$B$5:$C$5,$E$3,$E$4,$E$5,B51) ->  | E51: =ThreePosition_Basic2($E$3,$E$5,$B$3:$C$3,$B$5:$C$5,B51,C51) ->  | I51: =ThreePosition_Basic2($E$3,$E$5,$B$3:$C$3,$B$5:$C$5,B51,D51) -> 
A52: 22 | B52: 0.3839724354 | C52: =Burmester($B$3:$C$3,$B$4:$C$4,$B$5:$C$5,$E$3,$E$4,$E$5,B52) ->  | E52: =ThreePosition_Basic2($E$3,$E$5,$B$3:$C$3,$B$5:$C$5,B52,C52) ->  | I52: =ThreePosition_Basic2($E$3,$E$5,$B$3:$C$3,$B$5:$C$5,B52,D52) -> 
A53: 22.5 | B53: 0.3926990817 | C53: =Burmester($B$3:$C$3,$B$4:$C$4,$B$5:$C$5,$E$3,$E$4,$E$5,B53) ->  | E53: =ThreePosition_Basic2($E$3,$E$5,$B$3:$C$3,$B$5:$C$5,B53,C53) ->  | I53: =ThreePosition_Basic2($E$3,$E$5,$B$3:$C$3,$B$5:$C$5,B53,D53) -> 
A54: 23 | B54: 0.401425728 | C54: =Burmester($B$3:$C$3,$B$4:$C$4,$B$5:$C$5,$E$3,$E$4,$E$5,B54) ->  | E54: =ThreePosition_Basic2($E$3,$E$5,$B$3:$C$3,$B$5:$C$5,B54,C54) ->  | I54: =ThreePosition_Basic2($E$3,$E$5,$B$3:$C$3,$B$5:$C$5,B54,D54) -> 
A55: 23.5 | B55: 0.4101523742 | C55: =Burmester($B$3:$C$3,$B$4:$C$4,$B$5:$C$5,$E$3,$E$4,$E$5,B55) ->  | E55: =ThreePosition_Basic2($E$3,$E$5,$B$3:$C$3,$B$5:$C$5,B55,C55) ->  | I55: =ThreePosition_Basic2($E$3,$E$5,$B$3:$C$3,$B$5:$C$5,B55,D55) -> 
A56: 24 | B56: 0.4188790205 | C56: =Burmester($B$3:$C$3,$B$4:$C$4,$B$5:$C$5,$E$3,$E$4,$E$5,B56) ->  | E56: =ThreePosition_Basic2($E$3,$E$5,$B$3:$C$3,$B$5:$C$5,B56,C56) ->  | I56: =ThreePosition_Basic2($E$3,$E$5,$B$3:$C$3,$B$5:$C$5,B56,D56) -> 
A57: 24.5 | B57: 0.4276056667 | C57: =Burmester($B$3:$C$3,$B$4:$C$4,$B$5:$C$5,$E$3,$E$4,$E$5,B57) ->  | E57: =ThreePosition_Basic2($E$3,$E$5,$B$3:$C$3,$B$5:$C$5,B57,C57) ->  | I57: =ThreePosition_Basic2($E$3,$E$5,$B$3:$C$3,$B$5:$C$5,B57,D57) -> 
A58: 25 | B58: 0.436332313 | C58: =Burmester($B$3:$C$3,$B$4:$C$4,$B$5:$C$5,$E$3,$E$4,$E$5,B58) ->  | E58: =ThreePosition_Basic2($E$3,$E$5,$B$3:$C$3,$B$5:$C$5,B58,C58) ->  | I58: =ThreePosition_Basic2($E$3,$E$5,$B$3:$C$3,$B$5:$C$5,B58,D58) -> 
A59: 25.5 | B59: 0.4450589593 | C59: =Burmester($B$3:$C$3,$B$4:$C$4,$B$5:$C$5,$E$3,$E$4,$E$5,B59) ->  | E59: =ThreePosition_Basic2($E$3,$E$5,$B$3:$C$3,$B$5:$C$5,B59,C59) ->  | I59: =ThreePosition_Basic2($E$3,$E$5,$B$3:$C$3,$B$5:$C$5,B59,D59) -> 
A60: 26 | B60: 0.4537856055 | C60: =Burmester($B$3:$C$3,$B$4:$C$4,$B$5:$C$5,$E$3,$E$4,$E$5,B60) ->  | E60: =ThreePosition_Basic2($E$3,$E$5,$B$3:$C$3,$B$5:$C$5,B60,C60) ->  | I60: =ThreePosition_Basic2($E$3,$E$5,$B$3:$C$3,$B$5:$C$5,B60,D60) -> 
A61: 26.5 | B61: 0.4625122518 | C61: =Burmester($B$3:$C$3,$B$4:$C$4,$B$5:$C$5,$E$3,$E$4,$E$5,B61) ->  | E61: =ThreePosition_Basic2($E$3,$E$5,$B$3:$C$3,$B$5:$C$5,B61,C61) ->  | I61: =ThreePosition_Basic2($E$3,$E$5,$B$3:$C$3,$B$5:$C$5,B61,D61) -> 
A62: 27 | B62: 0.471238898 | C62: =Burmester($B$3:$C$3,$B$4:$C$4,$B$5:$C$5,$E$3,$E$4,$E$5,B62) ->  | E62: =ThreePosition_Basic2($E$3,$E$5,$B$3:$C$3,$B$5:$C$5,B62,C62) ->  | I62: =ThreePosition_Basic2($E$3,$E$5,$B$3:$C$3,$B$5:$C$5,B62,D62) -> 
A63: 27.5 | B63: 0.4799655443 | C63: =Burmester($B$3:$C$3,$B$4:$C$4,$B$5:$C$5,$E$3,$E$4,$E$5,B63) ->  | E63: =ThreePosition_Basic2($E$3,$E$5,$B$3:$C$3,$B$5:$C$5,B63,C63) ->  | I63: =ThreePosition_Basic2($E$3,$E$5,$B$3:$C$3,$B$5:$C$5,B63,D63) -> 
A64: 28 | B64: 0.4886921906 | C64: =Burmester($B$3:$C$3,$B$4:$C$4,$B$5:$C$5,$E$3,$E$4,$E$5,B64) ->  | E64: =ThreePosition_Basic2($E$3,$E$5,$B$3:$C$3,$B$5:$C$5,B64,C64) ->  | I64: =ThreePosition_Basic2($E$3,$E$5,$B$3:$C$3,$B$5:$C$5,B64,D64) -> 
A65: 28.5 | B65: 0.4974188368 | C65: =Burmester($B$3:$C$3,$B$4:$C$4,$B$5:$C$5,$E$3,$E$4,$E$5,B65) ->  | E65: =ThreePosition_Basic2($E$3,$E$5,$B$3:$C$3,$B$5:$C$5,B65,C65) ->  | I65: =ThreePosition_Basic2($E$3,$E$5,$B$3:$C$3,$B$5:$C$5,B65,D65) -> 
A66: 29 | B66: 0.5061454831 | C66: =Burmester($B$3:$C$3,$B$4:$C$4,$B$5:$C$5,$E$3,$E$4,$E$5,B66) ->  | E66: =ThreePosition_Basic2($E$3,$E$5,$B$3:$C$3,$B$5:$C$5,B66,C66) ->  | I66: =ThreePosition_Basic2($E$3,$E$5,$B$3:$C$3,$B$5:$C$5,B66,D66) -> 
A67: 29.5 | B67: 0.5148721293 | C67: =Burmester($B$3:$C$3,$B$4:$C$4,$B$5:$C$5,$E$3,$E$4,$E$5,B67) ->  | E67: =ThreePosition_Basic2($E$3,$E$5,$B$3:$C$3,$B$5:$C$5,B67,C67) ->  | I67: =ThreePosition_Basic2($E$3,$E$5,$B$3:$C$3,$B$5:$C$5,B67,D67) -> 
A68: 30 | B68: 0.5235987756 | C68: =Burmester($B$3:$C$3,$B$4:$C$4,$B$5:$C$5,$E$3,$E$4,$E$5,B68) ->  | E68: =ThreePosition_Basic2($E$3,$E$5,$B$3:$C$3,$B$5:$C$5,B68,C68) ->  | I68: =ThreePosition_Basic2($E$3,$E$5,$B$3:$C$3,$B$5:$C$5,B68,D68) -> 
A69: 30.5 | B69: 0.5323254219 | C69: =Burmester($B$3:$C$3,$B$4:$C$4,$B$5:$C$5,$E$3,$E$4,$E$5,B69) ->  | E69: =ThreePosition_Basic2($E$3,$E$5,$B$3:$C$3,$B$5:$C$5,B69,C69) ->  | I69: =ThreePosition_Basic2($E$3,$E$5,$B$3:$C$3,$B$5:$C$5,B69,D69) -> 
A70: 31 | B70: 0.5410520681 | C70: =Burmester($B$3:$C$3,$B$4:$C$4,$B$5:$C$5,$E$3,$E$4,$E$5,B70) ->  | E70: =ThreePosition_Basic2($E$3,$E$5,$B$3:$C$3,$B$5:$C$5,B70,C70) ->  | I70: =ThreePosition_Basic2($E$3,$E$5,$B$3:$C$3,$B$5:$C$5,B70,D70) -> 
A71: 31.5 | B71: 0.5497787144 | C71: =Burmester($B$3:$C$3,$B$4:$C$4,$B$5:$C$5,$E$3,$E$4,$E$5,B71) ->  | E71: =ThreePosition_Basic2($E$3,$E$5,$B$3:$C$3,$B$5:$C$5,B71,C71) ->  | I71: =ThreePosition_Basic2($E$3,$E$5,$B$3:$C$3,$B$5:$C$5,B71,D71) -> 
A72: 32 | B72: 0.5585053606 | C72: =Burmester($B$3:$C$3,$B$4:$C$4,$B$5:$C$5,$E$3,$E$4,$E$5,B72) ->  | E72: =ThreePosition_Basic2($E$3,$E$5,$B$3:$C$3,$B$5:$C$5,B72,C72) ->  | I72: =ThreePosition_Basic2($E$3,$E$5,$B$3:$C$3,$B$5:$C$5,B72,D72) -> 
A73: 32.5 | B73: =A73*PI()/180 -> 0.5672320069 | C73: =Burmester($B$3:$C$3,$B$4:$C$4,$B$5:$C$5,$E$3,$E$4,$E$5,B73) ->  | E73: =ThreePosition_Basic2($E$3,$E$5,$B$3:$C$3,$B$5:$C$5,B73,C73) ->  | I73: =ThreePosition_Basic2($E$3,$E$5,$B$3:$C$3,$B$5:$C$5,B73,D73) -> 
A74: 33 | B74: 0.5759586532 | C74: =Burmester($B$3:$C$3,$B$4:$C$4,$B$5:$C$5,$E$3,$E$4,$E$5,B74) ->  | E74: =ThreePosition_Basic2($E$3,$E$5,$B$3:$C$3,$B$5:$C$5,B74,C74) ->  | I74: =ThreePosition_Basic2($E$3,$E$5,$B$3:$C$3,$B$5:$C$5,B74,D74) -> 
A75: 33.5 | B75: 0.5846852994 | C75: =Burmester($B$3:$C$3,$B$4:$C$4,$B$5:$C$5,$E$3,$E$4,$E$5,B75) ->  | E75: =ThreePosition_Basic2($E$3,$E$5,$B$3:$C$3,$B$5:$C$5,B75,C75) ->  | I75: =ThreePosition_Basic2($E$3,$E$5,$B$3:$C$3,$B$5:$C$5,B75,D75) -> 
A76: 34 | B76: 0.5934119457 | C76: =Burmester($B$3:$C$3,$B$4:$C$4,$B$5:$C$5,$E$3,$E$4,$E$5,B76) ->  | E76: =ThreePosition_Basic2($E$3,$E$5,$B$3:$C$3,$B$5:$C$5,B76,C76) ->  | I76: =ThreePosition_Basic2($E$3,$E$5,$B$3:$C$3,$B$5:$C$5,B76,D76) -> 
A77: 34.5 | B77: 0.6021385919 | C77: =Burmester($B$3:$C$3,$B$4:$C$4,$B$5:$C$5,$E$3,$E$4,$E$5,B77) ->  | E77: =ThreePosition_Basic2($E$3,$E$5,$B$3:$C$3,$B$5:$C$5,B77,C77) ->  | I77: =ThreePosition_Basic2($E$3,$E$5,$B$3:$C$3,$B$5:$C$5,B77,D77) -> 
A78: 35 | B78: 0.6108652382 | C78: =Burmester($B$3:$C$3,$B$4:$C$4,$B$5:$C$5,$E$3,$E$4,$E$5,B78) ->  | E78: =ThreePosition_Basic2($E$3,$E$5,$B$3:$C$3,$B$5:$C$5,B78,C78) ->  | I78: =ThreePosition_Basic2($E$3,$E$5,$B$3:$C$3,$B$5:$C$5,B78,D78) -> 
A79: 35.5 | B79: 0.6195918845 | C79: =Burmester($B$3:$C$3,$B$4:$C$4,$B$5:$C$5,$E$3,$E$4,$E$5,B79) ->  | E79: =ThreePosition_Basic2($E$3,$E$5,$B$3:$C$3,$B$5:$C$5,B79,C79) ->  | I79: =ThreePosition_Basic2($E$3,$E$5,$B$3:$C$3,$B$5:$C$5,B79,D79) -> 
A80: 36 | B80: 0.6283185307 | C80: =Burmester($B$3:$C$3,$B$4:$C$4,$B$5:$C$5,$E$3,$E$4,$E$5,B80) ->  | E80: =ThreePosition_Basic2($E$3,$E$5,$B$3:$C$3,$B$5:$C$5,B80,C80) ->  | I80: =ThreePosition_Basic2($E$3,$E$5,$B$3:$C$3,$B$5:$C$5,B80,D80) -> 
A81: 36.5 | B81: 0.637045177 | C81: =Burmester($B$3:$C$3,$B$4:$C$4,$B$5:$C$5,$E$3,$E$4,$E$5,B81) ->  | E81: =ThreePosition_Basic2($E$3,$E$5,$B$3:$C$3,$B$5:$C$5,B81,C81) ->  | I81: =ThreePosition_Basic2($E$3,$E$5,$B$3:$C$3,$B$5:$C$5,B81,D81) -> 
A82: 37 | B82: 0.6457718232 | C82: =Burmester($B$3:$C$3,$B$4:$C$4,$B$5:$C$5,$E$3,$E$4,$E$5,B82) ->  | E82: =ThreePosition_Basic2($E$3,$E$5,$B$3:$C$3,$B$5:$C$5,B82,C82) ->  | I82: =ThreePosition_Basic2($E$3,$E$5,$B$3:$C$3,$B$5:$C$5,B82,D82) -> 
A83: 37.5 | B83: 0.6544984695 | C83: =Burmester($B$3:$C$3,$B$4:$C$4,$B$5:$C$5,$E$3,$E$4,$E$5,B83) ->  | E83: =ThreePosition_Basic2($E$3,$E$5,$B$3:$C$3,$B$5:$C$5,B83,C83) ->  | I83: =ThreePosition_Basic2($E$3,$E$5,$B$3:$C$3,$B$5:$C$5,B83,D83) -> 
A84: 38 | B84: 0.6632251158 | C84: =Burmester($B$3:$C$3,$B$4:$C$4,$B$5:$C$5,$E$3,$E$4,$E$5,B84) ->  | E84: =ThreePosition_Basic2($E$3,$E$5,$B$3:$C$3,$B$5:$C$5,B84,C84) ->  | I84: =ThreePosition_Basic2($E$3,$E$5,$B$3:$C$3,$B$5:$C$5,B84,D84) -> 
A85: 38.5 | B85: 0.671951762 | C85: =Burmester($B$3:$C$3,$B$4:$C$4,$B$5:$C$5,$E$3,$E$4,$E$5,B85) ->  | E85: =ThreePosition_Basic2($E$3,$E$5,$B$3:$C$3,$B$5:$C$5,B85,C85) ->  | I85: =ThreePosition_Basic2($E$3,$E$5,$B$3:$C$3,$B$5:$C$5,B85,D85) -> 
A86: 39 | B86: 0.6806784083 | C86: =Burmester($B$3:$C$3,$B$4:$C$4,$B$5:$C$5,$E$3,$E$4,$E$5,B86) ->  | E86: =ThreePosition_Basic2($E$3,$E$5,$B$3:$C$3,$B$5:$C$5,B86,C86) ->  | I86: =ThreePosition_Basic2($E$3,$E$5,$B$3:$C$3,$B$5:$C$5,B86,D86) -> 
A87: 39.5 | B87: 0.6894050545 | C87: =Burmester($B$3:$C$3,$B$4:$C$4,$B$5:$C$5,$E$3,$E$4,$E$5,B87) ->  | E87: =ThreePosition_Basic2($E$3,$E$5,$B$3:$C$3,$B$5:$C$5,B87,C87) ->  | I87: =ThreePosition_Basic2($E$3,$E$5,$B$3:$C$3,$B$5:$C$5,B87,D87) -> 
A88: 40 | B88: 0.6981317008 | C88: =Burmester($B$3:$C$3,$B$4:$C$4,$B$5:$C$5,$E$3,$E$4,$E$5,B88) ->  | E88: =ThreePosition_Basic2($E$3,$E$5,$B$3:$C$3,$B$5:$C$5,B88,C88) ->  | I88: =ThreePosition_Basic2($E$3,$E$5,$B$3:$C$3,$B$5:$C$5,B88,D88) -> 
A89: 40.5 | B89: 0.7068583471 | C89: =Burmester($B$3:$C$3,$B$4:$C$4,$B$5:$C$5,$E$3,$E$4,$E$5,B89) ->  | E89: =ThreePosition_Basic2($E$3,$E$5,$B$3:$C$3,$B$5:$C$5,B89,C89) ->  | I89: =ThreePosition_Basic2($E$3,$E$5,$B$3:$C$3,$B$5:$C$5,B89,D89) -> 
A90: 41 | B90: 0.7155849933 | C90: =Burmester($B$3:$C$3,$B$4:$C$4,$B$5:$C$5,$E$3,$E$4,$E$5,B90) ->  | E90: =ThreePosition_Basic2($E$3,$E$5,$B$3:$C$3,$B$5:$C$5,B90,C90) ->  | I90: =ThreePosition_Basic2($E$3,$E$5,$B$3:$C$3,$B$5:$C$5,B90,D90) -> 
A91: 41.5 | B91: 0.7243116396 | C91: =Burmester($B$3:$C$3,$B$4:$C$4,$B$5:$C$5,$E$3,$E$4,$E$5,B91) ->  | E91: =ThreePosition_Basic2($E$3,$E$5,$B$3:$C$3,$B$5:$C$5,B91,C91) ->  | I91: =ThreePosition_Basic2($E$3,$E$5,$B$3:$C$3,$B$5:$C$5,B91,D91) -> 
A92: 42 | B92: 0.7330382858 | C92: =Burmester($B$3:$C$3,$B$4:$C$4,$B$5:$C$5,$E$3,$E$4,$E$5,B92) ->  | E92: =ThreePosition_Basic2($E$3,$E$5,$B$3:$C$3,$B$5:$C$5,B92,C92) ->  | I92: =ThreePosition_Basic2($E$3,$E$5,$B$3:$C$3,$B$5:$C$5,B92,D92) -> 
A93: 42.5 | B93: 0.7417649321 | C93: =Burmester($B$3:$C$3,$B$4:$C$4,$B$5:$C$5,$E$3,$E$4,$E$5,B93) ->  | E93: =ThreePosition_Basic2($E$3,$E$5,$B$3:$C$3,$B$5:$C$5,B93,C93) ->  | I93: =ThreePosition_Basic2($E$3,$E$5,$B$3:$C$3,$B$5:$C$5,B93,D93) -> 
A94: 43 | B94: 0.7504915784 | C94: =Burmester($B$3:$C$3,$B$4:$C$4,$B$5:$C$5,$E$3,$E$4,$E$5,B94) ->  | E94: =ThreePosition_Basic2($E$3,$E$5,$B$3:$C$3,$B$5:$C$5,B94,C94) ->  | I94: =ThreePosition_Basic2($E$3,$E$5,$B$3:$C$3,$B$5:$C$5,B94,D94) -> 
A95: 43.5 | B95: 0.7592182246 | C95: =Burmester($B$3:$C$3,$B$4:$C$4,$B$5:$C$5,$E$3,$E$4,$E$5,B95) ->  | E95: =ThreePosition_Basic2($E$3,$E$5,$B$3:$C$3,$B$5:$C$5,B95,C95) ->  | I95: =ThreePosition_Basic2($E$3,$E$5,$B$3:$C$3,$B$5:$C$5,B95,D95) -> 
A96: 44 | B96: 0.7679448709 | C96: =Burmester($B$3:$C$3,$B$4:$C$4,$B$5:$C$5,$E$3,$E$4,$E$5,B96) ->  | E96: =ThreePosition_Basic2($E$3,$E$5,$B$3:$C$3,$B$5:$C$5,B96,C96) ->  | I96: =ThreePosition_Basic2($E$3,$E$5,$B$3:$C$3,$B$5:$C$5,B96,D96) -> 
A97: 44.5 | B97: 0.7766715171 | C97: =Burmester($B$3:$C$3,$B$4:$C$4,$B$5:$C$5,$E$3,$E$4,$E$5,B97) ->  | E97: =ThreePosition_Basic2($E$3,$E$5,$B$3:$C$3,$B$5:$C$5,B97,C97) ->  | I97: =ThreePosition_Basic2($E$3,$E$5,$B$3:$C$3,$B$5:$C$5,B97,D97) -> 
A98: 45 | B98: 0.7853981634 | C98: =Burmester($B$3:$C$3,$B$4:$C$4,$B$5:$C$5,$E$3,$E$4,$E$5,B98) ->  | E98: =ThreePosition_Basic2($E$3,$E$5,$B$3:$C$3,$B$5:$C$5,B98,C98) ->  | I98: =ThreePosition_Basic2($E$3,$E$5,$B$3:$C$3,$B$5:$C$5,B98,D98) -> 
A99: 45.5 | B99: 0.7941248097 | C99: =Burmester($B$3:$C$3,$B$4:$C$4,$B$5:$C$5,$E$3,$E$4,$E$5,B99) ->  | E99: =ThreePosition_Basic2($E$3,$E$5,$B$3:$C$3,$B$5:$C$5,B99,C99) ->  | I99: =ThreePosition_Basic2($E$3,$E$5,$B$3:$C$3,$B$5:$C$5,B99,D99) -> 
A100: 46 | B100: 0.8028514559 | C100: =Burmester($B$3:$C$3,$B$4:$C$4,$B$5:$C$5,$E$3,$E$4,$E$5,B100) ->  | E100: =ThreePosition_Basic2($E$3,$E$5,$B$3:$C$3,$B$5:$C$5,B100,C100) ->  | I100: =ThreePosition_Basic2($E$3,$E$5,$B$3:$C$3,$B$5:$C$5,B100,D100) -> 
A101: 46.5 | B101: 0.8115781022 | C101: =Burmester($B$3:$C$3,$B$4:$C$4,$B$5:$C$5,$E$3,$E$4,$E$5,B101) ->  | E101: =ThreePosition_Basic2($E$3,$E$5,$B$3:$C$3,$B$5:$C$5,B101,C101) ->  | I101: =ThreePosition_Basic2($E$3,$E$5,$B$3:$C$3,$B$5:$C$5,B101,D101) -> 
A102: 47 | B102: 0.8203047484 | C102: =Burmester($B$3:$C$3,$B$4:$C$4,$B$5:$C$5,$E$3,$E$4,$E$5,B102) ->  | E102: =ThreePosition_Basic2($E$3,$E$5,$B$3:$C$3,$B$5:$C$5,B102,C102) ->  | I102: =ThreePosition_Basic2($E$3,$E$5,$B$3:$C$3,$B$5:$C$5,B102,D102) -> 
A103: 47.5 | B103: 0.8290313947 | C103: =Burmester($B$3:$C$3,$B$4:$C$4,$B$5:$C$5,$E$3,$E$4,$E$5,B103) ->  | E103: =ThreePosition_Basic2($E$3,$E$5,$B$3:$C$3,$B$5:$C$5,B103,C103) ->  | I103: =ThreePosition_Basic2($E$3,$E$5,$B$3:$C$3,$B$5:$C$5,B103,D103) -> 
A104: 48 | B104: 0.837758041 | C104: =Burmester($B$3:$C$3,$B$4:$C$4,$B$5:$C$5,$E$3,$E$4,$E$5,B104) ->  | E104: =ThreePosition_Basic2($E$3,$E$5,$B$3:$C$3,$B$5:$C$5,B104,C104) ->  | I104: =ThreePosition_Basic2($E$3,$E$5,$B$3:$C$3,$B$5:$C$5,B104,D104) -> 
A105: 48.5 | B105: 0.8464846872 | C105: =Burmester($B$3:$C$3,$B$4:$C$4,$B$5:$C$5,$E$3,$E$4,$E$5,B105) ->  | E105: =ThreePosition_Basic2($E$3,$E$5,$B$3:$C$3,$B$5:$C$5,B105,C105) ->  | I105: =ThreePosition_Basic2($E$3,$E$5,$B$3:$C$3,$B$5:$C$5,B105,D105) -> 
A106: 49 | B106: 0.8552113335 | C106: =Burmester($B$3:$C$3,$B$4:$C$4,$B$5:$C$5,$E$3,$E$4,$E$5,B106) ->  | E106: =ThreePosition_Basic2($E$3,$E$5,$B$3:$C$3,$B$5:$C$5,B106,C106) ->  | I106: =ThreePosition_Basic2($E$3,$E$5,$B$3:$C$3,$B$5:$C$5,B106,D106) -> 
A107: 49.5 | B107: 0.8639379797 | C107: =Burmester($B$3:$C$3,$B$4:$C$4,$B$5:$C$5,$E$3,$E$4,$E$5,B107) ->  | E107: =ThreePosition_Basic2($E$3,$E$5,$B$3:$C$3,$B$5:$C$5,B107,C107) ->  | I107: =ThreePosition_Basic2($E$3,$E$5,$B$3:$C$3,$B$5:$C$5,B107,D107) -> 
A108: 50 | B108: 0.872664626 | C108: =Burmester($B$3:$C$3,$B$4:$C$4,$B$5:$C$5,$E$3,$E$4,$E$5,B108) ->  | E108: =ThreePosition_Basic2($E$3,$E$5,$B$3:$C$3,$B$5:$C$5,B108,C108) ->  | I108: =ThreePosition_Basic2($E$3,$E$5,$B$3:$C$3,$B$5:$C$5,B108,D108) -> 
A109: 50.5 | B109: 0.8813912723 | C109: =Burmester($B$3:$C$3,$B$4:$C$4,$B$5:$C$5,$E$3,$E$4,$E$5,B109) ->  | E109: =ThreePosition_Basic2($E$3,$E$5,$B$3:$C$3,$B$5:$C$5,B109,C109) ->  | I109: =ThreePosition_Basic2($E$3,$E$5,$B$3:$C$3,$B$5:$C$5,B109,D109) -> 
A110: 51 | B110: 0.8901179185 | C110: =Burmester($B$3:$C$3,$B$4:$C$4,$B$5:$C$5,$E$3,$E$4,$E$5,B110) ->  | E110: =ThreePosition_Basic2($E$3,$E$5,$B$3:$C$3,$B$5:$C$5,B110,C110) ->  | I110: =ThreePosition_Basic2($E$3,$E$5,$B$3:$C$3,$B$5:$C$5,B110,D110) -> 
A111: 51.5 | B111: 0.8988445648 | C111: =Burmester($B$3:$C$3,$B$4:$C$4,$B$5:$C$5,$E$3,$E$4,$E$5,B111) ->  | E111: =ThreePosition_Basic2($E$3,$E$5,$B$3:$C$3,$B$5:$C$5,B111,C111) ->  | I111: =ThreePosition_Basic2($E$3,$E$5,$B$3:$C$3,$B$5:$C$5,B111,D111) -> 
A112: 52 | B112: 0.907571211 | C112: =Burmester($B$3:$C$3,$B$4:$C$4,$B$5:$C$5,$E$3,$E$4,$E$5,B112) ->  | E112: =ThreePosition_Basic2($E$3,$E$5,$B$3:$C$3,$B$5:$C$5,B112,C112) ->  | I112: =ThreePosition_Basic2($E$3,$E$5,$B$3:$C$3,$B$5:$C$5,B112,D112) -> 
A113: 52.5 | B113: 0.9162978573 | C113: =Burmester($B$3:$C$3,$B$4:$C$4,$B$5:$C$5,$E$3,$E$4,$E$5,B113) ->  | E113: =ThreePosition_Basic2($E$3,$E$5,$B$3:$C$3,$B$5:$C$5,B113,C113) ->  | I113: =ThreePosition_Basic2($E$3,$E$5,$B$3:$C$3,$B$5:$C$5,B113,D113) -> 
A114: 53 | B114: 0.9250245036 | C114: =Burmester($B$3:$C$3,$B$4:$C$4,$B$5:$C$5,$E$3,$E$4,$E$5,B114) ->  | E114: =ThreePosition_Basic2($E$3,$E$5,$B$3:$C$3,$B$5:$C$5,B114,C114) ->  | I114: =ThreePosition_Basic2($E$3,$E$5,$B$3:$C$3,$B$5:$C$5,B114,D114) -> 
A115: 53.5 | B115: 0.9337511498 | C115: =Burmester($B$3:$C$3,$B$4:$C$4,$B$5:$C$5,$E$3,$E$4,$E$5,B115) ->  | E115: =ThreePosition_Basic2($E$3,$E$5,$B$3:$C$3,$B$5:$C$5,B115,C115) ->  | I115: =ThreePosition_Basic2($E$3,$E$5,$B$3:$C$3,$B$5:$C$5,B115,D115) -> 
A116: 54 | B116: 0.9424777961 | C116: =Burmester($B$3:$C$3,$B$4:$C$4,$B$5:$C$5,$E$3,$E$4,$E$5,B116) ->  | E116: =ThreePosition_Basic2($E$3,$E$5,$B$3:$C$3,$B$5:$C$5,B116,C116) ->  | I116: =ThreePosition_Basic2($E$3,$E$5,$B$3:$C$3,$B$5:$C$5,B116,D116) -> 
A117: 54.5 | B117: 0.9512044423 | C117: =Burmester($B$3:$C$3,$B$4:$C$4,$B$5:$C$5,$E$3,$E$4,$E$5,B117) ->  | E117: =ThreePosition_Basic2($E$3,$E$5,$B$3:$C$3,$B$5:$C$5,B117,C117) ->  | I117: =ThreePosition_Basic2($E$3,$E$5,$B$3:$C$3,$B$5:$C$5,B117,D117) -> 
A118: 55 | B118: 0.9599310886 | C118: =Burmester($B$3:$C$3,$B$4:$C$4,$B$5:$C$5,$E$3,$E$4,$E$5,B118) ->  | E118: =ThreePosition_Basic2($E$3,$E$5,$B$3:$C$3,$B$5:$C$5,B118,C118) ->  | I118: =ThreePosition_Basic2($E$3,$E$5,$B$3:$C$3,$B$5:$C$5,B118,D118) -> 
A119: 55.5 | B119: 0.9686577349 | C119: =Burmester($B$3:$C$3,$B$4:$C$4,$B$5:$C$5,$E$3,$E$4,$E$5,B119) ->  | E119: =ThreePosition_Basic2($E$3,$E$5,$B$3:$C$3,$B$5:$C$5,B119,C119) ->  | I119: =ThreePosition_Basic2($E$3,$E$5,$B$3:$C$3,$B$5:$C$5,B119,D119) -> 
A120: 56 | B120: 0.9773843811 | C120: =Burmester($B$3:$C$3,$B$4:$C$4,$B$5:$C$5,$E$3,$E$4,$E$5,B120) ->  | E120: =ThreePosition_Basic2($E$3,$E$5,$B$3:$C$3,$B$5:$C$5,B120,C120) ->  | I120: =ThreePosition_Basic2($E$3,$E$5,$B$3:$C$3,$B$5:$C$5,B120,D120) -> 
A121: 56.5 | B121: 0.9861110274 | C121: =Burmester($B$3:$C$3,$B$4:$C$4,$B$5:$C$5,$E$3,$E$4,$E$5,B121) ->  | E121: =ThreePosition_Basic2($E$3,$E$5,$B$3:$C$3,$B$5:$C$5,B121,C121) ->  | I121: =ThreePosition_Basic2($E$3,$E$5,$B$3:$C$3,$B$5:$C$5,B121,D121) -> 
A122: 57 | B122: 0.9948376736 | C122: =Burmester($B$3:$C$3,$B$4:$C$4,$B$5:$C$5,$E$3,$E$4,$E$5,B122) ->  | E122: =ThreePosition_Basic2($E$3,$E$5,$B$3:$C$3,$B$5:$C$5,B122,C122) ->  | I122: =ThreePosition_Basic2($E$3,$E$5,$B$3:$C$3,$B$5:$C$5,B122,D122) -> 
A123: 57.5 | B123: 1.00356432 | C123: =Burmester($B$3:$C$3,$B$4:$C$4,$B$5:$C$5,$E$3,$E$4,$E$5,B123) ->  | E123: =ThreePosition_Basic2($E$3,$E$5,$B$3:$C$3,$B$5:$C$5,B123,C123) ->  | I123: =ThreePosition_Basic2($E$3,$E$5,$B$3:$C$3,$B$5:$C$5,B123,D123) -> 
A124: 58 | B124: 1.012290966 | C124: =Burmester($B$3:$C$3,$B$4:$C$4,$B$5:$C$5,$E$3,$E$4,$E$5,B124) ->  | E124: =ThreePosition_Basic2($E$3,$E$5,$B$3:$C$3,$B$5:$C$5,B124,C124) ->  | I124: =ThreePosition_Basic2($E$3,$E$5,$B$3:$C$3,$B$5:$C$5,B124,D124) -> 
A125: 58.5 | B125: 1.021017612 | C125: =Burmester($B$3:$C$3,$B$4:$C$4,$B$5:$C$5,$E$3,$E$4,$E$5,B125) ->  | E125: =ThreePosition_Basic2($E$3,$E$5,$B$3:$C$3,$B$5:$C$5,B125,C125) ->  | I125: =ThreePosition_Basic2($E$3,$E$5,$B$3:$C$3,$B$5:$C$5,B125,D125) -> 
A126: 59 | B126: 1.029744259 | C126: =Burmester($B$3:$C$3,$B$4:$C$4,$B$5:$C$5,$E$3,$E$4,$E$5,B126) ->  | E126: =ThreePosition_Basic2($E$3,$E$5,$B$3:$C$3,$B$5:$C$5,B126,C126) ->  | I126: =ThreePosition_Basic2($E$3,$E$5,$B$3:$C$3,$B$5:$C$5,B126,D126) -> 
A127: 59.5 | B127: 1.038470905 | C127: =Burmester($B$3:$C$3,$B$4:$C$4,$B$5:$C$5,$E$3,$E$4,$E$5,B127) ->  | E127: =ThreePosition_Basic2($E$3,$E$5,$B$3:$C$3,$B$5:$C$5,B127,C127) ->  | I127: =ThreePosition_Basic2($E$3,$E$5,$B$3:$C$3,$B$5:$C$5,B127,D127) -> 
A128: 60 | B128: 1.047197551 | C128: =Burmester($B$3:$C$3,$B$4:$C$4,$B$5:$C$5,$E$3,$E$4,$E$5,B128) ->  | E128: =ThreePosition_Basic2($E$3,$E$5,$B$3:$C$3,$B$5:$C$5,B128,C128) ->  | I128: =ThreePosition_Basic2($E$3,$E$5,$B$3:$C$3,$B$5:$C$5,B128,D128) -> 
A129: 60.5 | B129: 1.055924197 | C129: =Burmester($B$3:$C$3,$B$4:$C$4,$B$5:$C$5,$E$3,$E$4,$E$5,B129) ->  | E129: =ThreePosition_Basic2($E$3,$E$5,$B$3:$C$3,$B$5:$C$5,B129,C129) ->  | I129: =ThreePosition_Basic2($E$3,$E$5,$B$3:$C$3,$B$5:$C$5,B129,D129) -> 
A130: 61 | B130: 1.064650844 | C130: =Burmester($B$3:$C$3,$B$4:$C$4,$B$5:$C$5,$E$3,$E$4,$E$5,B130) ->  | E130: =ThreePosition_Basic2($E$3,$E$5,$B$3:$C$3,$B$5:$C$5,B130,C130) ->  | I130: =ThreePosition_Basic2($E$3,$E$5,$B$3:$C$3,$B$5:$C$5,B130,D130) -> 
A131: 61.5 | B131: 1.07337749 | C131: =Burmester($B$3:$C$3,$B$4:$C$4,$B$5:$C$5,$E$3,$E$4,$E$5,B131) ->  | E131: =ThreePosition_Basic2($E$3,$E$5,$B$3:$C$3,$B$5:$C$5,B131,C131) ->  | I131: =ThreePosition_Basic2($E$3,$E$5,$B$3:$C$3,$B$5:$C$5,B131,D131) -> 
A132: 62 | B132: 1.082104136 | C132: =Burmester($B$3:$C$3,$B$4:$C$4,$B$5:$C$5,$E$3,$E$4,$E$5,B132) ->  | E132: =ThreePosition_Basic2($E$3,$E$5,$B$3:$C$3,$B$5:$C$5,B132,C132) ->  | I132: =ThreePosition_Basic2($E$3,$E$5,$B$3:$C$3,$B$5:$C$5,B132,D132) -> 
A133: 62.5 | B133: 1.090830782 | C133: =Burmester($B$3:$C$3,$B$4:$C$4,$B$5:$C$5,$E$3,$E$4,$E$5,B133) ->  | E133: =ThreePosition_Basic2($E$3,$E$5,$B$3:$C$3,$B$5:$C$5,B133,C133) ->  | I133: =ThreePosition_Basic2($E$3,$E$5,$B$3:$C$3,$B$5:$C$5,B133,D133) -> 
A134: 63 | B134: 1.099557429 | C134: =Burmester($B$3:$C$3,$B$4:$C$4,$B$5:$C$5,$E$3,$E$4,$E$5,B134) ->  | E134: =ThreePosition_Basic2($E$3,$E$5,$B$3:$C$3,$B$5:$C$5,B134,C134) ->  | I134: =ThreePosition_Basic2($E$3,$E$5,$B$3:$C$3,$B$5:$C$5,B134,D134) -> 
A135: 63.5 | B135: 1.108284075 | C135: =Burmester($B$3:$C$3,$B$4:$C$4,$B$5:$C$5,$E$3,$E$4,$E$5,B135) ->  | E135: =ThreePosition_Basic2($E$3,$E$5,$B$3:$C$3,$B$5:$C$5,B135,C135) ->  | I135: =ThreePosition_Basic2($E$3,$E$5,$B$3:$C$3,$B$5:$C$5,B135,D135) -> 
A136: 64 | B136: 1.117010721 | C136: =Burmester($B$3:$C$3,$B$4:$C$4,$B$5:$C$5,$E$3,$E$4,$E$5,B136) ->  | E136: =ThreePosition_Basic2($E$3,$E$5,$B$3:$C$3,$B$5:$C$5,B136,C136) ->  | I136: =ThreePosition_Basic2($E$3,$E$5,$B$3:$C$3,$B$5:$C$5,B136,D136) -> 
A137: 64.5 | B137: =A137*PI()/180 -> 1.125737368 | C137: =Burmester($B$3:$C$3,$B$4:$C$4,$B$5:$C$5,$E$3,$E$4,$E$5,B137) ->  | E137: =ThreePosition_Basic2($E$3,$E$5,$B$3:$C$3,$B$5:$C$5,B137,C137) ->  | I137: =ThreePosition_Basic2($E$3,$E$5,$B$3:$C$3,$B$5:$C$5,B137,D137) -> 
A138: 65 | B138: 1.134464014 | C138: =Burmester($B$3:$C$3,$B$4:$C$4,$B$5:$C$5,$E$3,$E$4,$E$5,B138) ->  | E138: =ThreePosition_Basic2($E$3,$E$5,$B$3:$C$3,$B$5:$C$5,B138,C138) ->  | I138: =ThreePosition_Basic2($E$3,$E$5,$B$3:$C$3,$B$5:$C$5,B138,D138) -> 
A139: 65.5 | B139: 1.14319066 | C139: =Burmester($B$3:$C$3,$B$4:$C$4,$B$5:$C$5,$E$3,$E$4,$E$5,B139) ->  | E139: =ThreePosition_Basic2($E$3,$E$5,$B$3:$C$3,$B$5:$C$5,B139,C139) ->  | I139: =ThreePosition_Basic2($E$3,$E$5,$B$3:$C$3,$B$5:$C$5,B139,D139) -> 
A140: 66 | B140: 1.151917306 | C140: =Burmester($B$3:$C$3,$B$4:$C$4,$B$5:$C$5,$E$3,$E$4,$E$5,B140) ->  | E140: =ThreePosition_Basic2($E$3,$E$5,$B$3:$C$3,$B$5:$C$5,B140,C140) ->  | I140: =ThreePosition_Basic2($E$3,$E$5,$B$3:$C$3,$B$5:$C$5,B140,D140) -> 
A141: 66.5 | B141: 1.160643953 | C141: =Burmester($B$3:$C$3,$B$4:$C$4,$B$5:$C$5,$E$3,$E$4,$E$5,B141) ->  | E141: =ThreePosition_Basic2($E$3,$E$5,$B$3:$C$3,$B$5:$C$5,B141,C141) ->  | I141: =ThreePosition_Basic2($E$3,$E$5,$B$3:$C$3,$B$5:$C$5,B141,D141) -> 
A142: 67 | B142: 1.169370599 | C142: =Burmester($B$3:$C$3,$B$4:$C$4,$B$5:$C$5,$E$3,$E$4,$E$5,B142) ->  | E142: =ThreePosition_Basic2($E$3,$E$5,$B$3:$C$3,$B$5:$C$5,B142,C142) ->  | I142: =ThreePosition_Basic2($E$3,$E$5,$B$3:$C$3,$B$5:$C$5,B142,D142) -> 
A143: 67.5 | B143: 1.178097245 | C143: =Burmester($B$3:$C$3,$B$4:$C$4,$B$5:$C$5,$E$3,$E$4,$E$5,B143) ->  | E143: =ThreePosition_Basic2($E$3,$E$5,$B$3:$C$3,$B$5:$C$5,B143,C143) ->  | I143: =ThreePosition_Basic2($E$3,$E$5,$B$3:$C$3,$B$5:$C$5,B143,D143) -> 
A144: 68 | B144: 1.186823891 | C144: =Burmester($B$3:$C$3,$B$4:$C$4,$B$5:$C$5,$E$3,$E$4,$E$5,B144) ->  | E144: =ThreePosition_Basic2($E$3,$E$5,$B$3:$C$3,$B$5:$C$5,B144,C144) ->  | I144: =ThreePosition_Basic2($E$3,$E$5,$B$3:$C$3,$B$5:$C$5,B144,D144) -> 
A145: 68.5 | B145: 1.195550538 | C145: =Burmester($B$3:$C$3,$B$4:$C$4,$B$5:$C$5,$E$3,$E$4,$E$5,B145) ->  | E145: =ThreePosition_Basic2($E$3,$E$5,$B$3:$C$3,$B$5:$C$5,B145,C145) ->  | I145: =ThreePosition_Basic2($E$3,$E$5,$B$3:$C$3,$B$5:$C$5,B145,D145) -> 
A146: 69 | B146: 1.204277184 | C146: =Burmester($B$3:$C$3,$B$4:$C$4,$B$5:$C$5,$E$3,$E$4,$E$5,B146) ->  | E146: =ThreePosition_Basic2($E$3,$E$5,$B$3:$C$3,$B$5:$C$5,B146,C146) ->  | I146: =ThreePosition_Basic2($E$3,$E$5,$B$3:$C$3,$B$5:$C$5,B146,D146) -> 
A147: 69.5 | B147: 1.21300383 | C147: =Burmester($B$3:$C$3,$B$4:$C$4,$B$5:$C$5,$E$3,$E$4,$E$5,B147) ->  | E147: =ThreePosition_Basic2($E$3,$E$5,$B$3:$C$3,$B$5:$C$5,B147,C147) ->  | I147: =ThreePosition_Basic2($E$3,$E$5,$B$3:$C$3,$B$5:$C$5,B147,D147) -> 
A148: 70 | B148: 1.221730476 | C148: =Burmester($B$3:$C$3,$B$4:$C$4,$B$5:$C$5,$E$3,$E$4,$E$5,B148) ->  | E148: =ThreePosition_Basic2($E$3,$E$5,$B$3:$C$3,$B$5:$C$5,B148,C148) ->  | I148: =ThreePosition_Basic2($E$3,$E$5,$B$3:$C$3,$B$5:$C$5,B148,D148) -> 
A149: 70.5 | B149: 1.230457123 | C149: =Burmester($B$3:$C$3,$B$4:$C$4,$B$5:$C$5,$E$3,$E$4,$E$5,B149) ->  | E149: =ThreePosition_Basic2($E$3,$E$5,$B$3:$C$3,$B$5:$C$5,B149,C149) ->  | I149: =ThreePosition_Basic2($E$3,$E$5,$B$3:$C$3,$B$5:$C$5,B149,D149) -> 
A150: 71 | B150: 1.239183769 | C150: =Burmester($B$3:$C$3,$B$4:$C$4,$B$5:$C$5,$E$3,$E$4,$E$5,B150) ->  | E150: =ThreePosition_Basic2($E$3,$E$5,$B$3:$C$3,$B$5:$C$5,B150,C150) ->  | I150: =ThreePosition_Basic2($E$3,$E$5,$B$3:$C$3,$B$5:$C$5,B150,D150) -> 
A151: 71.5 | B151: 1.247910415 | C151: =Burmester($B$3:$C$3,$B$4:$C$4,$B$5:$C$5,$E$3,$E$4,$E$5,B151) ->  | E151: =ThreePosition_Basic2($E$3,$E$5,$B$3:$C$3,$B$5:$C$5,B151,C151) ->  | I151: =ThreePosition_Basic2($E$3,$E$5,$B$3:$C$3,$B$5:$C$5,B151,D151) -> 
A152: 72 | B152: 1.256637061 | C152: =Burmester($B$3:$C$3,$B$4:$C$4,$B$5:$C$5,$E$3,$E$4,$E$5,B152) ->  | E152: =ThreePosition_Basic2($E$3,$E$5,$B$3:$C$3,$B$5:$C$5,B152,C152) ->  | I152: =ThreePosition_Basic2($E$3,$E$5,$B$3:$C$3,$B$5:$C$5,B152,D152) -> 
A153: 72.5 | B153: 1.265363708 | C153: =Burmester($B$3:$C$3,$B$4:$C$4,$B$5:$C$5,$E$3,$E$4,$E$5,B153) ->  | E153: =ThreePosition_Basic2($E$3,$E$5,$B$3:$C$3,$B$5:$C$5,B153,C153) ->  | I153: =ThreePosition_Basic2($E$3,$E$5,$B$3:$C$3,$B$5:$C$5,B153,D153) -> 
A154: 73 | B154: 1.274090354 | C154: =Burmester($B$3:$C$3,$B$4:$C$4,$B$5:$C$5,$E$3,$E$4,$E$5,B154) ->  | E154: =ThreePosition_Basic2($E$3,$E$5,$B$3:$C$3,$B$5:$C$5,B154,C154) ->  | I154: =ThreePosition_Basic2($E$3,$E$5,$B$3:$C$3,$B$5:$C$5,B154,D154) -> 
A155: 73.5 | B155: 1.282817 | C155: =Burmester($B$3:$C$3,$B$4:$C$4,$B$5:$C$5,$E$3,$E$4,$E$5,B155) ->  | E155: =ThreePosition_Basic2($E$3,$E$5,$B$3:$C$3,$B$5:$C$5,B155,C155) ->  | I155: =ThreePosition_Basic2($E$3,$E$5,$B$3:$C$3,$B$5:$C$5,B155,D155) -> 
A156: 74 | B156: 1.291543646 | C156: =Burmester($B$3:$C$3,$B$4:$C$4,$B$5:$C$5,$E$3,$E$4,$E$5,B156) ->  | E156: =ThreePosition_Basic2($E$3,$E$5,$B$3:$C$3,$B$5:$C$5,B156,C156) ->  | I156: =ThreePosition_Basic2($E$3,$E$5,$B$3:$C$3,$B$5:$C$5,B156,D156) -> 
A157: 74.5 | B157: 1.300270293 | C157: =Burmester($B$3:$C$3,$B$4:$C$4,$B$5:$C$5,$E$3,$E$4,$E$5,B157) ->  | E157: =ThreePosition_Basic2($E$3,$E$5,$B$3:$C$3,$B$5:$C$5,B157,C157) ->  | I157: =ThreePosition_Basic2($E$3,$E$5,$B$3:$C$3,$B$5:$C$5,B157,D157) -> 
A158: 75 | B158: 1.308996939 | C158: =Burmester($B$3:$C$3,$B$4:$C$4,$B$5:$C$5,$E$3,$E$4,$E$5,B158) ->  | E158: =ThreePosition_Basic2($E$3,$E$5,$B$3:$C$3,$B$5:$C$5,B158,C158) ->  | I158: =ThreePosition_Basic2($E$3,$E$5,$B$3:$C$3,$B$5:$C$5,B158,D158) -> 
A159: 75.5 | B159: 1.317723585 | C159: =Burmester($B$3:$C$3,$B$4:$C$4,$B$5:$C$5,$E$3,$E$4,$E$5,B159) ->  | E159: =ThreePosition_Basic2($E$3,$E$5,$B$3:$C$3,$B$5:$C$5,B159,C159) ->  | I159: =ThreePosition_Basic2($E$3,$E$5,$B$3:$C$3,$B$5:$C$5,B159,D159) -> 
A160: 76 | B160: 1.326450232 | C160: =Burmester($B$3:$C$3,$B$4:$C$4,$B$5:$C$5,$E$3,$E$4,$E$5,B160) ->  | E160: =ThreePosition_Basic2($E$3,$E$5,$B$3:$C$3,$B$5:$C$5,B160,C160) ->  | I160: =ThreePosition_Basic2($E$3,$E$5,$B$3:$C$3,$B$5:$C$5,B160,D160) -> 
A161: 76.5 | B161: 1.335176878 | C161: =Burmester($B$3:$C$3,$B$4:$C$4,$B$5:$C$5,$E$3,$E$4,$E$5,B161) ->  | E161: =ThreePosition_Basic2($E$3,$E$5,$B$3:$C$3,$B$5:$C$5,B161,C161) ->  | I161: =ThreePosition_Basic2($E$3,$E$5,$B$3:$C$3,$B$5:$C$5,B161,D161) -> 
A162: 77 | B162: 1.343903524 | C162: =Burmester($B$3:$C$3,$B$4:$C$4,$B$5:$C$5,$E$3,$E$4,$E$5,B162) ->  | E162: =ThreePosition_Basic2($E$3,$E$5,$B$3:$C$3,$B$5:$C$5,B162,C162) ->  | I162: =ThreePosition_Basic2($E$3,$E$5,$B$3:$C$3,$B$5:$C$5,B162,D162) -> 
A163: 77.5 | B163: 1.35263017 | C163: =Burmester($B$3:$C$3,$B$4:$C$4,$B$5:$C$5,$E$3,$E$4,$E$5,B163) ->  | E163: =ThreePosition_Basic2($E$3,$E$5,$B$3:$C$3,$B$5:$C$5,B163,C163) ->  | I163: =ThreePosition_Basic2($E$3,$E$5,$B$3:$C$3,$B$5:$C$5,B163,D163) -> 
A164: 78 | B164: 1.361356817 | C164: =Burmester($B$3:$C$3,$B$4:$C$4,$B$5:$C$5,$E$3,$E$4,$E$5,B164) ->  | E164: =ThreePosition_Basic2($E$3,$E$5,$B$3:$C$3,$B$5:$C$5,B164,C164) ->  | I164: =ThreePosition_Basic2($E$3,$E$5,$B$3:$C$3,$B$5:$C$5,B164,D164) -> 
A165: 78.5 | B165: 1.370083463 | C165: =Burmester($B$3:$C$3,$B$4:$C$4,$B$5:$C$5,$E$3,$E$4,$E$5,B165) ->  | E165: =ThreePosition_Basic2($E$3,$E$5,$B$3:$C$3,$B$5:$C$5,B165,C165) ->  | I165: =ThreePosition_Basic2($E$3,$E$5,$B$3:$C$3,$B$5:$C$5,B165,D165) -> 
A166: 79 | B166: 1.378810109 | C166: =Burmester($B$3:$C$3,$B$4:$C$4,$B$5:$C$5,$E$3,$E$4,$E$5,B166) ->  | E166: =ThreePosition_Basic2($E$3,$E$5,$B$3:$C$3,$B$5:$C$5,B166,C166) ->  | I166: =ThreePosition_Basic2($E$3,$E$5,$B$3:$C$3,$B$5:$C$5,B166,D166) -> 
A167: 79.5 | B167: 1.387536755 | C167: =Burmester($B$3:$C$3,$B$4:$C$4,$B$5:$C$5,$E$3,$E$4,$E$5,B167) ->  | E167: =ThreePosition_Basic2($E$3,$E$5,$B$3:$C$3,$B$5:$C$5,B167,C167) ->  | I167: =ThreePosition_Basic2($E$3,$E$5,$B$3:$C$3,$B$5:$C$5,B167,D167) -> 
A168: 80 | B168: 1.396263402 | C168: =Burmester($B$3:$C$3,$B$4:$C$4,$B$5:$C$5,$E$3,$E$4,$E$5,B168) ->  | E168: =ThreePosition_Basic2($E$3,$E$5,$B$3:$C$3,$B$5:$C$5,B168,C168) ->  | I168: =ThreePosition_Basic2($E$3,$E$5,$B$3:$C$3,$B$5:$C$5,B168,D168) -> 
A169: 80.5 | B169: 1.404990048 | C169: =Burmester($B$3:$C$3,$B$4:$C$4,$B$5:$C$5,$E$3,$E$4,$E$5,B169) ->  | E169: =ThreePosition_Basic2($E$3,$E$5,$B$3:$C$3,$B$5:$C$5,B169,C169) ->  | I169: =ThreePosition_Basic2($E$3,$E$5,$B$3:$C$3,$B$5:$C$5,B169,D169) -> 
A170: 81 | B170: 1.413716694 | C170: =Burmester($B$3:$C$3,$B$4:$C$4,$B$5:$C$5,$E$3,$E$4,$E$5,B170) ->  | E170: =ThreePosition_Basic2($E$3,$E$5,$B$3:$C$3,$B$5:$C$5,B170,C170) ->  | I170: =ThreePosition_Basic2($E$3,$E$5,$B$3:$C$3,$B$5:$C$5,B170,D170) -> 
A171: 81.5 | B171: 1.42244334 | C171: =Burmester($B$3:$C$3,$B$4:$C$4,$B$5:$C$5,$E$3,$E$4,$E$5,B171) ->  | E171: =ThreePosition_Basic2($E$3,$E$5,$B$3:$C$3,$B$5:$C$5,B171,C171) ->  | I171: =ThreePosition_Basic2($E$3,$E$5,$B$3:$C$3,$B$5:$C$5,B171,D171) -> 
A172: 82 | B172: 1.431169987 | C172: =Burmester($B$3:$C$3,$B$4:$C$4,$B$5:$C$5,$E$3,$E$4,$E$5,B172) ->  | E172: =ThreePosition_Basic2($E$3,$E$5,$B$3:$C$3,$B$5:$C$5,B172,C172) ->  | I172: =ThreePosition_Basic2($E$3,$E$5,$B$3:$C$3,$B$5:$C$5,B172,D172) -> 
A173: 82.5 | B173: 1.439896633 | C173: =Burmester($B$3:$C$3,$B$4:$C$4,$B$5:$C$5,$E$3,$E$4,$E$5,B173) ->  | E173: =ThreePosition_Basic2($E$3,$E$5,$B$3:$C$3,$B$5:$C$5,B173,C173) ->  | I173: =ThreePosition_Basic2($E$3,$E$5,$B$3:$C$3,$B$5:$C$5,B173,D173) -> 
A174: 83 | B174: 1.448623279 | C174: =Burmester($B$3:$C$3,$B$4:$C$4,$B$5:$C$5,$E$3,$E$4,$E$5,B174) ->  | E174: =ThreePosition_Basic2($E$3,$E$5,$B$3:$C$3,$B$5:$C$5,B174,C174) ->  | I174: =ThreePosition_Basic2($E$3,$E$5,$B$3:$C$3,$B$5:$C$5,B174,D174) -> 
A175: 83.5 | B175: 1.457349925 | C175: =Burmester($B$3:$C$3,$B$4:$C$4,$B$5:$C$5,$E$3,$E$4,$E$5,B175) ->  | E175: =ThreePosition_Basic2($E$3,$E$5,$B$3:$C$3,$B$5:$C$5,B175,C175) ->  | I175: =ThreePosition_Basic2($E$3,$E$5,$B$3:$C$3,$B$5:$C$5,B175,D175) -> 
A176: 84 | B176: 1.466076572 | C176: =Burmester($B$3:$C$3,$B$4:$C$4,$B$5:$C$5,$E$3,$E$4,$E$5,B176) ->  | E176: =ThreePosition_Basic2($E$3,$E$5,$B$3:$C$3,$B$5:$C$5,B176,C176) ->  | I176: =ThreePosition_Basic2($E$3,$E$5,$B$3:$C$3,$B$5:$C$5,B176,D176) -> 
A177: 84.5 | B177: 1.474803218 | C177: =Burmester($B$3:$C$3,$B$4:$C$4,$B$5:$C$5,$E$3,$E$4,$E$5,B177) ->  | E177: =ThreePosition_Basic2($E$3,$E$5,$B$3:$C$3,$B$5:$C$5,B177,C177) ->  | I177: =ThreePosition_Basic2($E$3,$E$5,$B$3:$C$3,$B$5:$C$5,B177,D177) -> 
A178: 85 | B178: 1.483529864 | C178: =Burmester($B$3:$C$3,$B$4:$C$4,$B$5:$C$5,$E$3,$E$4,$E$5,B178) ->  | E178: =ThreePosition_Basic2($E$3,$E$5,$B$3:$C$3,$B$5:$C$5,B178,C178) ->  | I178: =ThreePosition_Basic2($E$3,$E$5,$B$3:$C$3,$B$5:$C$5,B178,D178) -> 
A179: 85.5 | B179: 1.49225651 | C179: =Burmester($B$3:$C$3,$B$4:$C$4,$B$5:$C$5,$E$3,$E$4,$E$5,B179) ->  | E179: =ThreePosition_Basic2($E$3,$E$5,$B$3:$C$3,$B$5:$C$5,B179,C179) ->  | I179: =ThreePosition_Basic2($E$3,$E$5,$B$3:$C$3,$B$5:$C$5,B179,D179) -> 
A180: 86 | B180: 1.500983157 | C180: =Burmester($B$3:$C$3,$B$4:$C$4,$B$5:$C$5,$E$3,$E$4,$E$5,B180) ->  | E180: =ThreePosition_Basic2($E$3,$E$5,$B$3:$C$3,$B$5:$C$5,B180,C180) ->  | I180: =ThreePosition_Basic2($E$3,$E$5,$B$3:$C$3,$B$5:$C$5,B180,D180) -> 
A181: 86.5 | B181: 1.509709803 | C181: =Burmester($B$3:$C$3,$B$4:$C$4,$B$5:$C$5,$E$3,$E$4,$E$5,B181) ->  | E181: =ThreePosition_Basic2($E$3,$E$5,$B$3:$C$3,$B$5:$C$5,B181,C181) ->  | I181: =ThreePosition_Basic2($E$3,$E$5,$B$3:$C$3,$B$5:$C$5,B181,D181) -> 
A182: 87 | B182: 1.518436449 | C182: =Burmester($B$3:$C$3,$B$4:$C$4,$B$5:$C$5,$E$3,$E$4,$E$5,B182) ->  | E182: =ThreePosition_Basic2($E$3,$E$5,$B$3:$C$3,$B$5:$C$5,B182,C182) ->  | I182: =ThreePosition_Basic2($E$3,$E$5,$B$3:$C$3,$B$5:$C$5,B182,D182) -> 
A183: 87.5 | B183: 1.527163095 | C183: =Burmester($B$3:$C$3,$B$4:$C$4,$B$5:$C$5,$E$3,$E$4,$E$5,B183) ->  | E183: =ThreePosition_Basic2($E$3,$E$5,$B$3:$C$3,$B$5:$C$5,B183,C183) ->  | I183: =ThreePosition_Basic2($E$3,$E$5,$B$3:$C$3,$B$5:$C$5,B183,D183) -> 
A184: 88 | B184: 1.535889742 | C184: =Burmester($B$3:$C$3,$B$4:$C$4,$B$5:$C$5,$E$3,$E$4,$E$5,B184) ->  | E184: =ThreePosition_Basic2($E$3,$E$5,$B$3:$C$3,$B$5:$C$5,B184,C184) ->  | I184: =ThreePosition_Basic2($E$3,$E$5,$B$3:$C$3,$B$5:$C$5,B184,D184) -> 
A185: 88.5 | B185: 1.544616388 | C185: =Burmester($B$3:$C$3,$B$4:$C$4,$B$5:$C$5,$E$3,$E$4,$E$5,B185) ->  | E185: =ThreePosition_Basic2($E$3,$E$5,$B$3:$C$3,$B$5:$C$5,B185,C185) ->  | I185: =ThreePosition_Basic2($E$3,$E$5,$B$3:$C$3,$B$5:$C$5,B185,D185) -> 
A186: 89 | B186: 1.553343034 | C186: =Burmester($B$3:$C$3,$B$4:$C$4,$B$5:$C$5,$E$3,$E$4,$E$5,B186) ->  | E186: =ThreePosition_Basic2($E$3,$E$5,$B$3:$C$3,$B$5:$C$5,B186,C186) ->  | I186: =ThreePosition_Basic2($E$3,$E$5,$B$3:$C$3,$B$5:$C$5,B186,D186) -> 
A187: 89.5 | B187: 1.562069681 | C187: =Burmester($B$3:$C$3,$B$4:$C$4,$B$5:$C$5,$E$3,$E$4,$E$5,B187) ->  | E187: =ThreePosition_Basic2($E$3,$E$5,$B$3:$C$3,$B$5:$C$5,B187,C187) ->  | I187: =ThreePosition_Basic2($E$3,$E$5,$B$3:$C$3,$B$5:$C$5,B187,D187) -> 
A188: 90 | B188: 1.570796327 | C188: =Burmester($B$3:$C$3,$B$4:$C$4,$B$5:$C$5,$E$3,$E$4,$E$5,B188) ->  | E188: =ThreePosition_Basic2($E$3,$E$5,$B$3:$C$3,$B$5:$C$5,B188,C188) ->  | I188: =ThreePosition_Basic2($E$3,$E$5,$B$3:$C$3,$B$5:$C$5,B188,D188) -> 
A189: 90.5 | B189: 1.579522973 | C189: =Burmester($B$3:$C$3,$B$4:$C$4,$B$5:$C$5,$E$3,$E$4,$E$5,B189) ->  | E189: =ThreePosition_Basic2($E$3,$E$5,$B$3:$C$3,$B$5:$C$5,B189,C189) ->  | I189: =ThreePosition_Basic2($E$3,$E$5,$B$3:$C$3,$B$5:$C$5,B189,D189) -> 
A190: 91 | B190: 1.588249619 | C190: =Burmester($B$3:$C$3,$B$4:$C$4,$B$5:$C$5,$E$3,$E$4,$E$5,B190) ->  | E190: =ThreePosition_Basic2($E$3,$E$5,$B$3:$C$3,$B$5:$C$5,B190,C190) ->  | I190: =ThreePosition_Basic2($E$3,$E$5,$B$3:$C$3,$B$5:$C$5,B190,D190) -> 
A191: 91.5 | B191: 1.596976266 | C191: =Burmester($B$3:$C$3,$B$4:$C$4,$B$5:$C$5,$E$3,$E$4,$E$5,B191) ->  | E191: =ThreePosition_Basic2($E$3,$E$5,$B$3:$C$3,$B$5:$C$5,B191,C191) ->  | I191: =ThreePosition_Basic2($E$3,$E$5,$B$3:$C$3,$B$5:$C$5,B191,D191) -> 
A192: 92 | B192: 1.605702912 | C192: =Burmester($B$3:$C$3,$B$4:$C$4,$B$5:$C$5,$E$3,$E$4,$E$5,B192) ->  | E192: =ThreePosition_Basic2($E$3,$E$5,$B$3:$C$3,$B$5:$C$5,B192,C192) ->  | I192: =ThreePosition_Basic2($E$3,$E$5,$B$3:$C$3,$B$5:$C$5,B192,D192) -> 
A193: 92.5 | B193: 1.614429558 | C193: =Burmester($B$3:$C$3,$B$4:$C$4,$B$5:$C$5,$E$3,$E$4,$E$5,B193) ->  | E193: =ThreePosition_Basic2($E$3,$E$5,$B$3:$C$3,$B$5:$C$5,B193,C193) ->  | I193: =ThreePosition_Basic2($E$3,$E$5,$B$3:$C$3,$B$5:$C$5,B193,D193) -> 
A194: 93 | B194: 1.623156204 | C194: =Burmester($B$3:$C$3,$B$4:$C$4,$B$5:$C$5,$E$3,$E$4,$E$5,B194) ->  | E194: =ThreePosition_Basic2($E$3,$E$5,$B$3:$C$3,$B$5:$C$5,B194,C194) ->  | I194: =ThreePosition_Basic2($E$3,$E$5,$B$3:$C$3,$B$5:$C$5,B194,D194) -> 
A195: 93.5 | B195: 1.631882851 | C195: =Burmester($B$3:$C$3,$B$4:$C$4,$B$5:$C$5,$E$3,$E$4,$E$5,B195) ->  | E195: =ThreePosition_Basic2($E$3,$E$5,$B$3:$C$3,$B$5:$C$5,B195,C195) ->  | I195: =ThreePosition_Basic2($E$3,$E$5,$B$3:$C$3,$B$5:$C$5,B195,D195) -> 
A196: 94 | B196: 1.640609497 | C196: =Burmester($B$3:$C$3,$B$4:$C$4,$B$5:$C$5,$E$3,$E$4,$E$5,B196) ->  | E196: =ThreePosition_Basic2($E$3,$E$5,$B$3:$C$3,$B$5:$C$5,B196,C196) ->  | I196: =ThreePosition_Basic2($E$3,$E$5,$B$3:$C$3,$B$5:$C$5,B196,D196) -> 
A197: 94.5 | B197: 1.649336143 | C197: =Burmester($B$3:$C$3,$B$4:$C$4,$B$5:$C$5,$E$3,$E$4,$E$5,B197) ->  | E197: =ThreePosition_Basic2($E$3,$E$5,$B$3:$C$3,$B$5:$C$5,B197,C197) ->  | I197: =ThreePosition_Basic2($E$3,$E$5,$B$3:$C$3,$B$5:$C$5,B197,D197) -> 
A198: 95 | B198: 1.658062789 | C198: =Burmester($B$3:$C$3,$B$4:$C$4,$B$5:$C$5,$E$3,$E$4,$E$5,B198) ->  | E198: =ThreePosition_Basic2($E$3,$E$5,$B$3:$C$3,$B$5:$C$5,B198,C198) ->  | I198: =ThreePosition_Basic2($E$3,$E$5,$B$3:$C$3,$B$5:$C$5,B198,D198) -> 
A199: 95.5 | B199: 1.666789436 | C199: =Burmester($B$3:$C$3,$B$4:$C$4,$B$5:$C$5,$E$3,$E$4,$E$5,B199) ->  | E199: =ThreePosition_Basic2($E$3,$E$5,$B$3:$C$3,$B$5:$C$5,B199,C199) ->  | I199: =ThreePosition_Basic2($E$3,$E$5,$B$3:$C$3,$B$5:$C$5,B199,D199) -> 
A200: 96 | B200: 1.675516082 | C200: =Burmester($B$3:$C$3,$B$4:$C$4,$B$5:$C$5,$E$3,$E$4,$E$5,B200) ->  | E200: =ThreePosition_Basic2($E$3,$E$5,$B$3:$C$3,$B$5:$C$5,B200,C200) ->  | I200: =ThreePosition_Basic2($E$3,$E$5,$B$3:$C$3,$B$5:$C$5,B200,D200) -> 
A201: 96.5 | B201: =A201*PI()/180 -> 1.684242728 | C201: =Burmester($B$3:$C$3,$B$4:$C$4,$B$5:$C$5,$E$3,$E$4,$E$5,B201) ->  | E201: =ThreePosition_Basic2($E$3,$E$5,$B$3:$C$3,$B$5:$C$5,B201,C201) ->  | I201: =ThreePosition_Basic2($E$3,$E$5,$B$3:$C$3,$B$5:$C$5,B201,D201) -> 
A202: 97 | B202: 1.692969374 | C202: =Burmester($B$3:$C$3,$B$4:$C$4,$B$5:$C$5,$E$3,$E$4,$E$5,B202) ->  | E202: =ThreePosition_Basic2($E$3,$E$5,$B$3:$C$3,$B$5:$C$5,B202,C202) ->  | I202: =ThreePosition_Basic2($E$3,$E$5,$B$3:$C$3,$B$5:$C$5,B202,D202) -> 
... 566 more rows

Sheet 12345 Circle
K2: b2 | L2: (radians) | M2: b41 | N2: b42 | O2: -Z1x | P2: -Z1y | Q2: R1x | R2: R1y | S2: -Z2x | T2: -Z2y | U2: R2x | V2: R12y
A3: d2 | B3: 1.5 | C3: 0.9 | D3: a2 | E3: =F3*PI()/180 -> 0.1745329252 | F3: 10 | J3: 140 | K3: =J3+0.01*J4+0.0001*J5 -> 140.4616 | L3: =K3*PI()/180 -> 2.451517393 | M3: =Burmester(B3:C3,B4:C4,B5:C5,E3,E4,E5,L3) -> 3.766225104 | N3: 3.455648825 | O3: =ThreePosition_Basic2(E3,E5,B3:C3,B5:C5,L3,M3) -> -0.6991456413 | P3: 2.201776846 | Q3: -0.2689102157 | R3: 2.777110859 | S3: =ThreePosition_Basic2(E3,E5,B3:C3,B5:C5,L3,N3) -> -0.8704143971 | T3: 1.99069588 | U3: -0.4157827726 | V3: 2.559817595
A4: d3 | B4: 1.6 | C4: 1.5 | D4: a3 | E4: =F4*PI()/180 -> 0.3490658504 | F4: 20 | J4: 46 | AA4: b2 | AB4: (radians) | AC4: b41 | AD4: b51 | AE4: -Z1x | AF4: -Z1y | AG4: R1x | AH4: R1y
A5: d4 | B5: 2 | C5: 3 | D5: a4 | E5: =F5*PI()/180 -> 1.047197551 | F5: 60 | J5: 16 | K5: =K3 -> 140.4616 | L5: =K5*PI()/180 -> 2.451517393 | M5: =Burmester(B3:C3,B4:C4,B6:C6,E3,E4,E6,L5) -> 5.810130314 | N5: 2.340747544 | O5: =ThreePosition_Basic2(E3,E6,B3:C3,B6:C6,L5,M5) -> -0.3751911121 | P5: 2.897983691 | Q5: -0.01607254033 | R5: 3.47354609 | S5: =ThreePosition_Basic2(E3,E6,B3:C3,B6:C6,L5,N5) -> -0.8704039127 | T5: 1.99070723 | U5: -0.4157736496 | V5: 2.559829387 | AA5: 156.93 | AB5: 2.738945195 | AC5: 4.67026635 | AD5: 2.986578126 | AE5: -0.8183086269 | AF5: 2.836384947 | AG5: -0.3813015689 | AH5: 3.297865346
A6: d5 | B6: 2.3 | C6: 3.5 | D6: a5 | E6: =F6*PI()/180 -> 1.570796327 | F6: 90
O7: =SQRT((O3-O5)^2+(P3-P5)^2) -> 0.7678870413 | P7: =SQRT((O3-S5)^2+(P3-T5)^2) -> 0.2718083484 | Q7: =SQRT((S3-O5)^2+(T3-P5)^2) -> 1.033642721 | R7: =SQRT((S3-S5)^2+(T3-T5)^2) -> 1.545154368e-05
AA9: b2 | AB9: (radians) | AC9: b42 | AD9: b52 | AE9: -Z2x | AF9: -Z2y | AG9: R2x | AH9: R12y
AA10: 140.4614691 | AB10: 2.451515107 | AC10: 3.455664301 | AD10: 2.340750544 | AE10: -0.8704017733 | AF10: 1.990705208 | AG10: -0.4157718867 | AH10: 2.559828376
B11: k1234 | N11: k1235
AA12: Only one four-bar solution exists and this four-bar cannot pass throgh all five specified positions without disassembling and reassembling.
A14: b2 | C14: b41 | D14: b42 | E14: -Z1 | G14: R1 | I14: -Z2 | K14: R2 | N14: b51 | O14: b52 | P14: -Z1 | R14: R1 | T14: -Z2 | V14: R2
A15: 0 | B15: =A15*PI()/180 -> 0 | C15: =Burmester($B$3:$C$3,$B$4:$C$4,$B$5:$C$5,$E$3,$E$4,$E$5,B15) -> 1.368348261 | D15: 5.896775921e-16 | E15: =ThreePosition_Basic2($E$3,$E$5,$B$3:$C$3,$B$5:$C$5,B15,C15) -> -4.393523536 | F15: 9.022539227 | G15: -2.942914628 | H15: 4.147044099 | I15: =ThreePosition_Basic2($E$3,$E$5,$B$3:$C$3,$B$5:$C$5,B15,D15) -> -4.274906632 | J15: 8.229500464 | K15: 8475236477337089 | L15: -5450197813944790 | N15: =Burmester($B$3:$C$3,$B$4:$C$4,$B$6:$C$6,$E$3,$E$4,$E$6,B15) -> 2.064011629 | O15: 4.718167808e-16 | P15: =ThreePosition_Basic2($E$3,$E$6,$B$3:$C$3,$B$6:$C$6,B15,N15) -> -4.393523536 | Q15: 9.022539227 | R15: -2.594185977 | S15: 3.3683805 | T15: =ThreePosition_Basic2($E$3,$E$6,$B$3:$C$3,$B$6:$C$6,B15,O15) -> -26110.45022 | U15: -15666.27013 | V15: 9.362905269e+18 | W15: 6.483252864e+19
A16: 0.5 | B16: =A16*PI()/180 -> 0.00872664626 | C16: =Burmester($B$3:$C$3,$B$4:$C$4,$B$5:$C$5,$E$3,$E$4,$E$5,B16) -> 1.360771504 | D16: 0.02511649765 | E16: =ThreePosition_Basic2($E$3,$E$5,$B$3:$C$3,$B$5:$C$5,B16,C16) -> -4.446458923 | F16: 9.283343804 | G16: -2.961334072 | H16: 4.179304391 | I16: =ThreePosition_Basic2($E$3,$E$5,$B$3:$C$3,$B$5:$C$5,B16,D16) -> -3.468353077 | J16: -1.984055061 | K16: -40.09053195 | L16: 215.5838541 | N16: =Burmester($B$3:$C$3,$B$4:$C$4,$B$6:$C$6,$E$3,$E$4,$E$6,B16) -> 2.048357681 | O16: 0.03424257487 | P16: =ThreePosition_Basic2($E$3,$E$6,$B$3:$C$3,$B$6:$C$6,B16,N16) -> -4.461129148 | Q16: 9.325737438 | R16: -2.613855584 | S16: 3.402072296 | T16: =ThreePosition_Basic2($E$3,$E$6,$B$3:$C$3,$B$6:$C$6,B16,O16) -> -3.364888256 | U16: -1.267709876 | V16: -40.86176293 | W16: 201.8694331
A17: 1 | B17: 0.01745329252 | C17: =Burmester($B$3:$C$3,$B$4:$C$4,$B$5:$C$5,$E$3,$E$4,$E$5,B17) -> 1.352829008 | D17: 0.05063668062 | E17: =ThreePosition_Basic2($E$3,$E$5,$B$3:$C$3,$B$5:$C$5,B17,C17) -> -4.503479756 | F17: 9.569104513 | G17: -2.980392483 | H17: 4.213306865 | I17: =ThreePosition_Basic2($E$3,$E$5,$B$3:$C$3,$B$5:$C$5,B17,D17) -> -3.456328508 | J17: -2.094913868 | K17: -21.49934939 | L17: 107.8632984 | N17: =Burmester($B$3:$C$3,$B$4:$C$4,$B$6:$C$6,$E$3,$E$4,$E$6,B17) -> 2.032303913 | O17: 0.06894055043 | P17: =ThreePosition_Basic2($E$3,$E$6,$B$3:$C$3,$B$6:$C$6,B17,N17) -> -4.534312747 | Q17: 9.658445475 | R17: -2.634224075 | S17: 3.437271924 | T17: =ThreePosition_Basic2($E$3,$E$6,$B$3:$C$3,$B$6:$C$6,B17,O17) -> -3.357197343 | U17: -1.373079384 | V17: -21.82159922 | W17: 101.3203989
A18: 1.5 | B18: 0.02617993878 | C18: =Burmester($B$3:$C$3,$B$4:$C$4,$B$5:$C$5,$E$3,$E$4,$E$5,B18) -> 1.344491382 | D18: 0.07659017714 | E18: =ThreePosition_Basic2($E$3,$E$5,$B$3:$C$3,$B$5:$C$5,B18,C18) -> -4.565215512 | F18: 9.883880197 | G18: -3.000142093 | H18: 4.249219783 | I18: =ThreePosition_Basic2($E$3,$E$5,$B$3:$C$3,$B$5:$C$5,B18,D18) -> -3.443010068 | J18: -2.212335729 | K18: -15.29828419 | L18: 71.91920973 | N18: =Burmester($B$3:$C$3,$B$4:$C$4,$B$6:$C$6,$E$3,$E$4,$E$6,B18) -> 2.015814232 | O18: 0.1041303812 | P18: =ThreePosition_Basic2($E$3,$E$6,$B$3:$C$3,$B$6:$C$6,B18,N18) -> -4.613952664 | Q18: 10.02557066 | R18: -2.655343921 | S18: 3.474121975 | T18: =ThreePosition_Basic2($E$3,$E$6,$B$3:$C$3,$B$6:$C$6,B18,O18) -> -3.348294724 | U18: -1.483639701 | V18: -15.47291658 | W18: 67.76256251
A19: 2 | B19: 0.03490658504 | C19: =Burmester($B$3:$C$3,$B$4:$C$4,$B$5:$C$5,$E$3,$E$4,$E$5,B19) -> 1.335725157 | D19: 0.1030106902 | E19: =ThreePosition_Basic2($E$3,$E$5,$B$3:$C$3,$B$5:$C$5,B19,C19) -> -4.632442472 | F19: 10.23269501 | G19: -3.020642411 | H19: 4.287236881 | I19: =ThreePosition_Basic2($E$3,$E$5,$B$3:$C$3,$B$5:$C$5,B19,D19) -> -3.428254202 | J19: -2.337089152 | K19: -12.19419186 | L19: 53.91742208 | N19: =Burmester($B$3:$C$3,$B$4:$C$4,$B$6:$C$6,$E$3,$E$4,$E$6,B19) -> 1.998847966 | O19: 0.1398530954 | P19: =ThreePosition_Basic2($E$3,$E$6,$B$3:$C$3,$B$6:$C$6,B19,N19) -> -4.701135667 | Q19: 10.4332055 | R19: -2.677274293 | S19: 3.512785059 | T19: =ThreePosition_Basic2($E$3,$E$6,$B$3:$C$3,$B$6:$C$6,B19,O19) -> -3.338055353 | U19: -1.599927634 | V19: -12.2965449 | W19: 50.95081156
A20: 2.5 | B20: 0.0436332313 | C20: =Burmester($B$3:$C$3,$B$4:$C$4,$B$5:$C$5,$E$3,$E$4,$E$5,B20) -> 1.326491962 | D20: 0.1299368242 | E20: =ThreePosition_Basic2($E$3,$E$5,$B$3:$C$3,$B$5:$C$5,B20,C20) -> -4.706130659 | F20: 10.6218497 | G20: -3.041961721 | H20: 4.327582849 | I20: =ThreePosition_Basic2($E$3,$E$5,$B$3:$C$3,$B$5:$C$5,B20,D20) -> -3.411892606 | J20: -2.47008317 | K20: -10.32838607 | L20: 43.09091265 | N20: =Burmester($B$3:$C$3,$B$4:$C$4,$B$6:$C$6,$E$3,$E$4,$E$6,B20) -> 1.981358988 | O20: 0.176155175 | P20: =ThreePosition_Basic2($E$3,$E$6,$B$3:$C$3,$B$6:$C$6,B20,N20) -> -4.7972245 | Q20: 10.88901454 | R20: -2.700082333 | S20: 3.553447815 | T20: =ThreePosition_Basic2($E$3,$E$6,$B$3:$C$3,$B$6:$C$6,B20,O20) -> -3.326334943 | U20: -1.722567932 | V20: -10.38859338 | W20: 40.83596169
A21: 3 | B21: 0.05235987756 | C21: =Burmester($B$3:$C$3,$B$4:$C$4,$B$5:$C$5,$E$3,$E$4,$E$5,B21) -> 1.316747469 | D21: 0.1574131408 | E21: =ThreePosition_Basic2($E$3,$E$5,$B$3:$C$3,$B$5:$C$5,B21,C21) -> -4.787510319 | F21: 11.05936314 | G21: -3.064179005 | H21: 4.37052038 | I21: =ThreePosition_Basic2($E$3,$E$5,$B$3:$C$3,$B$5:$C$5,B21,D21) -> -3.393726117 | J21: -2.61240317 | K21: -9.081247492 | L21: 35.85048296 | N21: =Burmester($B$3:$C$3,$B$4:$C$4,$B$6:$C$6,$E$3,$E$4,$E$6,B21) -> 1.963294609 | O21: 0.2130896606 | P21: =ThreePosition_Basic2($E$3,$E$6,$B$3:$C$3,$B$6:$C$6,B21,N21) -> -4.903953871 | Q21: 11.4027848 | R21: -2.723844747 | S21: 3.596325993 | T21: =ThreePosition_Basic2($E$3,$E$6,$B$3:$C$3,$B$6:$C$6,B21,O21) -> -3.312965722 | U21: -1.852293593 | V21: -9.114376046 | W21: 34.06812454
A22: 3.5 | B22: 0.06108652382 | C22: =Burmester($B$3:$C$3,$B$4:$C$4,$B$5:$C$5,$E$3,$E$4,$E$5,B22) -> 1.306440023 | D22: 0.1854915249 | E22: =ThreePosition_Basic2($E$3,$E$5,$B$3:$C$3,$B$5:$C$5,B22,C22) -> -4.878168281 | F22: 11.55561331 | G22: -3.087386436 | H22: 4.416359387 | I22: =ThreePosition_Basic2($E$3,$E$5,$B$3:$C$3,$B$5:$C$5,B22,D22) -> -3.373516591 | J22: -2.765358751 | K22: -8.187165791 | L22: 30.65770504 | N22: =Burmester($B$3:$C$3,$B$4:$C$4,$B$6:$C$6,$E$3,$E$4,$E$6,B22) -> 1.944594168 | O22: 0.2507175608 | P22: =ThreePosition_Basic2($E$3,$E$6,$B$3:$C$3,$B$6:$C$6,B22,N22) -> -5.023570057 | Q22: 11.98722714 | R22: -2.748649843 | S22: 3.64167097 | T22: =ThreePosition_Basic2($E$3,$E$6,$B$3:$C$3,$B$6:$C$6,B22,O22) -> -3.297750919 | U22: -1.989972381 | V22: -8.201827894 | W22: 29.21146881
A23: 4 | B23: 0.06981317008 | C23: =Burmester($B$3:$C$3,$B$4:$C$4,$B$5:$C$5,$E$3,$E$4,$E$5,B23) -> 1.295508848 | D23: 0.2142329816 | E23: =ThreePosition_Basic2($E$3,$E$5,$B$3:$C$3,$B$5:$C$5,B23,C23) -> -4.980191323 | F23: 12.12429187 | G23: -3.11169267 | H23: 4.465469221 | I23: =ThreePosition_Basic2($E$3,$E$5,$B$3:$C$3,$B$5:$C$5,B23,D23) -> -3.350975925 | J23: -2.930548783 | K23: -7.51327239 | L23: 26.74314806 | N23: =Burmester($B$3:$C$3,$B$4:$C$4,$B$6:$C$6,$E$3,$E$4,$E$6,B23) -> 1.925187215 | O23: 0.2891096691 | P23: =ThreePosition_Basic2($E$3,$E$6,$B$3:$C$3,$B$6:$C$6,B23,N23) -> -5.159039291 | Q23: 12.65917352 | R23: -2.774600153 | S23: 3.689778225 | T23: =ThreePosition_Basic2($E$3,$E$6,$B$3:$C$3,$B$6:$C$6,B23,O23) -> -3.280457521 | U23: -2.136641913 | V23: -7.514856763 | W23: 25.5479037
A24: 4.5 | B24: 0.07853981634 | C24: =Burmester($B$3:$C$3,$B$4:$C$4,$B$5:$C$5,$E$3,$E$4,$E$5,B24) -> 1.283881643 | D24: 0.2437100416 | E24: =ThreePosition_Basic2($E$3,$E$5,$B$3:$C$3,$B$5:$C$5,B24,C24) -> -5.096385887 | F24: 12.78386912 | G24: -3.137227273 | H24: 4.518295202 | I24: =ThreePosition_Basic2($E$3,$E$5,$B$3:$C$3,$B$5:$C$5,B24,D24) -> -3.325750897 | J24: -3.109951596 | K24: -6.985681422 | L24: 23.67910812 | N24: =Burmester($B$3:$C$3,$B$4:$C$4,$B$6:$C$6,$E$3,$E$4,$E$6,B24) -> 1.904991129 | O24: 0.3283489487 | P24: =ThreePosition_Basic2($E$3,$E$6,$B$3:$C$3,$B$6:$C$6,B24,N24) -> -5.314368333 | Q24: 13.44142046 | R24: -2.801815891 | S24: 3.740998532 | T24: =ThreePosition_Basic2($E$3,$E$6,$B$3:$C$3,$B$6:$C$6,B24,O24) -> -3.260806568 | U24: -2.293556912 | V24: -6.977791404 | W24: 22.67829833
A25: 5 | B25: 0.0872664626 | C25: =Burmester($B$3:$C$3,$B$4:$C$4,$B$5:$C$5,$E$3,$E$4,$E$5,B25) -> 1.27147129 | D25: 0.2740100491 | E25: =ThreePosition_Basic2($E$3,$E$5,$B$3:$C$3,$B$5:$C$5,B25,C25) -> -5.230626786 | F25: 13.55992151 | G25: -3.164146794 | H25: 4.575381408 | I25: =ThreePosition_Basic2($E$3,$E$5,$B$3:$C$3,$B$5:$C$5,B25,D25) -> -3.297401794 | J25: -3.306052807 | K25: -6.5599818 | L25: 21.20868394 | N25: =Burmester($B$3:$C$3,$B$4:$C$4,$B$6:$C$6,$E$3,$E$4,$E$6,B25) -> 1.883907932 | O25: 0.368533712 | P25: =ThreePosition_Basic2($E$3,$E$6,$B$3:$C$3,$B$6:$C$6,B25,N25) -> -5.495115078 | Q25: 14.36566769 | R25: -2.830439553 | S25: 3.795753011 | T25: =ThreePosition_Basic2($E$3,$E$6,$B$3:$C$3,$B$6:$C$6,B25,O25) -> -3.238459925 | U25: -2.462254006 | V25: -6.545157467 | W25: 20.36295893
A26: 5.5 | B26: 0.09599310886 | C26: =Burmester($B$3:$C$3,$B$4:$C$4,$B$5:$C$5,$E$3,$E$4,$E$5,B26) -> 1.258171259 | D26: 0.3052397597 | E26: =ThreePosition_Basic2($E$3,$E$5,$B$3:$C$3,$B$5:$C$5,B26,C26) -> -5.388433666 | F26: 14.4889836 | G26: -3.192643293 | H26: 4.637402893 | I26: =ThreePosition_Basic2($E$3,$E$5,$B$3:$C$3,$B$5:$C$5,B26,D26) -> -3.265371481 | J26: -3.52203121 | K26: -6.207818742 | L26: 19.16806217 | N26: =Burmester($B$3:$C$3,$B$4:$C$4,$B$6:$C$6,$E$3,$E$4,$E$6,B26) -> 1.861819968 | O26: 0.4097819492 | P26: =ThreePosition_Basic2($E$3,$E$6,$B$3:$C$3,$B$6:$C$6,B26,N26) -> -5.709235973 | Q26: 15.47739872 | R26: -2.860642196 | S26: 3.854553771 | T26: =ThreePosition_Basic2($E$3,$E$6,$B$3:$C$3,$B$6:$C$6,B26,O26) -> -3.213001862 | U26: -2.64464252 | V26: -6.187935115 | W26: 18.44910469
A27: 6 | B27: 0.1047197551 | C27: =Burmester($B$3:$C$3,$B$4:$C$4,$B$5:$C$5,$E$3,$E$4,$E$5,B27) -> 1.243848993 | D27: 0.3375319526 | E27: =ThreePosition_Basic2($E$3,$E$5,$B$3:$C$3,$B$5:$C$5,B27,C27) -> -5.577971813 | F27: 15.62524217 | G27: -3.222956674 | H27: 4.705212479 | I27: =ThreePosition_Basic2($E$3,$E$5,$B$3:$C$3,$B$5:$C$5,B27,D27) -> -3.228939284 | J27: -3.762037255 | K27: -5.910176482 | L27: 17.44762933 | N27: =Burmester($B$3:$C$3,$B$4:$C$4,$B$6:$C$6,$E$3,$E$4,$E$6,B27) -> 1.838583867 | O27: 0.4522373553 | P27: =ThreePosition_Basic2($E$3,$E$6,$B$3:$C$3,$B$6:$C$6,B27,N27) -> -5.968563041 | Q27: 16.84439334 | R27: -2.892632197 | S27: 3.918032883 | T27: =ThreePosition_Basic2($E$3,$E$6,$B$3:$C$3,$B$6:$C$6,B27,O27) -> -3.183912767 | U27: -2.843134805 | V27: -5.886682219 | W27: 16.834587
A28: 6.5 | B28: 0.1134464014 | C28: =Burmester($B$3:$C$3,$B$4:$C$4,$B$5:$C$5,$E$3,$E$4,$E$5,B28) -> 1.22833609 | D28: 0.3710552505 | E28: =ThreePosition_Basic2($E$3,$E$5,$B$3:$C$3,$B$5:$C$5,B28,C28) -> -5.811896362 | F28: 17.05288316 | G28: -3.255393071 | H28: 4.779910991 | I28: =ThreePosition_Basic2($E$3,$E$5,$B$3:$C$3,$B$5:$C$5,B28,D28) -> -3.187149793 | J28: -4.031625167 | K28: -5.653749496 | L28: 15.97098707 | N28: =Burmester($B$3:$C$3,$B$4:$C$4,$B$6:$C$6,$E$3,$E$4,$E$6,B28) -> 1.814021938 | O28: 0.4960779467 | P28: =ThreePosition_Basic2($E$3,$E$6,$B$3:$C$3,$B$6:$C$6,B28,N28) -> -6.291536715 | Q28: 18.57248684 | R28: -2.92666779 | S28: 3.986984159 | T28: =ThreePosition_Basic2($E$3,$E$6,$B$3:$C$3,$B$6:$C$6,B28,O28) -> -3.150530551 | U28: -3.060838681 | V28: -5.627823621 | W28: 15.44832749
A29: 7 | B29: 0.1221730476 | C29: =Burmester($B$3:$C$3,$B$4:$C$4,$B$5:$C$5,$E$3,$E$4,$E$5,B29) -> 1.211413144 | D29: 0.4060292812 | E29: =ThreePosition_Basic2($E$3,$E$5,$B$3:$C$3,$B$5:$C$5,B29,C29) -> -6.111012959 | F29: 18.91062049 | G29: -3.290353411 | H29: 4.862956907 | I29: =ThreePosition_Basic2($E$3,$E$5,$B$3:$C$3,$B$5:$C$5,B29,D29) -> -3.138698211 | J29: -4.338452251 | K29: -5.428850885 | L29: 14.68289136 | N29: =Burmester($B$3:$C$3,$B$4:$C$4,$B$6:$C$6,$E$3,$E$4,$E$6,B29) -> 1.787909446 | O29: 0.5415287746 | P29: =ThreePosition_Basic2($E$3,$E$6,$B$3:$C$3,$B$6:$C$6,B29,N29) -> -6.708652898 | Q29: 20.83699753 | R29: -2.963075602 | S29: 4.062425308 | T29: =ThreePosition_Basic2($E$3,$E$6,$B$3:$C$3,$B$6:$C$6,B29,O29) -> -3.111992091 | U29: -3.301851225 | V29: -5.401519338 | W29: 14.23910149
A30: 7.5 | B30: 0.1308996939 | C30: =Burmester($B$3:$C$3,$B$4:$C$4,$B$5:$C$5,$E$3,$E$4,$E$5,B30) -> 1.192785185 | D30: 0.4427492302 | E30: =ThreePosition_Basic2($E$3,$E$5,$B$3:$C$3,$B$5:$C$5,B30,C30) -> -6.512273315 | F30: 21.44531242 | G30: -3.328379909 | H30: 4.956345956 | I30: =ThreePosition_Basic2($E$3,$E$5,$B$3:$C$3,$B$5:$C$5,B30,D30) -> -3.08173604 | J30: -4.6934702 | K30: -5.228128021 | L30: 13.5419022 | N30: =Burmester($B$3:$C$3,$B$4:$C$4,$B$6:$C$6,$E$3,$E$4,$E$6,B30) -> 1.759955149 | O30: 0.5888813939 | P30: =ThreePosition_Basic2($E$3,$E$6,$B$3:$C$3,$B$6:$C$6,B30,N30) -> -7.274410138 | Q30: 23.95168734 | R30: -3.002279115 | S30: 4.145693981 | T30: =ThreePosition_Basic2($E$3,$E$6,$B$3:$C$3,$B$6:$C$6,B30,O30) -> -3.067140779 | U30: -3.571725337 | V30: -5.200368146 | W30: 13.16874931
A31: 8 | B31: 0.1396263402 | C31: =Burmester($B$3:$C$3,$B$4:$C$4,$B$5:$C$5,$E$3,$E$4,$E$5,B31) -> 1.172039481 | D31: 0.4816280462 | E31: =ThreePosition_Basic2($E$3,$E$5,$B$3:$C$3,$B$5:$C$5,B31,C31) -> -7.088629487 | F31: 25.14518835 | G31: -3.370236491 | H31: 5.062923531 | I31: =ThreePosition_Basic2($E$3,$E$5,$B$3:$C$3,$B$5:$C$5,B31,D31) -> -3.013519903 | J31: -5.113089331 | K31: -5.045708477 | L31: 12.51558953 | N31: =Burmester($B$3:$C$3,$B$4:$C$4,$B$6:$C$6,$E$3,$E$4,$E$6,B31) -> 1.72977009 | O31: 0.6385250691 | P31: =ThreePosition_Basic2($E$3,$E$6,$B$3:$C$3,$B$6:$C$6,B31,N31) -> -8.097099603 | Q31: 28.54077466 | R31: -3.044844385 | S31: 4.238603126 | T31: =ThreePosition_Basic2($E$3,$E$6,$B$3:$C$3,$B$6:$C$6,B31,O31) -> -3.014373363 | U31: -3.878247343 | V31: -5.018569368 | W31: 12.20783805
A32: 8.5 | B32: 0.1483529864 | C32: =Burmester($B$3:$C$3,$B$4:$C$4,$B$5:$C$5,$E$3,$E$4,$E$5,B32) -> 1.148567134 | D32: 0.5232748385 | E32: =ThreePosition_Basic2($E$3,$E$5,$B$3:$C$3,$B$5:$C$5,B32,C32) -> -8.008232731 | F32: 31.13730883 | G32: -3.417059147 | H32: 5.18697228 | I32: =ThreePosition_Basic2($E$3,$E$5,$B$3:$C$3,$B$5:$C$5,B32,D32) -> -2.929722013 | J32: -5.623450872 | K32: -4.876549073 | L32: 11.57704571 | N32: =Burmester($B$3:$C$3,$B$4:$C$4,$B$6:$C$6,$E$3,$E$4,$E$6,B32) -> 1.696814649 | O32: 0.6909997213 | P32: =ThreePosition_Basic2($E$3,$E$6,$B$3:$C$3,$B$6:$C$6,B32,N32) -> -9.427984957 | Q32: 36.05401602 | R32: -3.091557863 | S32: 4.343707126 | T32: =ThreePosition_Basic2($E$3,$E$6,$B$3:$C$3,$B$6:$C$6,B32,O32) -> -2.951370587 | U32: -4.232812985 | V32: -4.851332273 | W32: 11.33268879
A33: 9 | B33: 0.1570796327 | C33: =Burmester($B$3:$C$3,$B$4:$C$4,$B$5:$C$5,$E$3,$E$4,$E$5,B33) -> 1.121401345 | D33: 0.5686566188 | E33: =ThreePosition_Basic2($E$3,$E$5,$B$3:$C$3,$B$5:$C$5,B33,C33) -> -9.76998527 | F33: 42.76975248 | G33: -3.470668301 | H33: 5.335440344 | I33: =ThreePosition_Basic2($E$3,$E$5,$B$3:$C$3,$B$5:$C$5,B33,D33) -> -2.822915714 | J33: -6.269862959 | K33: -4.71578976 | L33: 10.70172402 | N33: =Burmester($B$3:$C$3,$B$4:$C$4,$B$6:$C$6,$E$3,$E$4,$E$6,B33) -> 1.660301892 | O33: 0.7470925799 | P33: =ThreePosition_Basic2($E$3,$E$6,$B$3:$C$3,$B$6:$C$6,B33,N33) -> -12.01745604 | Q33: 50.82415845 | R33: -3.143568911 | S33: 4.464792501 | T33: =ThreePosition_Basic2($E$3,$E$6,$B$3:$C$3,$B$6:$C$6,B33,O33) -> -2.874585612 | U33: -4.653057079 | V33: -4.694391684 | W33: 10.52308156
A34: 9.5 | B34: 0.1658062789 | C34: =Burmester($B$3:$C$3,$B$4:$C$4,$B$5:$C$5,$E$3,$E$4,$E$5,B34) -> 1.088828952 | D34: 0.6194867563 | E34: =ThreePosition_Basic2($E$3,$E$5,$B$3:$C$3,$B$5:$C$5,B34,C34) -> -14.84571204 | F34: 76.64538155 | G34: -3.534324826 | H34: 5.520932826 | I34: =ThreePosition_Basic2($E$3,$E$5,$B$3:$C$3,$B$5:$C$5,B34,D34) -> -2.678664932 | J34: -7.141309854 | K34: -4.557769267 | L34: 9.863124427 | N34: =Burmester($B$3:$C$3,$B$4:$C$4,$B$6:$C$6,$E$3,$E$4,$E$6,B34) -> 1.619002946 | O34: 0.8080328059 | P34: =ThreePosition_Basic2($E$3,$E$6,$B$3:$C$3,$B$6:$C$6,B34,N34) -> -19.60560032 | Q34: 94.45626874 | R34: -3.202677869 | S34: 4.60787651 | T34: =ThreePosition_Basic2($E$3,$E$6,$B$3:$C$3,$B$6:$C$6,B34,O34) -> -2.778167365 | U34: -5.168423563 | V34: -4.543486001 | W34: 9.760022131
A35: 10 | B35: 0.1745329252 | C35: =Burmester($B$3:$C$3,$B$4:$C$4,$B$5:$C$5,$E$3,$E$4,$E$5,B35) -> 1.047197551 | D35: 0.6794178602 | E35: =ThreePosition_Basic2($E$3,$E$5,$B$3:$C$3,$B$5:$C$5,B35,C35) ->  | I35: =ThreePosition_Basic2($E$3,$E$5,$B$3:$C$3,$B$5:$C$5,B35,D35) -> -2.46241056 | J35: -8.453173679 | K35: -4.393523536 | L35: 9.022539227 | N35: =Burmester($B$3:$C$3,$B$4:$C$4,$B$6:$C$6,$E$3,$E$4,$E$6,B35) -> 1.570796327 | O35: 0.8759421668 | P35: =ThreePosition_Basic2($E$3,$E$6,$B$3:$C$3,$B$6:$C$6,B35,N35) -> -2285865544078560 | Q35: -1.582825406e+16 | R35: -4.5 | S35: 8 | T35: =ThreePosition_Basic2($E$3,$E$6,$B$3:$C$3,$B$6:$C$6,B35,O35) -> -2.651338841 | U35: -5.833820375 | V35: -4.393523536 | W35: 9.022539227
A36: 10.5 | B36: 0.1832595715 | C36: =Burmester($B$3:$C$3,$B$4:$C$4,$B$5:$C$5,$E$3,$E$4,$E$5,B36) -> 0.9848079954 | D36: 0.7601492814 | E36: =ThreePosition_Basic2($E$3,$E$5,$B$3:$C$3,$B$5:$C$5,B36,C36) -> 4.144961302 | F36: -51.62566727 | G36: -3.735851759 | H36: 6.176984991 | I36: =ThreePosition_Basic2($E$3,$E$5,$B$3:$C$3,$B$5:$C$5,B36,D36) -> -2.043598242 | J36: -11.02962427 | K36: -4.198554092 | L36: 8.079744935 | N36: =Burmester($B$3:$C$3,$B$4:$C$4,$B$6:$C$6,$E$3,$E$4,$E$6,B36) -> 1.511368209 | O36: 0.9551347628 | P36: =ThreePosition_Basic2($E$3,$E$6,$B$3:$C$3,$B$6:$C$6,B36,N36) -> 9.913935861 | Q36: -76.61670454 | R36: -3.357937002 | S36: 5.013783576 | T36: =ThreePosition_Basic2($E$3,$E$6,$B$3:$C$3,$B$6:$C$6,B36,O36) -> -2.470373729 | U36: -6.771712548 | V36: -4.236523888 | W36: 8.280239654
A37: 11 | B37: 0.1919862177 | C37: =Burmester($B$3:$C$3,$B$4:$C$4,$B$5:$C$5,$E$3,$E$4,$E$5,B37) ->  | E37: =ThreePosition_Basic2($E$3,$E$5,$B$3:$C$3,$B$5:$C$5,B37,C37) ->  | I37: =ThreePosition_Basic2($E$3,$E$5,$B$3:$C$3,$B$5:$C$5,B37,D37) ->  | N37: =Burmester($B$3:$C$3,$B$4:$C$4,$B$6:$C$6,$E$3,$E$4,$E$6,B37) -> 1.428494364 | O37: 1.05783509 | P37: =ThreePosition_Basic2($E$3,$E$6,$B$3:$C$3,$B$6:$C$6,B37,N37) -> 2.112202218 | Q37: -31.89999564 | R37: -3.478712335 | S37: 5.36243974 | T37: =ThreePosition_Basic2($E$3,$E$6,$B$3:$C$3,$B$6:$C$6,B37,O37) -> -2.160477405 | U37: -8.373796106 | V37: -4.052937825 | W37: 7.462390036
A38: 11.5 | B38: 0.200712864 | C38: =Burmester($B$3:$C$3,$B$4:$C$4,$B$5:$C$5,$E$3,$E$4,$E$5,B38) ->  | E38: =ThreePosition_Basic2($E$3,$E$5,$B$3:$C$3,$B$5:$C$5,B38,C38) ->  | I38: =ThreePosition_Basic2($E$3,$E$5,$B$3:$C$3,$B$5:$C$5,B38,D38) ->  | N38: =Burmester($B$3:$C$3,$B$4:$C$4,$B$6:$C$6,$E$3,$E$4,$E$6,B38) ->  | P38: =ThreePosition_Basic2($E$3,$E$6,$B$3:$C$3,$B$6:$C$6,B38,N38) ->  | T38: =ThreePosition_Basic2($E$3,$E$6,$B$3:$C$3,$B$6:$C$6,B38,O38) -> 
A39: 12 | B39: 0.2094395102 | C39: =Burmester($B$3:$C$3,$B$4:$C$4,$B$5:$C$5,$E$3,$E$4,$E$5,B39) ->  | E39: =ThreePosition_Basic2($E$3,$E$5,$B$3:$C$3,$B$5:$C$5,B39,C39) ->  | I39: =ThreePosition_Basic2($E$3,$E$5,$B$3:$C$3,$B$5:$C$5,B39,D39) ->  | N39: =Burmester($B$3:$C$3,$B$4:$C$4,$B$6:$C$6,$E$3,$E$4,$E$6,B39) ->  | P39: =ThreePosition_Basic2($E$3,$E$6,$B$3:$C$3,$B$6:$C$6,B39,N39) ->  | T39: =ThreePosition_Basic2($E$3,$E$6,$B$3:$C$3,$B$6:$C$6,B39,O39) -> 
A40: 12.5 | B40: 0.2181661565 | C40: =Burmester($B$3:$C$3,$B$4:$C$4,$B$5:$C$5,$E$3,$E$4,$E$5,B40) ->  | E40: =ThreePosition_Basic2($E$3,$E$5,$B$3:$C$3,$B$5:$C$5,B40,C40) ->  | I40: =ThreePosition_Basic2($E$3,$E$5,$B$3:$C$3,$B$5:$C$5,B40,D40) ->  | N40: =Burmester($B$3:$C$3,$B$4:$C$4,$B$6:$C$6,$E$3,$E$4,$E$6,B40) ->  | P40: =ThreePosition_Basic2($E$3,$E$6,$B$3:$C$3,$B$6:$C$6,B40,N40) ->  | T40: =ThreePosition_Basic2($E$3,$E$6,$B$3:$C$3,$B$6:$C$6,B40,O40) -> 
A41: 13 | B41: 0.2268928028 | C41: =Burmester($B$3:$C$3,$B$4:$C$4,$B$5:$C$5,$E$3,$E$4,$E$5,B41) ->  | E41: =ThreePosition_Basic2($E$3,$E$5,$B$3:$C$3,$B$5:$C$5,B41,C41) ->  | I41: =ThreePosition_Basic2($E$3,$E$5,$B$3:$C$3,$B$5:$C$5,B41,D41) ->  | N41: =Burmester($B$3:$C$3,$B$4:$C$4,$B$6:$C$6,$E$3,$E$4,$E$6,B41) ->  | P41: =ThreePosition_Basic2($E$3,$E$6,$B$3:$C$3,$B$6:$C$6,B41,N41) ->  | T41: =ThreePosition_Basic2($E$3,$E$6,$B$3:$C$3,$B$6:$C$6,B41,O41) -> 
A42: 13.5 | B42: 0.235619449 | C42: =Burmester($B$3:$C$3,$B$4:$C$4,$B$5:$C$5,$E$3,$E$4,$E$5,B42) ->  | E42: =ThreePosition_Basic2($E$3,$E$5,$B$3:$C$3,$B$5:$C$5,B42,C42) ->  | I42: =ThreePosition_Basic2($E$3,$E$5,$B$3:$C$3,$B$5:$C$5,B42,D42) ->  | N42: =Burmester($B$3:$C$3,$B$4:$C$4,$B$6:$C$6,$E$3,$E$4,$E$6,B42) ->  | P42: =ThreePosition_Basic2($E$3,$E$6,$B$3:$C$3,$B$6:$C$6,B42,N42) ->  | T42: =ThreePosition_Basic2($E$3,$E$6,$B$3:$C$3,$B$6:$C$6,B42,O42) -> 
A43: 14 | B43: 0.2443460953 | C43: =Burmester($B$3:$C$3,$B$4:$C$4,$B$5:$C$5,$E$3,$E$4,$E$5,B43) ->  | E43: =ThreePosition_Basic2($E$3,$E$5,$B$3:$C$3,$B$5:$C$5,B43,C43) ->  | I43: =ThreePosition_Basic2($E$3,$E$5,$B$3:$C$3,$B$5:$C$5,B43,D43) ->  | N43: =Burmester($B$3:$C$3,$B$4:$C$4,$B$6:$C$6,$E$3,$E$4,$E$6,B43) ->  | P43: =ThreePosition_Basic2($E$3,$E$6,$B$3:$C$3,$B$6:$C$6,B43,N43) ->  | T43: =ThreePosition_Basic2($E$3,$E$6,$B$3:$C$3,$B$6:$C$6,B43,O43) -> 
A44: 14.5 | B44: 0.2530727415 | C44: =Burmester($B$3:$C$3,$B$4:$C$4,$B$5:$C$5,$E$3,$E$4,$E$5,B44) ->  | E44: =ThreePosition_Basic2($E$3,$E$5,$B$3:$C$3,$B$5:$C$5,B44,C44) ->  | I44: =ThreePosition_Basic2($E$3,$E$5,$B$3:$C$3,$B$5:$C$5,B44,D44) ->  | N44: =Burmester($B$3:$C$3,$B$4:$C$4,$B$6:$C$6,$E$3,$E$4,$E$6,B44) ->  | P44: =ThreePosition_Basic2($E$3,$E$6,$B$3:$C$3,$B$6:$C$6,B44,N44) ->  | T44: =ThreePosition_Basic2($E$3,$E$6,$B$3:$C$3,$B$6:$C$6,B44,O44) -> 
A45: 15 | B45: 0.2617993878 | C45: =Burmester($B$3:$C$3,$B$4:$C$4,$B$5:$C$5,$E$3,$E$4,$E$5,B45) ->  | E45: =ThreePosition_Basic2($E$3,$E$5,$B$3:$C$3,$B$5:$C$5,B45,C45) ->  | I45: =ThreePosition_Basic2($E$3,$E$5,$B$3:$C$3,$B$5:$C$5,B45,D45) ->  | N45: =Burmester($B$3:$C$3,$B$4:$C$4,$B$6:$C$6,$E$3,$E$4,$E$6,B45) ->  | P45: =ThreePosition_Basic2($E$3,$E$6,$B$3:$C$3,$B$6:$C$6,B45,N45) ->  | T45: =ThreePosition_Basic2($E$3,$E$6,$B$3:$C$3,$B$6:$C$6,B45,O45) -> 
A46: 15.5 | B46: 0.2705260341 | C46: =Burmester($B$3:$C$3,$B$4:$C$4,$B$5:$C$5,$E$3,$E$4,$E$5,B46) ->  | E46: =ThreePosition_Basic2($E$3,$E$5,$B$3:$C$3,$B$5:$C$5,B46,C46) ->  | I46: =ThreePosition_Basic2($E$3,$E$5,$B$3:$C$3,$B$5:$C$5,B46,D46) ->  | N46: =Burmester($B$3:$C$3,$B$4:$C$4,$B$6:$C$6,$E$3,$E$4,$E$6,B46) ->  | P46: =ThreePosition_Basic2($E$3,$E$6,$B$3:$C$3,$B$6:$C$6,B46,N46) ->  | T46: =ThreePosition_Basic2($E$3,$E$6,$B$3:$C$3,$B$6:$C$6,B46,O46) -> 
A47: 16 | B47: 0.2792526803 | C47: =Burmester($B$3:$C$3,$B$4:$C$4,$B$5:$C$5,$E$3,$E$4,$E$5,B47) ->  | E47: =ThreePosition_Basic2($E$3,$E$5,$B$3:$C$3,$B$5:$C$5,B47,C47) ->  | I47: =ThreePosition_Basic2($E$3,$E$5,$B$3:$C$3,$B$5:$C$5,B47,D47) ->  | N47: =Burmester($B$3:$C$3,$B$4:$C$4,$B$6:$C$6,$E$3,$E$4,$E$6,B47) ->  | P47: =ThreePosition_Basic2($E$3,$E$6,$B$3:$C$3,$B$6:$C$6,B47,N47) ->  | T47: =ThreePosition_Basic2($E$3,$E$6,$B$3:$C$3,$B$6:$C$6,B47,O47) -> 
A48: 16.5 | B48: 0.2879793266 | C48: =Burmester($B$3:$C$3,$B$4:$C$4,$B$5:$C$5,$E$3,$E$4,$E$5,B48) ->  | E48: =ThreePosition_Basic2($E$3,$E$5,$B$3:$C$3,$B$5:$C$5,B48,C48) ->  | I48: =ThreePosition_Basic2($E$3,$E$5,$B$3:$C$3,$B$5:$C$5,B48,D48) ->  | N48: =Burmester($B$3:$C$3,$B$4:$C$4,$B$6:$C$6,$E$3,$E$4,$E$6,B48) ->  | P48: =ThreePosition_Basic2($E$3,$E$6,$B$3:$C$3,$B$6:$C$6,B48,N48) ->  | T48: =ThreePosition_Basic2($E$3,$E$6,$B$3:$C$3,$B$6:$C$6,B48,O48) -> 
A49: 17 | B49: 0.2967059728 | C49: =Burmester($B$3:$C$3,$B$4:$C$4,$B$5:$C$5,$E$3,$E$4,$E$5,B49) ->  | E49: =ThreePosition_Basic2($E$3,$E$5,$B$3:$C$3,$B$5:$C$5,B49,C49) ->  | I49: =ThreePosition_Basic2($E$3,$E$5,$B$3:$C$3,$B$5:$C$5,B49,D49) ->  | N49: =Burmester($B$3:$C$3,$B$4:$C$4,$B$6:$C$6,$E$3,$E$4,$E$6,B49) ->  | P49: =ThreePosition_Basic2($E$3,$E$6,$B$3:$C$3,$B$6:$C$6,B49,N49) ->  | T49: =ThreePosition_Basic2($E$3,$E$6,$B$3:$C$3,$B$6:$C$6,B49,O49) -> 
A50: 17.5 | B50: 0.3054326191 | C50: =Burmester($B$3:$C$3,$B$4:$C$4,$B$5:$C$5,$E$3,$E$4,$E$5,B50) ->  | E50: =ThreePosition_Basic2($E$3,$E$5,$B$3:$C$3,$B$5:$C$5,B50,C50) ->  | I50: =ThreePosition_Basic2($E$3,$E$5,$B$3:$C$3,$B$5:$C$5,B50,D50) ->  | N50: =Burmester($B$3:$C$3,$B$4:$C$4,$B$6:$C$6,$E$3,$E$4,$E$6,B50) ->  | P50: =ThreePosition_Basic2($E$3,$E$6,$B$3:$C$3,$B$6:$C$6,B50,N50) ->  | T50: =ThreePosition_Basic2($E$3,$E$6,$B$3:$C$3,$B$6:$C$6,B50,O50) -> 
A51: 18 | B51: 0.3141592654 | C51: =Burmester($B$3:$C$3,$B$4:$C$4,$B$5:$C$5,$E$3,$E$4,$E$5,B51) ->  | E51: =ThreePosition_Basic2($E$3,$E$5,$B$3:$C$3,$B$5:$C$5,B51,C51) ->  | I51: =ThreePosition_Basic2($E$3,$E$5,$B$3:$C$3,$B$5:$C$5,B51,D51) ->  | N51: =Burmester($B$3:$C$3,$B$4:$C$4,$B$6:$C$6,$E$3,$E$4,$E$6,B51) ->  | P51: =ThreePosition_Basic2($E$3,$E$6,$B$3:$C$3,$B$6:$C$6,B51,N51) ->  | T51: =ThreePosition_Basic2($E$3,$E$6,$B$3:$C$3,$B$6:$C$6,B51,O51) -> 
A52: 18.5 | B52: 0.3228859116 | C52: =Burmester($B$3:$C$3,$B$4:$C$4,$B$5:$C$5,$E$3,$E$4,$E$5,B52) ->  | E52: =ThreePosition_Basic2($E$3,$E$5,$B$3:$C$3,$B$5:$C$5,B52,C52) ->  | I52: =ThreePosition_Basic2($E$3,$E$5,$B$3:$C$3,$B$5:$C$5,B52,D52) ->  | N52: =Burmester($B$3:$C$3,$B$4:$C$4,$B$6:$C$6,$E$3,$E$4,$E$6,B52) ->  | P52: =ThreePosition_Basic2($E$3,$E$6,$B$3:$C$3,$B$6:$C$6,B52,N52) ->  | T52: =ThreePosition_Basic2($E$3,$E$6,$B$3:$C$3,$B$6:$C$6,B52,O52) -> 
A53: 19 | B53: 0.3316125579 | C53: =Burmester($B$3:$C$3,$B$4:$C$4,$B$5:$C$5,$E$3,$E$4,$E$5,B53) ->  | E53: =ThreePosition_Basic2($E$3,$E$5,$B$3:$C$3,$B$5:$C$5,B53,C53) ->  | I53: =ThreePosition_Basic2($E$3,$E$5,$B$3:$C$3,$B$5:$C$5,B53,D53) ->  | N53: =Burmester($B$3:$C$3,$B$4:$C$4,$B$6:$C$6,$E$3,$E$4,$E$6,B53) ->  | P53: =ThreePosition_Basic2($E$3,$E$6,$B$3:$C$3,$B$6:$C$6,B53,N53) ->  | T53: =ThreePosition_Basic2($E$3,$E$6,$B$3:$C$3,$B$6:$C$6,B53,O53) -> 
A54: 19.5 | B54: 0.3403392041 | C54: =Burmester($B$3:$C$3,$B$4:$C$4,$B$5:$C$5,$E$3,$E$4,$E$5,B54) ->  | E54: =ThreePosition_Basic2($E$3,$E$5,$B$3:$C$3,$B$5:$C$5,B54,C54) ->  | I54: =ThreePosition_Basic2($E$3,$E$5,$B$3:$C$3,$B$5:$C$5,B54,D54) ->  | N54: =Burmester($B$3:$C$3,$B$4:$C$4,$B$6:$C$6,$E$3,$E$4,$E$6,B54) ->  | P54: =ThreePosition_Basic2($E$3,$E$6,$B$3:$C$3,$B$6:$C$6,B54,N54) ->  | T54: =ThreePosition_Basic2($E$3,$E$6,$B$3:$C$3,$B$6:$C$6,B54,O54) -> 
A55: 20 | B55: 0.3490658504 | C55: =Burmester($B$3:$C$3,$B$4:$C$4,$B$5:$C$5,$E$3,$E$4,$E$5,B55) ->  | E55: =ThreePosition_Basic2($E$3,$E$5,$B$3:$C$3,$B$5:$C$5,B55,C55) ->  | I55: =ThreePosition_Basic2($E$3,$E$5,$B$3:$C$3,$B$5:$C$5,B55,D55) ->  | N55: =Burmester($B$3:$C$3,$B$4:$C$4,$B$6:$C$6,$E$3,$E$4,$E$6,B55) ->  | P55: =ThreePosition_Basic2($E$3,$E$6,$B$3:$C$3,$B$6:$C$6,B55,N55) ->  | T55: =ThreePosition_Basic2($E$3,$E$6,$B$3:$C$3,$B$6:$C$6,B55,O55) -> 
A56: 20.5 | B56: 0.3577924967 | C56: =Burmester($B$3:$C$3,$B$4:$C$4,$B$5:$C$5,$E$3,$E$4,$E$5,B56) ->  | E56: =ThreePosition_Basic2($E$3,$E$5,$B$3:$C$3,$B$5:$C$5,B56,C56) ->  | I56: =ThreePosition_Basic2($E$3,$E$5,$B$3:$C$3,$B$5:$C$5,B56,D56) ->  | N56: =Burmester($B$3:$C$3,$B$4:$C$4,$B$6:$C$6,$E$3,$E$4,$E$6,B56) ->  | P56: =ThreePosition_Basic2($E$3,$E$6,$B$3:$C$3,$B$6:$C$6,B56,N56) ->  | T56: =ThreePosition_Basic2($E$3,$E$6,$B$3:$C$3,$B$6:$C$6,B56,O56) -> 
A57: 21 | B57: 0.3665191429 | C57: =Burmester($B$3:$C$3,$B$4:$C$4,$B$5:$C$5,$E$3,$E$4,$E$5,B57) ->  | E57: =ThreePosition_Basic2($E$3,$E$5,$B$3:$C$3,$B$5:$C$5,B57,C57) ->  | I57: =ThreePosition_Basic2($E$3,$E$5,$B$3:$C$3,$B$5:$C$5,B57,D57) ->  | N57: =Burmester($B$3:$C$3,$B$4:$C$4,$B$6:$C$6,$E$3,$E$4,$E$6,B57) ->  | P57: =ThreePosition_Basic2($E$3,$E$6,$B$3:$C$3,$B$6:$C$6,B57,N57) ->  | T57: =ThreePosition_Basic2($E$3,$E$6,$B$3:$C$3,$B$6:$C$6,B57,O57) -> 
A58: 21.5 | B58: 0.3752457892 | C58: =Burmester($B$3:$C$3,$B$4:$C$4,$B$5:$C$5,$E$3,$E$4,$E$5,B58) ->  | E58: =ThreePosition_Basic2($E$3,$E$5,$B$3:$C$3,$B$5:$C$5,B58,C58) ->  | I58: =ThreePosition_Basic2($E$3,$E$5,$B$3:$C$3,$B$5:$C$5,B58,D58) ->  | N58: =Burmester($B$3:$C$3,$B$4:$C$4,$B$6:$C$6,$E$3,$E$4,$E$6,B58) ->  | P58: =ThreePosition_Basic2($E$3,$E$6,$B$3:$C$3,$B$6:$C$6,B58,N58) ->  | T58: =ThreePosition_Basic2($E$3,$E$6,$B$3:$C$3,$B$6:$C$6,B58,O58) -> 
A59: 22 | B59: 0.3839724354 | C59: =Burmester($B$3:$C$3,$B$4:$C$4,$B$5:$C$5,$E$3,$E$4,$E$5,B59) ->  | E59: =ThreePosition_Basic2($E$3,$E$5,$B$3:$C$3,$B$5:$C$5,B59,C59) ->  | I59: =ThreePosition_Basic2($E$3,$E$5,$B$3:$C$3,$B$5:$C$5,B59,D59) ->  | N59: =Burmester($B$3:$C$3,$B$4:$C$4,$B$6:$C$6,$E$3,$E$4,$E$6,B59) ->  | P59: =ThreePosition_Basic2($E$3,$E$6,$B$3:$C$3,$B$6:$C$6,B59,N59) ->  | T59: =ThreePosition_Basic2($E$3,$E$6,$B$3:$C$3,$B$6:$C$6,B59,O59) -> 
A60: 22.5 | B60: 0.3926990817 | C60: =Burmester($B$3:$C$3,$B$4:$C$4,$B$5:$C$5,$E$3,$E$4,$E$5,B60) ->  | E60: =ThreePosition_Basic2($E$3,$E$5,$B$3:$C$3,$B$5:$C$5,B60,C60) ->  | I60: =ThreePosition_Basic2($E$3,$E$5,$B$3:$C$3,$B$5:$C$5,B60,D60) ->  | N60: =Burmester($B$3:$C$3,$B$4:$C$4,$B$6:$C$6,$E$3,$E$4,$E$6,B60) ->  | P60: =ThreePosition_Basic2($E$3,$E$6,$B$3:$C$3,$B$6:$C$6,B60,N60) ->  | T60: =ThreePosition_Basic2($E$3,$E$6,$B$3:$C$3,$B$6:$C$6,B60,O60) -> 
A61: 23 | B61: 0.401425728 | C61: =Burmester($B$3:$C$3,$B$4:$C$4,$B$5:$C$5,$E$3,$E$4,$E$5,B61) ->  | E61: =ThreePosition_Basic2($E$3,$E$5,$B$3:$C$3,$B$5:$C$5,B61,C61) ->  | I61: =ThreePosition_Basic2($E$3,$E$5,$B$3:$C$3,$B$5:$C$5,B61,D61) ->  | N61: =Burmester($B$3:$C$3,$B$4:$C$4,$B$6:$C$6,$E$3,$E$4,$E$6,B61) ->  | P61: =ThreePosition_Basic2($E$3,$E$6,$B$3:$C$3,$B$6:$C$6,B61,N61) ->  | T61: =ThreePosition_Basic2($E$3,$E$6,$B$3:$C$3,$B$6:$C$6,B61,O61) -> 
A62: 23.5 | B62: 0.4101523742 | C62: =Burmester($B$3:$C$3,$B$4:$C$4,$B$5:$C$5,$E$3,$E$4,$E$5,B62) ->  | E62: =ThreePosition_Basic2($E$3,$E$5,$B$3:$C$3,$B$5:$C$5,B62,C62) ->  | I62: =ThreePosition_Basic2($E$3,$E$5,$B$3:$C$3,$B$5:$C$5,B62,D62) ->  | N62: =Burmester($B$3:$C$3,$B$4:$C$4,$B$6:$C$6,$E$3,$E$4,$E$6,B62) ->  | P62: =ThreePosition_Basic2($E$3,$E$6,$B$3:$C$3,$B$6:$C$6,B62,N62) ->  | T62: =ThreePosition_Basic2($E$3,$E$6,$B$3:$C$3,$B$6:$C$6,B62,O62) -> 
A63: 24 | B63: 0.4188790205 | C63: =Burmester($B$3:$C$3,$B$4:$C$4,$B$5:$C$5,$E$3,$E$4,$E$5,B63) ->  | E63: =ThreePosition_Basic2($E$3,$E$5,$B$3:$C$3,$B$5:$C$5,B63,C63) ->  | I63: =ThreePosition_Basic2($E$3,$E$5,$B$3:$C$3,$B$5:$C$5,B63,D63) ->  | N63: =Burmester($B$3:$C$3,$B$4:$C$4,$B$6:$C$6,$E$3,$E$4,$E$6,B63) ->  | P63: =ThreePosition_Basic2($E$3,$E$6,$B$3:$C$3,$B$6:$C$6,B63,N63) ->  | T63: =ThreePosition_Basic2($E$3,$E$6,$B$3:$C$3,$B$6:$C$6,B63,O63) -> 
A64: 24.5 | B64: 0.4276056667 | C64: =Burmester($B$3:$C$3,$B$4:$C$4,$B$5:$C$5,$E$3,$E$4,$E$5,B64) ->  | E64: =ThreePosition_Basic2($E$3,$E$5,$B$3:$C$3,$B$5:$C$5,B64,C64) ->  | I64: =ThreePosition_Basic2($E$3,$E$5,$B$3:$C$3,$B$5:$C$5,B64,D64) ->  | N64: =Burmester($B$3:$C$3,$B$4:$C$4,$B$6:$C$6,$E$3,$E$4,$E$6,B64) ->  | P64: =ThreePosition_Basic2($E$3,$E$6,$B$3:$C$3,$B$6:$C$6,B64,N64) ->  | T64: =ThreePosition_Basic2($E$3,$E$6,$B$3:$C$3,$B$6:$C$6,B64,O64) -> 
A65: 25 | B65: 0.436332313 | C65: =Burmester($B$3:$C$3,$B$4:$C$4,$B$5:$C$5,$E$3,$E$4,$E$5,B65) ->  | E65: =ThreePosition_Basic2($E$3,$E$5,$B$3:$C$3,$B$5:$C$5,B65,C65) ->  | I65: =ThreePosition_Basic2($E$3,$E$5,$B$3:$C$3,$B$5:$C$5,B65,D65) ->  | N65: =Burmester($B$3:$C$3,$B$4:$C$4,$B$6:$C$6,$E$3,$E$4,$E$6,B65) ->  | P65: =ThreePosition_Basic2($E$3,$E$6,$B$3:$C$3,$B$6:$C$6,B65,N65) ->  | T65: =ThreePosition_Basic2($E$3,$E$6,$B$3:$C$3,$B$6:$C$6,B65,O65) -> 
A66: 25.5 | B66: 0.4450589593 | C66: =Burmester($B$3:$C$3,$B$4:$C$4,$B$5:$C$5,$E$3,$E$4,$E$5,B66) ->  | E66: =ThreePosition_Basic2($E$3,$E$5,$B$3:$C$3,$B$5:$C$5,B66,C66) ->  | I66: =ThreePosition_Basic2($E$3,$E$5,$B$3:$C$3,$B$5:$C$5,B66,D66) ->  | N66: =Burmester($B$3:$C$3,$B$4:$C$4,$B$6:$C$6,$E$3,$E$4,$E$6,B66) ->  | P66: =ThreePosition_Basic2($E$3,$E$6,$B$3:$C$3,$B$6:$C$6,B66,N66) ->  | T66: =ThreePosition_Basic2($E$3,$E$6,$B$3:$C$3,$B$6:$C$6,B66,O66) -> 
A67: 26 | B67: 0.4537856055 | C67: =Burmester($B$3:$C$3,$B$4:$C$4,$B$5:$C$5,$E$3,$E$4,$E$5,B67) ->  | E67: =ThreePosition_Basic2($E$3,$E$5,$B$3:$C$3,$B$5:$C$5,B67,C67) ->  | I67: =ThreePosition_Basic2($E$3,$E$5,$B$3:$C$3,$B$5:$C$5,B67,D67) ->  | N67: =Burmester($B$3:$C$3,$B$4:$C$4,$B$6:$C$6,$E$3,$E$4,$E$6,B67) ->  | P67: =ThreePosition_Basic2($E$3,$E$6,$B$3:$C$3,$B$6:$C$6,B67,N67) ->  | T67: =ThreePosition_Basic2($E$3,$E$6,$B$3:$C$3,$B$6:$C$6,B67,O67) -> 
A68: 26.5 | B68: 0.4625122518 | C68: =Burmester($B$3:$C$3,$B$4:$C$4,$B$5:$C$5,$E$3,$E$4,$E$5,B68) ->  | E68: =ThreePosition_Basic2($E$3,$E$5,$B$3:$C$3,$B$5:$C$5,B68,C68) ->  | I68: =ThreePosition_Basic2($E$3,$E$5,$B$3:$C$3,$B$5:$C$5,B68,D68) ->  | N68: =Burmester($B$3:$C$3,$B$4:$C$4,$B$6:$C$6,$E$3,$E$4,$E$6,B68) ->  | P68: =ThreePosition_Basic2($E$3,$E$6,$B$3:$C$3,$B$6:$C$6,B68,N68) ->  | T68: =ThreePosition_Basic2($E$3,$E$6,$B$3:$C$3,$B$6:$C$6,B68,O68) -> 
A69: 27 | B69: 0.471238898 | C69: =Burmester($B$3:$C$3,$B$4:$C$4,$B$5:$C$5,$E$3,$E$4,$E$5,B69) ->  | E69: =ThreePosition_Basic2($E$3,$E$5,$B$3:$C$3,$B$5:$C$5,B69,C69) ->  | I69: =ThreePosition_Basic2($E$3,$E$5,$B$3:$C$3,$B$5:$C$5,B69,D69) ->  | N69: =Burmester($B$3:$C$3,$B$4:$C$4,$B$6:$C$6,$E$3,$E$4,$E$6,B69) ->  | P69: =ThreePosition_Basic2($E$3,$E$6,$B$3:$C$3,$B$6:$C$6,B69,N69) ->  | T69: =ThreePosition_Basic2($E$3,$E$6,$B$3:$C$3,$B$6:$C$6,B69,O69) -> 
A70: 27.5 | B70: 0.4799655443 | C70: =Burmester($B$3:$C$3,$B$4:$C$4,$B$5:$C$5,$E$3,$E$4,$E$5,B70) ->  | E70: =ThreePosition_Basic2($E$3,$E$5,$B$3:$C$3,$B$5:$C$5,B70,C70) ->  | I70: =ThreePosition_Basic2($E$3,$E$5,$B$3:$C$3,$B$5:$C$5,B70,D70) ->  | N70: =Burmester($B$3:$C$3,$B$4:$C$4,$B$6:$C$6,$E$3,$E$4,$E$6,B70) ->  | P70: =ThreePosition_Basic2($E$3,$E$6,$B$3:$C$3,$B$6:$C$6,B70,N70) ->  | T70: =ThreePosition_Basic2($E$3,$E$6,$B$3:$C$3,$B$6:$C$6,B70,O70) -> 
A71: 28 | B71: 0.4886921906 | C71: =Burmester($B$3:$C$3,$B$4:$C$4,$B$5:$C$5,$E$3,$E$4,$E$5,B71) ->  | E71: =ThreePosition_Basic2($E$3,$E$5,$B$3:$C$3,$B$5:$C$5,B71,C71) ->  | I71: =ThreePosition_Basic2($E$3,$E$5,$B$3:$C$3,$B$5:$C$5,B71,D71) ->  | N71: =Burmester($B$3:$C$3,$B$4:$C$4,$B$6:$C$6,$E$3,$E$4,$E$6,B71) ->  | P71: =ThreePosition_Basic2($E$3,$E$6,$B$3:$C$3,$B$6:$C$6,B71,N71) ->  | T71: =ThreePosition_Basic2($E$3,$E$6,$B$3:$C$3,$B$6:$C$6,B71,O71) -> 
A72: 28.5 | B72: 0.4974188368 | C72: =Burmester($B$3:$C$3,$B$4:$C$4,$B$5:$C$5,$E$3,$E$4,$E$5,B72) ->  | E72: =ThreePosition_Basic2($E$3,$E$5,$B$3:$C$3,$B$5:$C$5,B72,C72) ->  | I72: =ThreePosition_Basic2($E$3,$E$5,$B$3:$C$3,$B$5:$C$5,B72,D72) ->  | N72: =Burmester($B$3:$C$3,$B$4:$C$4,$B$6:$C$6,$E$3,$E$4,$E$6,B72) ->  | P72: =ThreePosition_Basic2($E$3,$E$6,$B$3:$C$3,$B$6:$C$6,B72,N72) ->  | T72: =ThreePosition_Basic2($E$3,$E$6,$B$3:$C$3,$B$6:$C$6,B72,O72) -> 
A73: 29 | B73: 0.5061454831 | C73: =Burmester($B$3:$C$3,$B$4:$C$4,$B$5:$C$5,$E$3,$E$4,$E$5,B73) ->  | E73: =ThreePosition_Basic2($E$3,$E$5,$B$3:$C$3,$B$5:$C$5,B73,C73) ->  | I73: =ThreePosition_Basic2($E$3,$E$5,$B$3:$C$3,$B$5:$C$5,B73,D73) ->  | N73: =Burmester($B$3:$C$3,$B$4:$C$4,$B$6:$C$6,$E$3,$E$4,$E$6,B73) ->  | P73: =ThreePosition_Basic2($E$3,$E$6,$B$3:$C$3,$B$6:$C$6,B73,N73) ->  | T73: =ThreePosition_Basic2($E$3,$E$6,$B$3:$C$3,$B$6:$C$6,B73,O73) -> 
A74: 29.5 | B74: 0.5148721293 | C74: =Burmester($B$3:$C$3,$B$4:$C$4,$B$5:$C$5,$E$3,$E$4,$E$5,B74) ->  | E74: =ThreePosition_Basic2($E$3,$E$5,$B$3:$C$3,$B$5:$C$5,B74,C74) ->  | I74: =ThreePosition_Basic2($E$3,$E$5,$B$3:$C$3,$B$5:$C$5,B74,D74) ->  | N74: =Burmester($B$3:$C$3,$B$4:$C$4,$B$6:$C$6,$E$3,$E$4,$E$6,B74) ->  | P74: =ThreePosition_Basic2($E$3,$E$6,$B$3:$C$3,$B$6:$C$6,B74,N74) ->  | T74: =ThreePosition_Basic2($E$3,$E$6,$B$3:$C$3,$B$6:$C$6,B74,O74) -> 
A75: 30 | B75: 0.5235987756 | C75: =Burmester($B$3:$C$3,$B$4:$C$4,$B$5:$C$5,$E$3,$E$4,$E$5,B75) ->  | E75: =ThreePosition_Basic2($E$3,$E$5,$B$3:$C$3,$B$5:$C$5,B75,C75) ->  | I75: =ThreePosition_Basic2($E$3,$E$5,$B$3:$C$3,$B$5:$C$5,B75,D75) ->  | N75: =Burmester($B$3:$C$3,$B$4:$C$4,$B$6:$C$6,$E$3,$E$4,$E$6,B75) ->  | P75: =ThreePosition_Basic2($E$3,$E$6,$B$3:$C$3,$B$6:$C$6,B75,N75) ->  | T75: =ThreePosition_Basic2($E$3,$E$6,$B$3:$C$3,$B$6:$C$6,B75,O75) -> 
A76: 30.5 | B76: 0.5323254219 | C76: =Burmester($B$3:$C$3,$B$4:$C$4,$B$5:$C$5,$E$3,$E$4,$E$5,B76) ->  | E76: =ThreePosition_Basic2($E$3,$E$5,$B$3:$C$3,$B$5:$C$5,B76,C76) ->  | I76: =ThreePosition_Basic2($E$3,$E$5,$B$3:$C$3,$B$5:$C$5,B76,D76) ->  | N76: =Burmester($B$3:$C$3,$B$4:$C$4,$B$6:$C$6,$E$3,$E$4,$E$6,B76) ->  | P76: =ThreePosition_Basic2($E$3,$E$6,$B$3:$C$3,$B$6:$C$6,B76,N76) ->  | T76: =ThreePosition_Basic2($E$3,$E$6,$B$3:$C$3,$B$6:$C$6,B76,O76) -> 
A77: 31 | B77: 0.5410520681 | C77: =Burmester($B$3:$C$3,$B$4:$C$4,$B$5:$C$5,$E$3,$E$4,$E$5,B77) ->  | E77: =ThreePosition_Basic2($E$3,$E$5,$B$3:$C$3,$B$5:$C$5,B77,C77) ->  | I77: =ThreePosition_Basic2($E$3,$E$5,$B$3:$C$3,$B$5:$C$5,B77,D77) ->  | N77: =Burmester($B$3:$C$3,$B$4:$C$4,$B$6:$C$6,$E$3,$E$4,$E$6,B77) ->  | P77: =ThreePosition_Basic2($E$3,$E$6,$B$3:$C$3,$B$6:$C$6,B77,N77) ->  | T77: =ThreePosition_Basic2($E$3,$E$6,$B$3:$C$3,$B$6:$C$6,B77,O77) -> 
A78: 31.5 | B78: 0.5497787144 | C78: =Burmester($B$3:$C$3,$B$4:$C$4,$B$5:$C$5,$E$3,$E$4,$E$5,B78) ->  | E78: =ThreePosition_Basic2($E$3,$E$5,$B$3:$C$3,$B$5:$C$5,B78,C78) ->  | I78: =ThreePosition_Basic2($E$3,$E$5,$B$3:$C$3,$B$5:$C$5,B78,D78) ->  | N78: =Burmester($B$3:$C$3,$B$4:$C$4,$B$6:$C$6,$E$3,$E$4,$E$6,B78) ->  | P78: =ThreePosition_Basic2($E$3,$E$6,$B$3:$C$3,$B$6:$C$6,B78,N78) ->  | T78: =ThreePosition_Basic2($E$3,$E$6,$B$3:$C$3,$B$6:$C$6,B78,O78) -> 
A79: 32 | B79: 0.5585053606 | C79: =Burmester($B$3:$C$3,$B$4:$C$4,$B$5:$C$5,$E$3,$E$4,$E$5,B79) ->  | E79: =ThreePosition_Basic2($E$3,$E$5,$B$3:$C$3,$B$5:$C$5,B79,C79) ->  | I79: =ThreePosition_Basic2($E$3,$E$5,$B$3:$C$3,$B$5:$C$5,B79,D79) ->  | N79: =Burmester($B$3:$C$3,$B$4:$C$4,$B$6:$C$6,$E$3,$E$4,$E$6,B79) ->  | P79: =ThreePosition_Basic2($E$3,$E$6,$B$3:$C$3,$B$6:$C$6,B79,N79) ->  | T79: =ThreePosition_Basic2($E$3,$E$6,$B$3:$C$3,$B$6:$C$6,B79,O79) -> 
A80: 32.5 | B80: =A80*PI()/180 -> 0.5672320069 | C80: =Burmester($B$3:$C$3,$B$4:$C$4,$B$5:$C$5,$E$3,$E$4,$E$5,B80) ->  | E80: =ThreePosition_Basic2($E$3,$E$5,$B$3:$C$3,$B$5:$C$5,B80,C80) ->  | I80: =ThreePosition_Basic2($E$3,$E$5,$B$3:$C$3,$B$5:$C$5,B80,D80) ->  | N80: =Burmester($B$3:$C$3,$B$4:$C$4,$B$6:$C$6,$E$3,$E$4,$E$6,B80) ->  | P80: =ThreePosition_Basic2($E$3,$E$6,$B$3:$C$3,$B$6:$C$6,B80,N80) ->  | T80: =ThreePosition_Basic2($E$3,$E$6,$B$3:$C$3,$B$6:$C$6,B80,O80) -> 
A81: 33 | B81: 0.5759586532 | C81: =Burmester($B$3:$C$3,$B$4:$C$4,$B$5:$C$5,$E$3,$E$4,$E$5,B81) ->  | E81: =ThreePosition_Basic2($E$3,$E$5,$B$3:$C$3,$B$5:$C$5,B81,C81) ->  | I81: =ThreePosition_Basic2($E$3,$E$5,$B$3:$C$3,$B$5:$C$5,B81,D81) ->  | N81: =Burmester($B$3:$C$3,$B$4:$C$4,$B$6:$C$6,$E$3,$E$4,$E$6,B81) ->  | P81: =ThreePosition_Basic2($E$3,$E$6,$B$3:$C$3,$B$6:$C$6,B81,N81) ->  | T81: =ThreePosition_Basic2($E$3,$E$6,$B$3:$C$3,$B$6:$C$6,B81,O81) -> 
A82: 33.5 | B82: 0.5846852994 | C82: =Burmester($B$3:$C$3,$B$4:$C$4,$B$5:$C$5,$E$3,$E$4,$E$5,B82) ->  | E82: =ThreePosition_Basic2($E$3,$E$5,$B$3:$C$3,$B$5:$C$5,B82,C82) ->  | I82: =ThreePosition_Basic2($E$3,$E$5,$B$3:$C$3,$B$5:$C$5,B82,D82) ->  | N82: =Burmester($B$3:$C$3,$B$4:$C$4,$B$6:$C$6,$E$3,$E$4,$E$6,B82) ->  | P82: =ThreePosition_Basic2($E$3,$E$6,$B$3:$C$3,$B$6:$C$6,B82,N82) ->  | T82: =ThreePosition_Basic2($E$3,$E$6,$B$3:$C$3,$B$6:$C$6,B82,O82) -> 
A83: 34 | B83: 0.5934119457 | C83: =Burmester($B$3:$C$3,$B$4:$C$4,$B$5:$C$5,$E$3,$E$4,$E$5,B83) ->  | E83: =ThreePosition_Basic2($E$3,$E$5,$B$3:$C$3,$B$5:$C$5,B83,C83) ->  | I83: =ThreePosition_Basic2($E$3,$E$5,$B$3:$C$3,$B$5:$C$5,B83,D83) ->  | N83: =Burmester($B$3:$C$3,$B$4:$C$4,$B$6:$C$6,$E$3,$E$4,$E$6,B83) ->  | P83: =ThreePosition_Basic2($E$3,$E$6,$B$3:$C$3,$B$6:$C$6,B83,N83) ->  | T83: =ThreePosition_Basic2($E$3,$E$6,$B$3:$C$3,$B$6:$C$6,B83,O83) -> 
A84: 34.5 | B84: 0.6021385919 | C84: =Burmester($B$3:$C$3,$B$4:$C$4,$B$5:$C$5,$E$3,$E$4,$E$5,B84) ->  | E84: =ThreePosition_Basic2($E$3,$E$5,$B$3:$C$3,$B$5:$C$5,B84,C84) ->  | I84: =ThreePosition_Basic2($E$3,$E$5,$B$3:$C$3,$B$5:$C$5,B84,D84) ->  | N84: =Burmester($B$3:$C$3,$B$4:$C$4,$B$6:$C$6,$E$3,$E$4,$E$6,B84) ->  | P84: =ThreePosition_Basic2($E$3,$E$6,$B$3:$C$3,$B$6:$C$6,B84,N84) ->  | T84: =ThreePosition_Basic2($E$3,$E$6,$B$3:$C$3,$B$6:$C$6,B84,O84) -> 
A85: 35 | B85: 0.6108652382 | C85: =Burmester($B$3:$C$3,$B$4:$C$4,$B$5:$C$5,$E$3,$E$4,$E$5,B85) ->  | E85: =ThreePosition_Basic2($E$3,$E$5,$B$3:$C$3,$B$5:$C$5,B85,C85) ->  | I85: =ThreePosition_Basic2($E$3,$E$5,$B$3:$C$3,$B$5:$C$5,B85,D85) ->  | N85: =Burmester($B$3:$C$3,$B$4:$C$4,$B$6:$C$6,$E$3,$E$4,$E$6,B85) ->  | P85: =ThreePosition_Basic2($E$3,$E$6,$B$3:$C$3,$B$6:$C$6,B85,N85) ->  | T85: =ThreePosition_Basic2($E$3,$E$6,$B$3:$C$3,$B$6:$C$6,B85,O85) -> 
A86: 35.5 | B86: 0.6195918845 | C86: =Burmester($B$3:$C$3,$B$4:$C$4,$B$5:$C$5,$E$3,$E$4,$E$5,B86) ->  | E86: =ThreePosition_Basic2($E$3,$E$5,$B$3:$C$3,$B$5:$C$5,B86,C86) ->  | I86: =ThreePosition_Basic2($E$3,$E$5,$B$3:$C$3,$B$5:$C$5,B86,D86) ->  | N86: =Burmester($B$3:$C$3,$B$4:$C$4,$B$6:$C$6,$E$3,$E$4,$E$6,B86) ->  | P86: =ThreePosition_Basic2($E$3,$E$6,$B$3:$C$3,$B$6:$C$6,B86,N86) ->  | T86: =ThreePosition_Basic2($E$3,$E$6,$B$3:$C$3,$B$6:$C$6,B86,O86) -> 
A87: 36 | B87: 0.6283185307 | C87: =Burmester($B$3:$C$3,$B$4:$C$4,$B$5:$C$5,$E$3,$E$4,$E$5,B87) ->  | E87: =ThreePosition_Basic2($E$3,$E$5,$B$3:$C$3,$B$5:$C$5,B87,C87) ->  | I87: =ThreePosition_Basic2($E$3,$E$5,$B$3:$C$3,$B$5:$C$5,B87,D87) ->  | N87: =Burmester($B$3:$C$3,$B$4:$C$4,$B$6:$C$6,$E$3,$E$4,$E$6,B87) ->  | P87: =ThreePosition_Basic2($E$3,$E$6,$B$3:$C$3,$B$6:$C$6,B87,N87) ->  | T87: =ThreePosition_Basic2($E$3,$E$6,$B$3:$C$3,$B$6:$C$6,B87,O87) -> 
A88: 36.5 | B88: 0.637045177 | C88: =Burmester($B$3:$C$3,$B$4:$C$4,$B$5:$C$5,$E$3,$E$4,$E$5,B88) ->  | E88: =ThreePosition_Basic2($E$3,$E$5,$B$3:$C$3,$B$5:$C$5,B88,C88) ->  | I88: =ThreePosition_Basic2($E$3,$E$5,$B$3:$C$3,$B$5:$C$5,B88,D88) ->  | N88: =Burmester($B$3:$C$3,$B$4:$C$4,$B$6:$C$6,$E$3,$E$4,$E$6,B88) ->  | P88: =ThreePosition_Basic2($E$3,$E$6,$B$3:$C$3,$B$6:$C$6,B88,N88) ->  | T88: =ThreePosition_Basic2($E$3,$E$6,$B$3:$C$3,$B$6:$C$6,B88,O88) -> 
A89: 37 | B89: 0.6457718232 | C89: =Burmester($B$3:$C$3,$B$4:$C$4,$B$5:$C$5,$E$3,$E$4,$E$5,B89) ->  | E89: =ThreePosition_Basic2($E$3,$E$5,$B$3:$C$3,$B$5:$C$5,B89,C89) ->  | I89: =ThreePosition_Basic2($E$3,$E$5,$B$3:$C$3,$B$5:$C$5,B89,D89) ->  | N89: =Burmester($B$3:$C$3,$B$4:$C$4,$B$6:$C$6,$E$3,$E$4,$E$6,B89) ->  | P89: =ThreePosition_Basic2($E$3,$E$6,$B$3:$C$3,$B$6:$C$6,B89,N89) ->  | T89: =ThreePosition_Basic2($E$3,$E$6,$B$3:$C$3,$B$6:$C$6,B89,O89) -> 
A90: 37.5 | B90: 0.6544984695 | C90: =Burmester($B$3:$C$3,$B$4:$C$4,$B$5:$C$5,$E$3,$E$4,$E$5,B90) ->  | E90: =ThreePosition_Basic2($E$3,$E$5,$B$3:$C$3,$B$5:$C$5,B90,C90) ->  | I90: =ThreePosition_Basic2($E$3,$E$5,$B$3:$C$3,$B$5:$C$5,B90,D90) ->  | N90: =Burmester($B$3:$C$3,$B$4:$C$4,$B$6:$C$6,$E$3,$E$4,$E$6,B90) ->  | P90: =ThreePosition_Basic2($E$3,$E$6,$B$3:$C$3,$B$6:$C$6,B90,N90) ->  | T90: =ThreePosition_Basic2($E$3,$E$6,$B$3:$C$3,$B$6:$C$6,B90,O90) -> 
A91: 38 | B91: 0.6632251158 | C91: =Burmester($B$3:$C$3,$B$4:$C$4,$B$5:$C$5,$E$3,$E$4,$E$5,B91) ->  | E91: =ThreePosition_Basic2($E$3,$E$5,$B$3:$C$3,$B$5:$C$5,B91,C91) ->  | I91: =ThreePosition_Basic2($E$3,$E$5,$B$3:$C$3,$B$5:$C$5,B91,D91) ->  | N91: =Burmester($B$3:$C$3,$B$4:$C$4,$B$6:$C$6,$E$3,$E$4,$E$6,B91) ->  | P91: =ThreePosition_Basic2($E$3,$E$6,$B$3:$C$3,$B$6:$C$6,B91,N91) ->  | T91: =ThreePosition_Basic2($E$3,$E$6,$B$3:$C$3,$B$6:$C$6,B91,O91) -> 
A92: 38.5 | B92: 0.671951762 | C92: =Burmester($B$3:$C$3,$B$4:$C$4,$B$5:$C$5,$E$3,$E$4,$E$5,B92) ->  | E92: =ThreePosition_Basic2($E$3,$E$5,$B$3:$C$3,$B$5:$C$5,B92,C92) ->  | I92: =ThreePosition_Basic2($E$3,$E$5,$B$3:$C$3,$B$5:$C$5,B92,D92) ->  | N92: =Burmester($B$3:$C$3,$B$4:$C$4,$B$6:$C$6,$E$3,$E$4,$E$6,B92) ->  | P92: =ThreePosition_Basic2($E$3,$E$6,$B$3:$C$3,$B$6:$C$6,B92,N92) ->  | T92: =ThreePosition_Basic2($E$3,$E$6,$B$3:$C$3,$B$6:$C$6,B92,O92) -> 
A93: 39 | B93: 0.6806784083 | C93: =Burmester($B$3:$C$3,$B$4:$C$4,$B$5:$C$5,$E$3,$E$4,$E$5,B93) ->  | E93: =ThreePosition_Basic2($E$3,$E$5,$B$3:$C$3,$B$5:$C$5,B93,C93) ->  | I93: =ThreePosition_Basic2($E$3,$E$5,$B$3:$C$3,$B$5:$C$5,B93,D93) ->  | N93: =Burmester($B$3:$C$3,$B$4:$C$4,$B$6:$C$6,$E$3,$E$4,$E$6,B93) ->  | P93: =ThreePosition_Basic2($E$3,$E$6,$B$3:$C$3,$B$6:$C$6,B93,N93) ->  | T93: =ThreePosition_Basic2($E$3,$E$6,$B$3:$C$3,$B$6:$C$6,B93,O93) -> 
A94: 39.5 | B94: 0.6894050545 | C94: =Burmester($B$3:$C$3,$B$4:$C$4,$B$5:$C$5,$E$3,$E$4,$E$5,B94) ->  | E94: =ThreePosition_Basic2($E$3,$E$5,$B$3:$C$3,$B$5:$C$5,B94,C94) ->  | I94: =ThreePosition_Basic2($E$3,$E$5,$B$3:$C$3,$B$5:$C$5,B94,D94) ->  | N94: =Burmester($B$3:$C$3,$B$4:$C$4,$B$6:$C$6,$E$3,$E$4,$E$6,B94) ->  | P94: =ThreePosition_Basic2($E$3,$E$6,$B$3:$C$3,$B$6:$C$6,B94,N94) ->  | T94: =ThreePosition_Basic2($E$3,$E$6,$B$3:$C$3,$B$6:$C$6,B94,O94) -> 
A95: 40 | B95: 0.6981317008 | C95: =Burmester($B$3:$C$3,$B$4:$C$4,$B$5:$C$5,$E$3,$E$4,$E$5,B95) ->  | E95: =ThreePosition_Basic2($E$3,$E$5,$B$3:$C$3,$B$5:$C$5,B95,C95) ->  | I95: =ThreePosition_Basic2($E$3,$E$5,$B$3:$C$3,$B$5:$C$5,B95,D95) ->  | N95: =Burmester($B$3:$C$3,$B$4:$C$4,$B$6:$C$6,$E$3,$E$4,$E$6,B95) ->  | P95: =ThreePosition_Basic2($E$3,$E$6,$B$3:$C$3,$B$6:$C$6,B95,N95) ->  | T95: =ThreePosition_Basic2($E$3,$E$6,$B$3:$C$3,$B$6:$C$6,B95,O95) -> 
A96: 40.5 | B96: 0.7068583471 | C96: =Burmester($B$3:$C$3,$B$4:$C$4,$B$5:$C$5,$E$3,$E$4,$E$5,B96) ->  | E96: =ThreePosition_Basic2($E$3,$E$5,$B$3:$C$3,$B$5:$C$5,B96,C96) ->  | I96: =ThreePosition_Basic2($E$3,$E$5,$B$3:$C$3,$B$5:$C$5,B96,D96) ->  | N96: =Burmester($B$3:$C$3,$B$4:$C$4,$B$6:$C$6,$E$3,$E$4,$E$6,B96) ->  | P96: =ThreePosition_Basic2($E$3,$E$6,$B$3:$C$3,$B$6:$C$6,B96,N96) ->  | T96: =ThreePosition_Basic2($E$3,$E$6,$B$3:$C$3,$B$6:$C$6,B96,O96) -> 
A97: 41 | B97: 0.7155849933 | C97: =Burmester($B$3:$C$3,$B$4:$C$4,$B$5:$C$5,$E$3,$E$4,$E$5,B97) ->  | E97: =ThreePosition_Basic2($E$3,$E$5,$B$3:$C$3,$B$5:$C$5,B97,C97) ->  | I97: =ThreePosition_Basic2($E$3,$E$5,$B$3:$C$3,$B$5:$C$5,B97,D97) ->  | N97: =Burmester($B$3:$C$3,$B$4:$C$4,$B$6:$C$6,$E$3,$E$4,$E$6,B97) ->  | P97: =ThreePosition_Basic2($E$3,$E$6,$B$3:$C$3,$B$6:$C$6,B97,N97) ->  | T97: =ThreePosition_Basic2($E$3,$E$6,$B$3:$C$3,$B$6:$C$6,B97,O97) -> 
A98: 41.5 | B98: 0.7243116396 | C98: =Burmester($B$3:$C$3,$B$4:$C$4,$B$5:$C$5,$E$3,$E$4,$E$5,B98) ->  | E98: =ThreePosition_Basic2($E$3,$E$5,$B$3:$C$3,$B$5:$C$5,B98,C98) ->  | I98: =ThreePosition_Basic2($E$3,$E$5,$B$3:$C$3,$B$5:$C$5,B98,D98) ->  | N98: =Burmester($B$3:$C$3,$B$4:$C$4,$B$6:$C$6,$E$3,$E$4,$E$6,B98) ->  | P98: =ThreePosition_Basic2($E$3,$E$6,$B$3:$C$3,$B$6:$C$6,B98,N98) ->  | T98: =ThreePosition_Basic2($E$3,$E$6,$B$3:$C$3,$B$6:$C$6,B98,O98) -> 
A99: 42 | B99: 0.7330382858 | C99: =Burmester($B$3:$C$3,$B$4:$C$4,$B$5:$C$5,$E$3,$E$4,$E$5,B99) ->  | E99: =ThreePosition_Basic2($E$3,$E$5,$B$3:$C$3,$B$5:$C$5,B99,C99) ->  | I99: =ThreePosition_Basic2($E$3,$E$5,$B$3:$C$3,$B$5:$C$5,B99,D99) ->  | N99: =Burmester($B$3:$C$3,$B$4:$C$4,$B$6:$C$6,$E$3,$E$4,$E$6,B99) ->  | P99: =ThreePosition_Basic2($E$3,$E$6,$B$3:$C$3,$B$6:$C$6,B99,N99) ->  | T99: =ThreePosition_Basic2($E$3,$E$6,$B$3:$C$3,$B$6:$C$6,B99,O99) -> 
A100: 42.5 | B100: 0.7417649321 | C100: =Burmester($B$3:$C$3,$B$4:$C$4,$B$5:$C$5,$E$3,$E$4,$E$5,B100) ->  | E100: =ThreePosition_Basic2($E$3,$E$5,$B$3:$C$3,$B$5:$C$5,B100,C100) ->  | I100: =ThreePosition_Basic2($E$3,$E$5,$B$3:$C$3,$B$5:$C$5,B100,D100) ->  | N100: =Burmester($B$3:$C$3,$B$4:$C$4,$B$6:$C$6,$E$3,$E$4,$E$6,B100) ->  | P100: =ThreePosition_Basic2($E$3,$E$6,$B$3:$C$3,$B$6:$C$6,B100,N100) ->  | T100: =ThreePosition_Basic2($E$3,$E$6,$B$3:$C$3,$B$6:$C$6,B100,O100) -> 
A101: 43 | B101: 0.7504915784 | C101: =Burmester($B$3:$C$3,$B$4:$C$4,$B$5:$C$5,$E$3,$E$4,$E$5,B101) ->  | E101: =ThreePosition_Basic2($E$3,$E$5,$B$3:$C$3,$B$5:$C$5,B101,C101) ->  | I101: =ThreePosition_Basic2($E$3,$E$5,$B$3:$C$3,$B$5:$C$5,B101,D101) ->  | N101: =Burmester($B$3:$C$3,$B$4:$C$4,$B$6:$C$6,$E$3,$E$4,$E$6,B101) ->  | P101: =ThreePosition_Basic2($E$3,$E$6,$B$3:$C$3,$B$6:$C$6,B101,N101) ->  | T101: =ThreePosition_Basic2($E$3,$E$6,$B$3:$C$3,$B$6:$C$6,B101,O101) -> 
A102: 43.5 | B102: 0.7592182246 | C102: =Burmester($B$3:$C$3,$B$4:$C$4,$B$5:$C$5,$E$3,$E$4,$E$5,B102) ->  | E102: =ThreePosition_Basic2($E$3,$E$5,$B$3:$C$3,$B$5:$C$5,B102,C102) ->  | I102: =ThreePosition_Basic2($E$3,$E$5,$B$3:$C$3,$B$5:$C$5,B102,D102) ->  | N102: =Burmester($B$3:$C$3,$B$4:$C$4,$B$6:$C$6,$E$3,$E$4,$E$6,B102) ->  | P102: =ThreePosition_Basic2($E$3,$E$6,$B$3:$C$3,$B$6:$C$6,B102,N102) ->  | T102: =ThreePosition_Basic2($E$3,$E$6,$B$3:$C$3,$B$6:$C$6,B102,O102) -> 
A103: 44 | B103: 0.7679448709 | C103: =Burmester($B$3:$C$3,$B$4:$C$4,$B$5:$C$5,$E$3,$E$4,$E$5,B103) ->  | E103: =ThreePosition_Basic2($E$3,$E$5,$B$3:$C$3,$B$5:$C$5,B103,C103) ->  | I103: =ThreePosition_Basic2($E$3,$E$5,$B$3:$C$3,$B$5:$C$5,B103,D103) ->  | N103: =Burmester($B$3:$C$3,$B$4:$C$4,$B$6:$C$6,$E$3,$E$4,$E$6,B103) ->  | P103: =ThreePosition_Basic2($E$3,$E$6,$B$3:$C$3,$B$6:$C$6,B103,N103) ->  | T103: =ThreePosition_Basic2($E$3,$E$6,$B$3:$C$3,$B$6:$C$6,B103,O103) -> 
A104: 44.5 | B104: 0.7766715171 | C104: =Burmester($B$3:$C$3,$B$4:$C$4,$B$5:$C$5,$E$3,$E$4,$E$5,B104) ->  | E104: =ThreePosition_Basic2($E$3,$E$5,$B$3:$C$3,$B$5:$C$5,B104,C104) ->  | I104: =ThreePosition_Basic2($E$3,$E$5,$B$3:$C$3,$B$5:$C$5,B104,D104) ->  | N104: =Burmester($B$3:$C$3,$B$4:$C$4,$B$6:$C$6,$E$3,$E$4,$E$6,B104) ->  | P104: =ThreePosition_Basic2($E$3,$E$6,$B$3:$C$3,$B$6:$C$6,B104,N104) ->  | T104: =ThreePosition_Basic2($E$3,$E$6,$B$3:$C$3,$B$6:$C$6,B104,O104) -> 
A105: 45 | B105: 0.7853981634 | C105: =Burmester($B$3:$C$3,$B$4:$C$4,$B$5:$C$5,$E$3,$E$4,$E$5,B105) ->  | E105: =ThreePosition_Basic2($E$3,$E$5,$B$3:$C$3,$B$5:$C$5,B105,C105) ->  | I105: =ThreePosition_Basic2($E$3,$E$5,$B$3:$C$3,$B$5:$C$5,B105,D105) ->  | N105: =Burmester($B$3:$C$3,$B$4:$C$4,$B$6:$C$6,$E$3,$E$4,$E$6,B105) ->  | P105: =ThreePosition_Basic2($E$3,$E$6,$B$3:$C$3,$B$6:$C$6,B105,N105) ->  | T105: =ThreePosition_Basic2($E$3,$E$6,$B$3:$C$3,$B$6:$C$6,B105,O105) -> 
A106: 45.5 | B106: 0.7941248097 | C106: =Burmester($B$3:$C$3,$B$4:$C$4,$B$5:$C$5,$E$3,$E$4,$E$5,B106) ->  | E106: =ThreePosition_Basic2($E$3,$E$5,$B$3:$C$3,$B$5:$C$5,B106,C106) ->  | I106: =ThreePosition_Basic2($E$3,$E$5,$B$3:$C$3,$B$5:$C$5,B106,D106) ->  | N106: =Burmester($B$3:$C$3,$B$4:$C$4,$B$6:$C$6,$E$3,$E$4,$E$6,B106) ->  | P106: =ThreePosition_Basic2($E$3,$E$6,$B$3:$C$3,$B$6:$C$6,B106,N106) ->  | T106: =ThreePosition_Basic2($E$3,$E$6,$B$3:$C$3,$B$6:$C$6,B106,O106) -> 
A107: 46 | B107: 0.8028514559 | C107: =Burmester($B$3:$C$3,$B$4:$C$4,$B$5:$C$5,$E$3,$E$4,$E$5,B107) ->  | E107: =ThreePosition_Basic2($E$3,$E$5,$B$3:$C$3,$B$5:$C$5,B107,C107) ->  | I107: =ThreePosition_Basic2($E$3,$E$5,$B$3:$C$3,$B$5:$C$5,B107,D107) ->  | N107: =Burmester($B$3:$C$3,$B$4:$C$4,$B$6:$C$6,$E$3,$E$4,$E$6,B107) ->  | P107: =ThreePosition_Basic2($E$3,$E$6,$B$3:$C$3,$B$6:$C$6,B107,N107) ->  | T107: =ThreePosition_Basic2($E$3,$E$6,$B$3:$C$3,$B$6:$C$6,B107,O107) -> 
A108: 46.5 | B108: 0.8115781022 | C108: =Burmester($B$3:$C$3,$B$4:$C$4,$B$5:$C$5,$E$3,$E$4,$E$5,B108) ->  | E108: =ThreePosition_Basic2($E$3,$E$5,$B$3:$C$3,$B$5:$C$5,B108,C108) ->  | I108: =ThreePosition_Basic2($E$3,$E$5,$B$3:$C$3,$B$5:$C$5,B108,D108) ->  | N108: =Burmester($B$3:$C$3,$B$4:$C$4,$B$6:$C$6,$E$3,$E$4,$E$6,B108) ->  | P108: =ThreePosition_Basic2($E$3,$E$6,$B$3:$C$3,$B$6:$C$6,B108,N108) ->  | T108: =ThreePosition_Basic2($E$3,$E$6,$B$3:$C$3,$B$6:$C$6,B108,O108) -> 
A109: 47 | B109: 0.8203047484 | C109: =Burmester($B$3:$C$3,$B$4:$C$4,$B$5:$C$5,$E$3,$E$4,$E$5,B109) ->  | E109: =ThreePosition_Basic2($E$3,$E$5,$B$3:$C$3,$B$5:$C$5,B109,C109) ->  | I109: =ThreePosition_Basic2($E$3,$E$5,$B$3:$C$3,$B$5:$C$5,B109,D109) ->  | N109: =Burmester($B$3:$C$3,$B$4:$C$4,$B$6:$C$6,$E$3,$E$4,$E$6,B109) ->  | P109: =ThreePosition_Basic2($E$3,$E$6,$B$3:$C$3,$B$6:$C$6,B109,N109) ->  | T109: =ThreePosition_Basic2($E$3,$E$6,$B$3:$C$3,$B$6:$C$6,B109,O109) -> 
A110: 47.5 | B110: 0.8290313947 | C110: =Burmester($B$3:$C$3,$B$4:$C$4,$B$5:$C$5,$E$3,$E$4,$E$5,B110) ->  | E110: =ThreePosition_Basic2($E$3,$E$5,$B$3:$C$3,$B$5:$C$5,B110,C110) ->  | I110: =ThreePosition_Basic2($E$3,$E$5,$B$3:$C$3,$B$5:$C$5,B110,D110) ->  | N110: =Burmester($B$3:$C$3,$B$4:$C$4,$B$6:$C$6,$E$3,$E$4,$E$6,B110) ->  | P110: =ThreePosition_Basic2($E$3,$E$6,$B$3:$C$3,$B$6:$C$6,B110,N110) ->  | T110: =ThreePosition_Basic2($E$3,$E$6,$B$3:$C$3,$B$6:$C$6,B110,O110) -> 
A111: 48 | B111: 0.837758041 | C111: =Burmester($B$3:$C$3,$B$4:$C$4,$B$5:$C$5,$E$3,$E$4,$E$5,B111) ->  | E111: =ThreePosition_Basic2($E$3,$E$5,$B$3:$C$3,$B$5:$C$5,B111,C111) ->  | I111: =ThreePosition_Basic2($E$3,$E$5,$B$3:$C$3,$B$5:$C$5,B111,D111) ->  | N111: =Burmester($B$3:$C$3,$B$4:$C$4,$B$6:$C$6,$E$3,$E$4,$E$6,B111) ->  | P111: =ThreePosition_Basic2($E$3,$E$6,$B$3:$C$3,$B$6:$C$6,B111,N111) ->  | T111: =ThreePosition_Basic2($E$3,$E$6,$B$3:$C$3,$B$6:$C$6,B111,O111) -> 
A112: 48.5 | B112: 0.8464846872 | C112: =Burmester($B$3:$C$3,$B$4:$C$4,$B$5:$C$5,$E$3,$E$4,$E$5,B112) ->  | E112: =ThreePosition_Basic2($E$3,$E$5,$B$3:$C$3,$B$5:$C$5,B112,C112) ->  | I112: =ThreePosition_Basic2($E$3,$E$5,$B$3:$C$3,$B$5:$C$5,B112,D112) ->  | N112: =Burmester($B$3:$C$3,$B$4:$C$4,$B$6:$C$6,$E$3,$E$4,$E$6,B112) ->  | P112: =ThreePosition_Basic2($E$3,$E$6,$B$3:$C$3,$B$6:$C$6,B112,N112) ->  | T112: =ThreePosition_Basic2($E$3,$E$6,$B$3:$C$3,$B$6:$C$6,B112,O112) -> 
A113: 49 | B113: 0.8552113335 | C113: =Burmester($B$3:$C$3,$B$4:$C$4,$B$5:$C$5,$E$3,$E$4,$E$5,B113) ->  | E113: =ThreePosition_Basic2($E$3,$E$5,$B$3:$C$3,$B$5:$C$5,B113,C113) ->  | I113: =ThreePosition_Basic2($E$3,$E$5,$B$3:$C$3,$B$5:$C$5,B113,D113) ->  | N113: =Burmester($B$3:$C$3,$B$4:$C$4,$B$6:$C$6,$E$3,$E$4,$E$6,B113) ->  | P113: =ThreePosition_Basic2($E$3,$E$6,$B$3:$C$3,$B$6:$C$6,B113,N113) ->  | T113: =ThreePosition_Basic2($E$3,$E$6,$B$3:$C$3,$B$6:$C$6,B113,O113) -> 
A114: 49.5 | B114: 0.8639379797 | C114: =Burmester($B$3:$C$3,$B$4:$C$4,$B$5:$C$5,$E$3,$E$4,$E$5,B114) ->  | E114: =ThreePosition_Basic2($E$3,$E$5,$B$3:$C$3,$B$5:$C$5,B114,C114) ->  | I114: =ThreePosition_Basic2($E$3,$E$5,$B$3:$C$3,$B$5:$C$5,B114,D114) ->  | N114: =Burmester($B$3:$C$3,$B$4:$C$4,$B$6:$C$6,$E$3,$E$4,$E$6,B114) ->  | P114: =ThreePosition_Basic2($E$3,$E$6,$B$3:$C$3,$B$6:$C$6,B114,N114) ->  | T114: =ThreePosition_Basic2($E$3,$E$6,$B$3:$C$3,$B$6:$C$6,B114,O114) -> 
A115: 50 | B115: 0.872664626 | C115: =Burmester($B$3:$C$3,$B$4:$C$4,$B$5:$C$5,$E$3,$E$4,$E$5,B115) ->  | E115: =ThreePosition_Basic2($E$3,$E$5,$B$3:$C$3,$B$5:$C$5,B115,C115) ->  | I115: =ThreePosition_Basic2($E$3,$E$5,$B$3:$C$3,$B$5:$C$5,B115,D115) ->  | N115: =Burmester($B$3:$C$3,$B$4:$C$4,$B$6:$C$6,$E$3,$E$4,$E$6,B115) ->  | P115: =ThreePosition_Basic2($E$3,$E$6,$B$3:$C$3,$B$6:$C$6,B115,N115) ->  | T115: =ThreePosition_Basic2($E$3,$E$6,$B$3:$C$3,$B$6:$C$6,B115,O115) -> 
A116: 50.5 | B116: 0.8813912723 | C116: =Burmester($B$3:$C$3,$B$4:$C$4,$B$5:$C$5,$E$3,$E$4,$E$5,B116) ->  | E116: =ThreePosition_Basic2($E$3,$E$5,$B$3:$C$3,$B$5:$C$5,B116,C116) ->  | I116: =ThreePosition_Basic2($E$3,$E$5,$B$3:$C$3,$B$5:$C$5,B116,D116) ->  | N116: =Burmester($B$3:$C$3,$B$4:$C$4,$B$6:$C$6,$E$3,$E$4,$E$6,B116) ->  | P116: =ThreePosition_Basic2($E$3,$E$6,$B$3:$C$3,$B$6:$C$6,B116,N116) ->  | T116: =ThreePosition_Basic2($E$3,$E$6,$B$3:$C$3,$B$6:$C$6,B116,O116) -> 
A117: 51 | B117: 0.8901179185 | C117: =Burmester($B$3:$C$3,$B$4:$C$4,$B$5:$C$5,$E$3,$E$4,$E$5,B117) ->  | E117: =ThreePosition_Basic2($E$3,$E$5,$B$3:$C$3,$B$5:$C$5,B117,C117) ->  | I117: =ThreePosition_Basic2($E$3,$E$5,$B$3:$C$3,$B$5:$C$5,B117,D117) ->  | N117: =Burmester($B$3:$C$3,$B$4:$C$4,$B$6:$C$6,$E$3,$E$4,$E$6,B117) ->  | P117: =ThreePosition_Basic2($E$3,$E$6,$B$3:$C$3,$B$6:$C$6,B117,N117) ->  | T117: =ThreePosition_Basic2($E$3,$E$6,$B$3:$C$3,$B$6:$C$6,B117,O117) -> 
A118: 51.5 | B118: 0.8988445648 | C118: =Burmester($B$3:$C$3,$B$4:$C$4,$B$5:$C$5,$E$3,$E$4,$E$5,B118) ->  | E118: =ThreePosition_Basic2($E$3,$E$5,$B$3:$C$3,$B$5:$C$5,B118,C118) ->  | I118: =ThreePosition_Basic2($E$3,$E$5,$B$3:$C$3,$B$5:$C$5,B118,D118) ->  | N118: =Burmester($B$3:$C$3,$B$4:$C$4,$B$6:$C$6,$E$3,$E$4,$E$6,B118) ->  | P118: =ThreePosition_Basic2($E$3,$E$6,$B$3:$C$3,$B$6:$C$6,B118,N118) ->  | T118: =ThreePosition_Basic2($E$3,$E$6,$B$3:$C$3,$B$6:$C$6,B118,O118) -> 
A119: 52 | B119: 0.907571211 | C119: =Burmester($B$3:$C$3,$B$4:$C$4,$B$5:$C$5,$E$3,$E$4,$E$5,B119) ->  | E119: =ThreePosition_Basic2($E$3,$E$5,$B$3:$C$3,$B$5:$C$5,B119,C119) ->  | I119: =ThreePosition_Basic2($E$3,$E$5,$B$3:$C$3,$B$5:$C$5,B119,D119) ->  | N119: =Burmester($B$3:$C$3,$B$4:$C$4,$B$6:$C$6,$E$3,$E$4,$E$6,B119) ->  | P119: =ThreePosition_Basic2($E$3,$E$6,$B$3:$C$3,$B$6:$C$6,B119,N119) ->  | T119: =ThreePosition_Basic2($E$3,$E$6,$B$3:$C$3,$B$6:$C$6,B119,O119) -> 
A120: 52.5 | B120: 0.9162978573 | C120: =Burmester($B$3:$C$3,$B$4:$C$4,$B$5:$C$5,$E$3,$E$4,$E$5,B120) ->  | E120: =ThreePosition_Basic2($E$3,$E$5,$B$3:$C$3,$B$5:$C$5,B120,C120) ->  | I120: =ThreePosition_Basic2($E$3,$E$5,$B$3:$C$3,$B$5:$C$5,B120,D120) ->  | N120: =Burmester($B$3:$C$3,$B$4:$C$4,$B$6:$C$6,$E$3,$E$4,$E$6,B120) ->  | P120: =ThreePosition_Basic2($E$3,$E$6,$B$3:$C$3,$B$6:$C$6,B120,N120) ->  | T120: =ThreePosition_Basic2($E$3,$E$6,$B$3:$C$3,$B$6:$C$6,B120,O120) -> 
A121: 53 | B121: 0.9250245036 | C121: =Burmester($B$3:$C$3,$B$4:$C$4,$B$5:$C$5,$E$3,$E$4,$E$5,B121) ->  | E121: =ThreePosition_Basic2($E$3,$E$5,$B$3:$C$3,$B$5:$C$5,B121,C121) ->  | I121: =ThreePosition_Basic2($E$3,$E$5,$B$3:$C$3,$B$5:$C$5,B121,D121) ->  | N121: =Burmester($B$3:$C$3,$B$4:$C$4,$B$6:$C$6,$E$3,$E$4,$E$6,B121) ->  | P121: =ThreePosition_Basic2($E$3,$E$6,$B$3:$C$3,$B$6:$C$6,B121,N121) ->  | T121: =ThreePosition_Basic2($E$3,$E$6,$B$3:$C$3,$B$6:$C$6,B121,O121) -> 
A122: 53.5 | B122: 0.9337511498 | C122: =Burmester($B$3:$C$3,$B$4:$C$4,$B$5:$C$5,$E$3,$E$4,$E$5,B122) ->  | E122: =ThreePosition_Basic2($E$3,$E$5,$B$3:$C$3,$B$5:$C$5,B122,C122) ->  | I122: =ThreePosition_Basic2($E$3,$E$5,$B$3:$C$3,$B$5:$C$5,B122,D122) ->  | N122: =Burmester($B$3:$C$3,$B$4:$C$4,$B$6:$C$6,$E$3,$E$4,$E$6,B122) ->  | P122: =ThreePosition_Basic2($E$3,$E$6,$B$3:$C$3,$B$6:$C$6,B122,N122) ->  | T122: =ThreePosition_Basic2($E$3,$E$6,$B$3:$C$3,$B$6:$C$6,B122,O122) -> 
A123: 54 | B123: 0.9424777961 | C123: =Burmester($B$3:$C$3,$B$4:$C$4,$B$5:$C$5,$E$3,$E$4,$E$5,B123) ->  | E123: =ThreePosition_Basic2($E$3,$E$5,$B$3:$C$3,$B$5:$C$5,B123,C123) ->  | I123: =ThreePosition_Basic2($E$3,$E$5,$B$3:$C$3,$B$5:$C$5,B123,D123) ->  | N123: =Burmester($B$3:$C$3,$B$4:$C$4,$B$6:$C$6,$E$3,$E$4,$E$6,B123) ->  | P123: =ThreePosition_Basic2($E$3,$E$6,$B$3:$C$3,$B$6:$C$6,B123,N123) ->  | T123: =ThreePosition_Basic2($E$3,$E$6,$B$3:$C$3,$B$6:$C$6,B123,O123) -> 
A124: 54.5 | B124: 0.9512044423 | C124: =Burmester($B$3:$C$3,$B$4:$C$4,$B$5:$C$5,$E$3,$E$4,$E$5,B124) ->  | E124: =ThreePosition_Basic2($E$3,$E$5,$B$3:$C$3,$B$5:$C$5,B124,C124) ->  | I124: =ThreePosition_Basic2($E$3,$E$5,$B$3:$C$3,$B$5:$C$5,B124,D124) ->  | N124: =Burmester($B$3:$C$3,$B$4:$C$4,$B$6:$C$6,$E$3,$E$4,$E$6,B124) ->  | P124: =ThreePosition_Basic2($E$3,$E$6,$B$3:$C$3,$B$6:$C$6,B124,N124) ->  | T124: =ThreePosition_Basic2($E$3,$E$6,$B$3:$C$3,$B$6:$C$6,B124,O124) -> 
A125: 55 | B125: 0.9599310886 | C125: =Burmester($B$3:$C$3,$B$4:$C$4,$B$5:$C$5,$E$3,$E$4,$E$5,B125) ->  | E125: =ThreePosition_Basic2($E$3,$E$5,$B$3:$C$3,$B$5:$C$5,B125,C125) ->  | I125: =ThreePosition_Basic2($E$3,$E$5,$B$3:$C$3,$B$5:$C$5,B125,D125) ->  | N125: =Burmester($B$3:$C$3,$B$4:$C$4,$B$6:$C$6,$E$3,$E$4,$E$6,B125) ->  | P125: =ThreePosition_Basic2($E$3,$E$6,$B$3:$C$3,$B$6:$C$6,B125,N125) ->  | T125: =ThreePosition_Basic2($E$3,$E$6,$B$3:$C$3,$B$6:$C$6,B125,O125) -> 
A126: 55.5 | B126: 0.9686577349 | C126: =Burmester($B$3:$C$3,$B$4:$C$4,$B$5:$C$5,$E$3,$E$4,$E$5,B126) ->  | E126: =ThreePosition_Basic2($E$3,$E$5,$B$3:$C$3,$B$5:$C$5,B126,C126) ->  | I126: =ThreePosition_Basic2($E$3,$E$5,$B$3:$C$3,$B$5:$C$5,B126,D126) ->  | N126: =Burmester($B$3:$C$3,$B$4:$C$4,$B$6:$C$6,$E$3,$E$4,$E$6,B126) ->  | P126: =ThreePosition_Basic2($E$3,$E$6,$B$3:$C$3,$B$6:$C$6,B126,N126) ->  | T126: =ThreePosition_Basic2($E$3,$E$6,$B$3:$C$3,$B$6:$C$6,B126,O126) -> 
A127: 56 | B127: 0.9773843811 | C127: =Burmester($B$3:$C$3,$B$4:$C$4,$B$5:$C$5,$E$3,$E$4,$E$5,B127) ->  | E127: =ThreePosition_Basic2($E$3,$E$5,$B$3:$C$3,$B$5:$C$5,B127,C127) ->  | I127: =ThreePosition_Basic2($E$3,$E$5,$B$3:$C$3,$B$5:$C$5,B127,D127) ->  | N127: =Burmester($B$3:$C$3,$B$4:$C$4,$B$6:$C$6,$E$3,$E$4,$E$6,B127) ->  | P127: =ThreePosition_Basic2($E$3,$E$6,$B$3:$C$3,$B$6:$C$6,B127,N127) ->  | T127: =ThreePosition_Basic2($E$3,$E$6,$B$3:$C$3,$B$6:$C$6,B127,O127) -> 
A128: 56.5 | B128: 0.9861110274 | C128: =Burmester($B$3:$C$3,$B$4:$C$4,$B$5:$C$5,$E$3,$E$4,$E$5,B128) ->  | E128: =ThreePosition_Basic2($E$3,$E$5,$B$3:$C$3,$B$5:$C$5,B128,C128) ->  | I128: =ThreePosition_Basic2($E$3,$E$5,$B$3:$C$3,$B$5:$C$5,B128,D128) ->  | N128: =Burmester($B$3:$C$3,$B$4:$C$4,$B$6:$C$6,$E$3,$E$4,$E$6,B128) ->  | P128: =ThreePosition_Basic2($E$3,$E$6,$B$3:$C$3,$B$6:$C$6,B128,N128) ->  | T128: =ThreePosition_Basic2($E$3,$E$6,$B$3:$C$3,$B$6:$C$6,B128,O128) -> 
A129: 57 | B129: 0.9948376736 | C129: =Burmester($B$3:$C$3,$B$4:$C$4,$B$5:$C$5,$E$3,$E$4,$E$5,B129) ->  | E129: =ThreePosition_Basic2($E$3,$E$5,$B$3:$C$3,$B$5:$C$5,B129,C129) ->  | I129: =ThreePosition_Basic2($E$3,$E$5,$B$3:$C$3,$B$5:$C$5,B129,D129) ->  | N129: =Burmester($B$3:$C$3,$B$4:$C$4,$B$6:$C$6,$E$3,$E$4,$E$6,B129) ->  | P129: =ThreePosition_Basic2($E$3,$E$6,$B$3:$C$3,$B$6:$C$6,B129,N129) ->  | T129: =ThreePosition_Basic2($E$3,$E$6,$B$3:$C$3,$B$6:$C$6,B129,O129) -> 
A130: 57.5 | B130: 1.00356432 | C130: =Burmester($B$3:$C$3,$B$4:$C$4,$B$5:$C$5,$E$3,$E$4,$E$5,B130) ->  | E130: =ThreePosition_Basic2($E$3,$E$5,$B$3:$C$3,$B$5:$C$5,B130,C130) ->  | I130: =ThreePosition_Basic2($E$3,$E$5,$B$3:$C$3,$B$5:$C$5,B130,D130) ->  | N130: =Burmester($B$3:$C$3,$B$4:$C$4,$B$6:$C$6,$E$3,$E$4,$E$6,B130) ->  | P130: =ThreePosition_Basic2($E$3,$E$6,$B$3:$C$3,$B$6:$C$6,B130,N130) ->  | T130: =ThreePosition_Basic2($E$3,$E$6,$B$3:$C$3,$B$6:$C$6,B130,O130) -> 
A131: 58 | B131: 1.012290966 | C131: =Burmester($B$3:$C$3,$B$4:$C$4,$B$5:$C$5,$E$3,$E$4,$E$5,B131) ->  | E131: =ThreePosition_Basic2($E$3,$E$5,$B$3:$C$3,$B$5:$C$5,B131,C131) ->  | I131: =ThreePosition_Basic2($E$3,$E$5,$B$3:$C$3,$B$5:$C$5,B131,D131) ->  | N131: =Burmester($B$3:$C$3,$B$4:$C$4,$B$6:$C$6,$E$3,$E$4,$E$6,B131) ->  | P131: =ThreePosition_Basic2($E$3,$E$6,$B$3:$C$3,$B$6:$C$6,B131,N131) ->  | T131: =ThreePosition_Basic2($E$3,$E$6,$B$3:$C$3,$B$6:$C$6,B131,O131) -> 
A132: 58.5 | B132: 1.021017612 | C132: =Burmester($B$3:$C$3,$B$4:$C$4,$B$5:$C$5,$E$3,$E$4,$E$5,B132) ->  | E132: =ThreePosition_Basic2($E$3,$E$5,$B$3:$C$3,$B$5:$C$5,B132,C132) ->  | I132: =ThreePosition_Basic2($E$3,$E$5,$B$3:$C$3,$B$5:$C$5,B132,D132) ->  | N132: =Burmester($B$3:$C$3,$B$4:$C$4,$B$6:$C$6,$E$3,$E$4,$E$6,B132) ->  | P132: =ThreePosition_Basic2($E$3,$E$6,$B$3:$C$3,$B$6:$C$6,B132,N132) ->  | T132: =ThreePosition_Basic2($E$3,$E$6,$B$3:$C$3,$B$6:$C$6,B132,O132) -> 
A133: 59 | B133: 1.029744259 | C133: =Burmester($B$3:$C$3,$B$4:$C$4,$B$5:$C$5,$E$3,$E$4,$E$5,B133) ->  | E133: =ThreePosition_Basic2($E$3,$E$5,$B$3:$C$3,$B$5:$C$5,B133,C133) ->  | I133: =ThreePosition_Basic2($E$3,$E$5,$B$3:$C$3,$B$5:$C$5,B133,D133) ->  | N133: =Burmester($B$3:$C$3,$B$4:$C$4,$B$6:$C$6,$E$3,$E$4,$E$6,B133) ->  | P133: =ThreePosition_Basic2($E$3,$E$6,$B$3:$C$3,$B$6:$C$6,B133,N133) ->  | T133: =ThreePosition_Basic2($E$3,$E$6,$B$3:$C$3,$B$6:$C$6,B133,O133) -> 
A134: 59.5 | B134: 1.038470905 | C134: =Burmester($B$3:$C$3,$B$4:$C$4,$B$5:$C$5,$E$3,$E$4,$E$5,B134) ->  | E134: =ThreePosition_Basic2($E$3,$E$5,$B$3:$C$3,$B$5:$C$5,B134,C134) ->  | I134: =ThreePosition_Basic2($E$3,$E$5,$B$3:$C$3,$B$5:$C$5,B134,D134) ->  | N134: =Burmester($B$3:$C$3,$B$4:$C$4,$B$6:$C$6,$E$3,$E$4,$E$6,B134) ->  | P134: =ThreePosition_Basic2($E$3,$E$6,$B$3:$C$3,$B$6:$C$6,B134,N134) ->  | T134: =ThreePosition_Basic2($E$3,$E$6,$B$3:$C$3,$B$6:$C$6,B134,O134) -> 
A135: 60 | B135: 1.047197551 | C135: =Burmester($B$3:$C$3,$B$4:$C$4,$B$5:$C$5,$E$3,$E$4,$E$5,B135) ->  | E135: =ThreePosition_Basic2($E$3,$E$5,$B$3:$C$3,$B$5:$C$5,B135,C135) ->  | I135: =ThreePosition_Basic2($E$3,$E$5,$B$3:$C$3,$B$5:$C$5,B135,D135) ->  | N135: =Burmester($B$3:$C$3,$B$4:$C$4,$B$6:$C$6,$E$3,$E$4,$E$6,B135) ->  | P135: =ThreePosition_Basic2($E$3,$E$6,$B$3:$C$3,$B$6:$C$6,B135,N135) ->  | T135: =ThreePosition_Basic2($E$3,$E$6,$B$3:$C$3,$B$6:$C$6,B135,O135) -> 
A136: 60.5 | B136: 1.055924197 | C136: =Burmester($B$3:$C$3,$B$4:$C$4,$B$5:$C$5,$E$3,$E$4,$E$5,B136) ->  | E136: =ThreePosition_Basic2($E$3,$E$5,$B$3:$C$3,$B$5:$C$5,B136,C136) ->  | I136: =ThreePosition_Basic2($E$3,$E$5,$B$3:$C$3,$B$5:$C$5,B136,D136) ->  | N136: =Burmester($B$3:$C$3,$B$4:$C$4,$B$6:$C$6,$E$3,$E$4,$E$6,B136) ->  | P136: =ThreePosition_Basic2($E$3,$E$6,$B$3:$C$3,$B$6:$C$6,B136,N136) ->  | T136: =ThreePosition_Basic2($E$3,$E$6,$B$3:$C$3,$B$6:$C$6,B136,O136) -> 
A137: 61 | B137: 1.064650844 | C137: =Burmester($B$3:$C$3,$B$4:$C$4,$B$5:$C$5,$E$3,$E$4,$E$5,B137) ->  | E137: =ThreePosition_Basic2($E$3,$E$5,$B$3:$C$3,$B$5:$C$5,B137,C137) ->  | I137: =ThreePosition_Basic2($E$3,$E$5,$B$3:$C$3,$B$5:$C$5,B137,D137) ->  | N137: =Burmester($B$3:$C$3,$B$4:$C$4,$B$6:$C$6,$E$3,$E$4,$E$6,B137) ->  | P137: =ThreePosition_Basic2($E$3,$E$6,$B$3:$C$3,$B$6:$C$6,B137,N137) ->  | T137: =ThreePosition_Basic2($E$3,$E$6,$B$3:$C$3,$B$6:$C$6,B137,O137) -> 
A138: 61.5 | B138: 1.07337749 | C138: =Burmester($B$3:$C$3,$B$4:$C$4,$B$5:$C$5,$E$3,$E$4,$E$5,B138) ->  | E138: =ThreePosition_Basic2($E$3,$E$5,$B$3:$C$3,$B$5:$C$5,B138,C138) ->  | I138: =ThreePosition_Basic2($E$3,$E$5,$B$3:$C$3,$B$5:$C$5,B138,D138) ->  | N138: =Burmester($B$3:$C$3,$B$4:$C$4,$B$6:$C$6,$E$3,$E$4,$E$6,B138) ->  | P138: =ThreePosition_Basic2($E$3,$E$6,$B$3:$C$3,$B$6:$C$6,B138,N138) ->  | T138: =ThreePosition_Basic2($E$3,$E$6,$B$3:$C$3,$B$6:$C$6,B138,O138) -> 
A139: 62 | B139: 1.082104136 | C139: =Burmester($B$3:$C$3,$B$4:$C$4,$B$5:$C$5,$E$3,$E$4,$E$5,B139) ->  | E139: =ThreePosition_Basic2($E$3,$E$5,$B$3:$C$3,$B$5:$C$5,B139,C139) ->  | I139: =ThreePosition_Basic2($E$3,$E$5,$B$3:$C$3,$B$5:$C$5,B139,D139) ->  | N139: =Burmester($B$3:$C$3,$B$4:$C$4,$B$6:$C$6,$E$3,$E$4,$E$6,B139) ->  | P139: =ThreePosition_Basic2($E$3,$E$6,$B$3:$C$3,$B$6:$C$6,B139,N139) ->  | T139: =ThreePosition_Basic2($E$3,$E$6,$B$3:$C$3,$B$6:$C$6,B139,O139) -> 
A140: 62.5 | B140: 1.090830782 | C140: =Burmester($B$3:$C$3,$B$4:$C$4,$B$5:$C$5,$E$3,$E$4,$E$5,B140) ->  | E140: =ThreePosition_Basic2($E$3,$E$5,$B$3:$C$3,$B$5:$C$5,B140,C140) ->  | I140: =ThreePosition_Basic2($E$3,$E$5,$B$3:$C$3,$B$5:$C$5,B140,D140) ->  | N140: =Burmester($B$3:$C$3,$B$4:$C$4,$B$6:$C$6,$E$3,$E$4,$E$6,B140) ->  | P140: =ThreePosition_Basic2($E$3,$E$6,$B$3:$C$3,$B$6:$C$6,B140,N140) ->  | T140: =ThreePosition_Basic2($E$3,$E$6,$B$3:$C$3,$B$6:$C$6,B140,O140) -> 
A141: 63 | B141: 1.099557429 | C141: =Burmester($B$3:$C$3,$B$4:$C$4,$B$5:$C$5,$E$3,$E$4,$E$5,B141) ->  | E141: =ThreePosition_Basic2($E$3,$E$5,$B$3:$C$3,$B$5:$C$5,B141,C141) ->  | I141: =ThreePosition_Basic2($E$3,$E$5,$B$3:$C$3,$B$5:$C$5,B141,D141) ->  | N141: =Burmester($B$3:$C$3,$B$4:$C$4,$B$6:$C$6,$E$3,$E$4,$E$6,B141) ->  | P141: =ThreePosition_Basic2($E$3,$E$6,$B$3:$C$3,$B$6:$C$6,B141,N141) ->  | T141: =ThreePosition_Basic2($E$3,$E$6,$B$3:$C$3,$B$6:$C$6,B141,O141) -> 
A142: 63.5 | B142: 1.108284075 | C142: =Burmester($B$3:$C$3,$B$4:$C$4,$B$5:$C$5,$E$3,$E$4,$E$5,B142) ->  | E142: =ThreePosition_Basic2($E$3,$E$5,$B$3:$C$3,$B$5:$C$5,B142,C142) ->  | I142: =ThreePosition_Basic2($E$3,$E$5,$B$3:$C$3,$B$5:$C$5,B142,D142) ->  | N142: =Burmester($B$3:$C$3,$B$4:$C$4,$B$6:$C$6,$E$3,$E$4,$E$6,B142) ->  | P142: =ThreePosition_Basic2($E$3,$E$6,$B$3:$C$3,$B$6:$C$6,B142,N142) ->  | T142: =ThreePosition_Basic2($E$3,$E$6,$B$3:$C$3,$B$6:$C$6,B142,O142) -> 
A143: 64 | B143: 1.117010721 | C143: =Burmester($B$3:$C$3,$B$4:$C$4,$B$5:$C$5,$E$3,$E$4,$E$5,B143) ->  | E143: =ThreePosition_Basic2($E$3,$E$5,$B$3:$C$3,$B$5:$C$5,B143,C143) ->  | I143: =ThreePosition_Basic2($E$3,$E$5,$B$3:$C$3,$B$5:$C$5,B143,D143) ->  | N143: =Burmester($B$3:$C$3,$B$4:$C$4,$B$6:$C$6,$E$3,$E$4,$E$6,B143) ->  | P143: =ThreePosition_Basic2($E$3,$E$6,$B$3:$C$3,$B$6:$C$6,B143,N143) ->  | T143: =ThreePosition_Basic2($E$3,$E$6,$B$3:$C$3,$B$6:$C$6,B143,O143) -> 
A144: 64.5 | B144: =A144*PI()/180 -> 1.125737368 | C144: =Burmester($B$3:$C$3,$B$4:$C$4,$B$5:$C$5,$E$3,$E$4,$E$5,B144) ->  | E144: =ThreePosition_Basic2($E$3,$E$5,$B$3:$C$3,$B$5:$C$5,B144,C144) ->  | I144: =ThreePosition_Basic2($E$3,$E$5,$B$3:$C$3,$B$5:$C$5,B144,D144) ->  | N144: =Burmester($B$3:$C$3,$B$4:$C$4,$B$6:$C$6,$E$3,$E$4,$E$6,B144) ->  | P144: =ThreePosition_Basic2($E$3,$E$6,$B$3:$C$3,$B$6:$C$6,B144,N144) ->  | T144: =ThreePosition_Basic2($E$3,$E$6,$B$3:$C$3,$B$6:$C$6,B144,O144) -> 
A145: 65 | B145: 1.134464014 | C145: =Burmester($B$3:$C$3,$B$4:$C$4,$B$5:$C$5,$E$3,$E$4,$E$5,B145) ->  | E145: =ThreePosition_Basic2($E$3,$E$5,$B$3:$C$3,$B$5:$C$5,B145,C145) ->  | I145: =ThreePosition_Basic2($E$3,$E$5,$B$3:$C$3,$B$5:$C$5,B145,D145) ->  | N145: =Burmester($B$3:$C$3,$B$4:$C$4,$B$6:$C$6,$E$3,$E$4,$E$6,B145) ->  | P145: =ThreePosition_Basic2($E$3,$E$6,$B$3:$C$3,$B$6:$C$6,B145,N145) ->  | T145: =ThreePosition_Basic2($E$3,$E$6,$B$3:$C$3,$B$6:$C$6,B145,O145) -> 
A146: 65.5 | B146: 1.14319066 | C146: =Burmester($B$3:$C$3,$B$4:$C$4,$B$5:$C$5,$E$3,$E$4,$E$5,B146) ->  | E146: =ThreePosition_Basic2($E$3,$E$5,$B$3:$C$3,$B$5:$C$5,B146,C146) ->  | I146: =ThreePosition_Basic2($E$3,$E$5,$B$3:$C$3,$B$5:$C$5,B146,D146) ->  | N146: =Burmester($B$3:$C$3,$B$4:$C$4,$B$6:$C$6,$E$3,$E$4,$E$6,B146) ->  | P146: =ThreePosition_Basic2($E$3,$E$6,$B$3:$C$3,$B$6:$C$6,B146,N146) ->  | T146: =ThreePosition_Basic2($E$3,$E$6,$B$3:$C$3,$B$6:$C$6,B146,O146) -> 
A147: 66 | B147: 1.151917306 | C147: =Burmester($B$3:$C$3,$B$4:$C$4,$B$5:$C$5,$E$3,$E$4,$E$5,B147) ->  | E147: =ThreePosition_Basic2($E$3,$E$5,$B$3:$C$3,$B$5:$C$5,B147,C147) ->  | I147: =ThreePosition_Basic2($E$3,$E$5,$B$3:$C$3,$B$5:$C$5,B147,D147) ->  | N147: =Burmester($B$3:$C$3,$B$4:$C$4,$B$6:$C$6,$E$3,$E$4,$E$6,B147) ->  | P147: =ThreePosition_Basic2($E$3,$E$6,$B$3:$C$3,$B$6:$C$6,B147,N147) ->  | T147: =ThreePosition_Basic2($E$3,$E$6,$B$3:$C$3,$B$6:$C$6,B147,O147) -> 
A148: 66.5 | B148: 1.160643953 | C148: =Burmester($B$3:$C$3,$B$4:$C$4,$B$5:$C$5,$E$3,$E$4,$E$5,B148) ->  | E148: =ThreePosition_Basic2($E$3,$E$5,$B$3:$C$3,$B$5:$C$5,B148,C148) ->  | I148: =ThreePosition_Basic2($E$3,$E$5,$B$3:$C$3,$B$5:$C$5,B148,D148) ->  | N148: =Burmester($B$3:$C$3,$B$4:$C$4,$B$6:$C$6,$E$3,$E$4,$E$6,B148) ->  | P148: =ThreePosition_Basic2($E$3,$E$6,$B$3:$C$3,$B$6:$C$6,B148,N148) ->  | T148: =ThreePosition_Basic2($E$3,$E$6,$B$3:$C$3,$B$6:$C$6,B148,O148) -> 
A149: 67 | B149: 1.169370599 | C149: =Burmester($B$3:$C$3,$B$4:$C$4,$B$5:$C$5,$E$3,$E$4,$E$5,B149) ->  | E149: =ThreePosition_Basic2($E$3,$E$5,$B$3:$C$3,$B$5:$C$5,B149,C149) ->  | I149: =ThreePosition_Basic2($E$3,$E$5,$B$3:$C$3,$B$5:$C$5,B149,D149) ->  | N149: =Burmester($B$3:$C$3,$B$4:$C$4,$B$6:$C$6,$E$3,$E$4,$E$6,B149) ->  | P149: =ThreePosition_Basic2($E$3,$E$6,$B$3:$C$3,$B$6:$C$6,B149,N149) ->  | T149: =ThreePosition_Basic2($E$3,$E$6,$B$3:$C$3,$B$6:$C$6,B149,O149) -> 
A150: 67.5 | B150: 1.178097245 | C150: =Burmester($B$3:$C$3,$B$4:$C$4,$B$5:$C$5,$E$3,$E$4,$E$5,B150) ->  | E150: =ThreePosition_Basic2($E$3,$E$5,$B$3:$C$3,$B$5:$C$5,B150,C150) ->  | I150: =ThreePosition_Basic2($E$3,$E$5,$B$3:$C$3,$B$5:$C$5,B150,D150) ->  | N150: =Burmester($B$3:$C$3,$B$4:$C$4,$B$6:$C$6,$E$3,$E$4,$E$6,B150) ->  | P150: =ThreePosition_Basic2($E$3,$E$6,$B$3:$C$3,$B$6:$C$6,B150,N150) ->  | T150: =ThreePosition_Basic2($E$3,$E$6,$B$3:$C$3,$B$6:$C$6,B150,O150) -> 
A151: 68 | B151: 1.186823891 | C151: =Burmester($B$3:$C$3,$B$4:$C$4,$B$5:$C$5,$E$3,$E$4,$E$5,B151) ->  | E151: =ThreePosition_Basic2($E$3,$E$5,$B$3:$C$3,$B$5:$C$5,B151,C151) ->  | I151: =ThreePosition_Basic2($E$3,$E$5,$B$3:$C$3,$B$5:$C$5,B151,D151) ->  | N151: =Burmester($B$3:$C$3,$B$4:$C$4,$B$6:$C$6,$E$3,$E$4,$E$6,B151) ->  | P151: =ThreePosition_Basic2($E$3,$E$6,$B$3:$C$3,$B$6:$C$6,B151,N151) ->  | T151: =ThreePosition_Basic2($E$3,$E$6,$B$3:$C$3,$B$6:$C$6,B151,O151) -> 
A152: 68.5 | B152: 1.195550538 | C152: =Burmester($B$3:$C$3,$B$4:$C$4,$B$5:$C$5,$E$3,$E$4,$E$5,B152) ->  | E152: =ThreePosition_Basic2($E$3,$E$5,$B$3:$C$3,$B$5:$C$5,B152,C152) ->  | I152: =ThreePosition_Basic2($E$3,$E$5,$B$3:$C$3,$B$5:$C$5,B152,D152) ->  | N152: =Burmester($B$3:$C$3,$B$4:$C$4,$B$6:$C$6,$E$3,$E$4,$E$6,B152) ->  | P152: =ThreePosition_Basic2($E$3,$E$6,$B$3:$C$3,$B$6:$C$6,B152,N152) ->  | T152: =ThreePosition_Basic2($E$3,$E$6,$B$3:$C$3,$B$6:$C$6,B152,O152) -> 
A153: 69 | B153: 1.204277184 | C153: =Burmester($B$3:$C$3,$B$4:$C$4,$B$5:$C$5,$E$3,$E$4,$E$5,B153) ->  | E153: =ThreePosition_Basic2($E$3,$E$5,$B$3:$C$3,$B$5:$C$5,B153,C153) ->  | I153: =ThreePosition_Basic2($E$3,$E$5,$B$3:$C$3,$B$5:$C$5,B153,D153) ->  | N153: =Burmester($B$3:$C$3,$B$4:$C$4,$B$6:$C$6,$E$3,$E$4,$E$6,B153) ->  | P153: =ThreePosition_Basic2($E$3,$E$6,$B$3:$C$3,$B$6:$C$6,B153,N153) ->  | T153: =ThreePosition_Basic2($E$3,$E$6,$B$3:$C$3,$B$6:$C$6,B153,O153) -> 
A154: 69.5 | B154: 1.21300383 | C154: =Burmester($B$3:$C$3,$B$4:$C$4,$B$5:$C$5,$E$3,$E$4,$E$5,B154) ->  | E154: =ThreePosition_Basic2($E$3,$E$5,$B$3:$C$3,$B$5:$C$5,B154,C154) ->  | I154: =ThreePosition_Basic2($E$3,$E$5,$B$3:$C$3,$B$5:$C$5,B154,D154) ->  | N154: =Burmester($B$3:$C$3,$B$4:$C$4,$B$6:$C$6,$E$3,$E$4,$E$6,B154) ->  | P154: =ThreePosition_Basic2($E$3,$E$6,$B$3:$C$3,$B$6:$C$6,B154,N154) ->  | T154: =ThreePosition_Basic2($E$3,$E$6,$B$3:$C$3,$B$6:$C$6,B154,O154) -> 
A155: 70 | B155: 1.221730476 | C155: =Burmester($B$3:$C$3,$B$4:$C$4,$B$5:$C$5,$E$3,$E$4,$E$5,B155) ->  | E155: =ThreePosition_Basic2($E$3,$E$5,$B$3:$C$3,$B$5:$C$5,B155,C155) ->  | I155: =ThreePosition_Basic2($E$3,$E$5,$B$3:$C$3,$B$5:$C$5,B155,D155) ->  | N155: =Burmester($B$3:$C$3,$B$4:$C$4,$B$6:$C$6,$E$3,$E$4,$E$6,B155) ->  | P155: =ThreePosition_Basic2($E$3,$E$6,$B$3:$C$3,$B$6:$C$6,B155,N155) ->  | T155: =ThreePosition_Basic2($E$3,$E$6,$B$3:$C$3,$B$6:$C$6,B155,O155) -> 
A156: 70.5 | B156: 1.230457123 | C156: =Burmester($B$3:$C$3,$B$4:$C$4,$B$5:$C$5,$E$3,$E$4,$E$5,B156) ->  | E156: =ThreePosition_Basic2($E$3,$E$5,$B$3:$C$3,$B$5:$C$5,B156,C156) ->  | I156: =ThreePosition_Basic2($E$3,$E$5,$B$3:$C$3,$B$5:$C$5,B156,D156) ->  | N156: =Burmester($B$3:$C$3,$B$4:$C$4,$B$6:$C$6,$E$3,$E$4,$E$6,B156) ->  | P156: =ThreePosition_Basic2($E$3,$E$6,$B$3:$C$3,$B$6:$C$6,B156,N156) ->  | T156: =ThreePosition_Basic2($E$3,$E$6,$B$3:$C$3,$B$6:$C$6,B156,O156) -> 
A157: 71 | B157: 1.239183769 | C157: =Burmester($B$3:$C$3,$B$4:$C$4,$B$5:$C$5,$E$3,$E$4,$E$5,B157) ->  | E157: =ThreePosition_Basic2($E$3,$E$5,$B$3:$C$3,$B$5:$C$5,B157,C157) ->  | I157: =ThreePosition_Basic2($E$3,$E$5,$B$3:$C$3,$B$5:$C$5,B157,D157) ->  | N157: =Burmester($B$3:$C$3,$B$4:$C$4,$B$6:$C$6,$E$3,$E$4,$E$6,B157) ->  | P157: =ThreePosition_Basic2($E$3,$E$6,$B$3:$C$3,$B$6:$C$6,B157,N157) ->  | T157: =ThreePosition_Basic2($E$3,$E$6,$B$3:$C$3,$B$6:$C$6,B157,O157) -> 
A158: 71.5 | B158: 1.247910415 | C158: =Burmester($B$3:$C$3,$B$4:$C$4,$B$5:$C$5,$E$3,$E$4,$E$5,B158) ->  | E158: =ThreePosition_Basic2($E$3,$E$5,$B$3:$C$3,$B$5:$C$5,B158,C158) ->  | I158: =ThreePosition_Basic2($E$3,$E$5,$B$3:$C$3,$B$5:$C$5,B158,D158) ->  | N158: =Burmester($B$3:$C$3,$B$4:$C$4,$B$6:$C$6,$E$3,$E$4,$E$6,B158) ->  | P158: =ThreePosition_Basic2($E$3,$E$6,$B$3:$C$3,$B$6:$C$6,B158,N158) ->  | T158: =ThreePosition_Basic2($E$3,$E$6,$B$3:$C$3,$B$6:$C$6,B158,O158) -> 
A159: 72 | B159: 1.256637061 | C159: =Burmester($B$3:$C$3,$B$4:$C$4,$B$5:$C$5,$E$3,$E$4,$E$5,B159) ->  | E159: =ThreePosition_Basic2($E$3,$E$5,$B$3:$C$3,$B$5:$C$5,B159,C159) ->  | I159: =ThreePosition_Basic2($E$3,$E$5,$B$3:$C$3,$B$5:$C$5,B159,D159) ->  | N159: =Burmester($B$3:$C$3,$B$4:$C$4,$B$6:$C$6,$E$3,$E$4,$E$6,B159) ->  | P159: =ThreePosition_Basic2($E$3,$E$6,$B$3:$C$3,$B$6:$C$6,B159,N159) ->  | T159: =ThreePosition_Basic2($E$3,$E$6,$B$3:$C$3,$B$6:$C$6,B159,O159) -> 
A160: 72.5 | B160: 1.265363708 | C160: =Burmester($B$3:$C$3,$B$4:$C$4,$B$5:$C$5,$E$3,$E$4,$E$5,B160) ->  | E160: =ThreePosition_Basic2($E$3,$E$5,$B$3:$C$3,$B$5:$C$5,B160,C160) ->  | I160: =ThreePosition_Basic2($E$3,$E$5,$B$3:$C$3,$B$5:$C$5,B160,D160) ->  | N160: =Burmester($B$3:$C$3,$B$4:$C$4,$B$6:$C$6,$E$3,$E$4,$E$6,B160) ->  | P160: =ThreePosition_Basic2($E$3,$E$6,$B$3:$C$3,$B$6:$C$6,B160,N160) ->  | T160: =ThreePosition_Basic2($E$3,$E$6,$B$3:$C$3,$B$6:$C$6,B160,O160) -> 
A161: 73 | B161: 1.274090354 | C161: =Burmester($B$3:$C$3,$B$4:$C$4,$B$5:$C$5,$E$3,$E$4,$E$5,B161) ->  | E161: =ThreePosition_Basic2($E$3,$E$5,$B$3:$C$3,$B$5:$C$5,B161,C161) ->  | I161: =ThreePosition_Basic2($E$3,$E$5,$B$3:$C$3,$B$5:$C$5,B161,D161) ->  | N161: =Burmester($B$3:$C$3,$B$4:$C$4,$B$6:$C$6,$E$3,$E$4,$E$6,B161) ->  | P161: =ThreePosition_Basic2($E$3,$E$6,$B$3:$C$3,$B$6:$C$6,B161,N161) ->  | T161: =ThreePosition_Basic2($E$3,$E$6,$B$3:$C$3,$B$6:$C$6,B161,O161) -> 
A162: 73.5 | B162: 1.282817 | C162: =Burmester($B$3:$C$3,$B$4:$C$4,$B$5:$C$5,$E$3,$E$4,$E$5,B162) ->  | E162: =ThreePosition_Basic2($E$3,$E$5,$B$3:$C$3,$B$5:$C$5,B162,C162) ->  | I162: =ThreePosition_Basic2($E$3,$E$5,$B$3:$C$3,$B$5:$C$5,B162,D162) ->  | N162: =Burmester($B$3:$C$3,$B$4:$C$4,$B$6:$C$6,$E$3,$E$4,$E$6,B162) ->  | P162: =ThreePosition_Basic2($E$3,$E$6,$B$3:$C$3,$B$6:$C$6,B162,N162) ->  | T162: =ThreePosition_Basic2($E$3,$E$6,$B$3:$C$3,$B$6:$C$6,B162,O162) -> 
A163: 74 | B163: 1.291543646 | C163: =Burmester($B$3:$C$3,$B$4:$C$4,$B$5:$C$5,$E$3,$E$4,$E$5,B163) ->  | E163: =ThreePosition_Basic2($E$3,$E$5,$B$3:$C$3,$B$5:$C$5,B163,C163) ->  | I163: =ThreePosition_Basic2($E$3,$E$5,$B$3:$C$3,$B$5:$C$5,B163,D163) ->  | N163: =Burmester($B$3:$C$3,$B$4:$C$4,$B$6:$C$6,$E$3,$E$4,$E$6,B163) ->  | P163: =ThreePosition_Basic2($E$3,$E$6,$B$3:$C$3,$B$6:$C$6,B163,N163) ->  | T163: =ThreePosition_Basic2($E$3,$E$6,$B$3:$C$3,$B$6:$C$6,B163,O163) -> 
A164: 74.5 | B164: 1.300270293 | C164: =Burmester($B$3:$C$3,$B$4:$C$4,$B$5:$C$5,$E$3,$E$4,$E$5,B164) ->  | E164: =ThreePosition_Basic2($E$3,$E$5,$B$3:$C$3,$B$5:$C$5,B164,C164) ->  | I164: =ThreePosition_Basic2($E$3,$E$5,$B$3:$C$3,$B$5:$C$5,B164,D164) ->  | N164: =Burmester($B$3:$C$3,$B$4:$C$4,$B$6:$C$6,$E$3,$E$4,$E$6,B164) ->  | P164: =ThreePosition_Basic2($E$3,$E$6,$B$3:$C$3,$B$6:$C$6,B164,N164) ->  | T164: =ThreePosition_Basic2($E$3,$E$6,$B$3:$C$3,$B$6:$C$6,B164,O164) -> 
A165: 75 | B165: 1.308996939 | C165: =Burmester($B$3:$C$3,$B$4:$C$4,$B$5:$C$5,$E$3,$E$4,$E$5,B165) ->  | E165: =ThreePosition_Basic2($E$3,$E$5,$B$3:$C$3,$B$5:$C$5,B165,C165) ->  | I165: =ThreePosition_Basic2($E$3,$E$5,$B$3:$C$3,$B$5:$C$5,B165,D165) ->  | N165: =Burmester($B$3:$C$3,$B$4:$C$4,$B$6:$C$6,$E$3,$E$4,$E$6,B165) ->  | P165: =ThreePosition_Basic2($E$3,$E$6,$B$3:$C$3,$B$6:$C$6,B165,N165) ->  | T165: =ThreePosition_Basic2($E$3,$E$6,$B$3:$C$3,$B$6:$C$6,B165,O165) -> 
A166: 75.5 | B166: 1.317723585 | C166: =Burmester($B$3:$C$3,$B$4:$C$4,$B$5:$C$5,$E$3,$E$4,$E$5,B166) ->  | E166: =ThreePosition_Basic2($E$3,$E$5,$B$3:$C$3,$B$5:$C$5,B166,C166) ->  | I166: =ThreePosition_Basic2($E$3,$E$5,$B$3:$C$3,$B$5:$C$5,B166,D166) ->  | N166: =Burmester($B$3:$C$3,$B$4:$C$4,$B$6:$C$6,$E$3,$E$4,$E$6,B166) ->  | P166: =ThreePosition_Basic2($E$3,$E$6,$B$3:$C$3,$B$6:$C$6,B166,N166) ->  | T166: =ThreePosition_Basic2($E$3,$E$6,$B$3:$C$3,$B$6:$C$6,B166,O166) -> 
A167: 76 | B167: 1.326450232 | C167: =Burmester($B$3:$C$3,$B$4:$C$4,$B$5:$C$5,$E$3,$E$4,$E$5,B167) ->  | E167: =ThreePosition_Basic2($E$3,$E$5,$B$3:$C$3,$B$5:$C$5,B167,C167) ->  | I167: =ThreePosition_Basic2($E$3,$E$5,$B$3:$C$3,$B$5:$C$5,B167,D167) ->  | N167: =Burmester($B$3:$C$3,$B$4:$C$4,$B$6:$C$6,$E$3,$E$4,$E$6,B167) ->  | P167: =ThreePosition_Basic2($E$3,$E$6,$B$3:$C$3,$B$6:$C$6,B167,N167) ->  | T167: =ThreePosition_Basic2($E$3,$E$6,$B$3:$C$3,$B$6:$C$6,B167,O167) -> 
A168: 76.5 | B168: 1.335176878 | C168: =Burmester($B$3:$C$3,$B$4:$C$4,$B$5:$C$5,$E$3,$E$4,$E$5,B168) ->  | E168: =ThreePosition_Basic2($E$3,$E$5,$B$3:$C$3,$B$5:$C$5,B168,C168) ->  | I168: =ThreePosition_Basic2($E$3,$E$5,$B$3:$C$3,$B$5:$C$5,B168,D168) ->  | N168: =Burmester($B$3:$C$3,$B$4:$C$4,$B$6:$C$6,$E$3,$E$4,$E$6,B168) ->  | P168: =ThreePosition_Basic2($E$3,$E$6,$B$3:$C$3,$B$6:$C$6,B168,N168) ->  | T168: =ThreePosition_Basic2($E$3,$E$6,$B$3:$C$3,$B$6:$C$6,B168,O168) -> 
A169: 77 | B169: 1.343903524 | C169: =Burmester($B$3:$C$3,$B$4:$C$4,$B$5:$C$5,$E$3,$E$4,$E$5,B169) ->  | E169: =ThreePosition_Basic2($E$3,$E$5,$B$3:$C$3,$B$5:$C$5,B169,C169) ->  | I169: =ThreePosition_Basic2($E$3,$E$5,$B$3:$C$3,$B$5:$C$5,B169,D169) ->  | N169: =Burmester($B$3:$C$3,$B$4:$C$4,$B$6:$C$6,$E$3,$E$4,$E$6,B169) ->  | P169: =ThreePosition_Basic2($E$3,$E$6,$B$3:$C$3,$B$6:$C$6,B169,N169) ->  | T169: =ThreePosition_Basic2($E$3,$E$6,$B$3:$C$3,$B$6:$C$6,B169,O169) -> 
A170: 77.5 | B170: 1.35263017 | C170: =Burmester($B$3:$C$3,$B$4:$C$4,$B$5:$C$5,$E$3,$E$4,$E$5,B170) ->  | E170: =ThreePosition_Basic2($E$3,$E$5,$B$3:$C$3,$B$5:$C$5,B170,C170) ->  | I170: =ThreePosition_Basic2($E$3,$E$5,$B$3:$C$3,$B$5:$C$5,B170,D170) ->  | N170: =Burmester($B$3:$C$3,$B$4:$C$4,$B$6:$C$6,$E$3,$E$4,$E$6,B170) ->  | P170: =ThreePosition_Basic2($E$3,$E$6,$B$3:$C$3,$B$6:$C$6,B170,N170) ->  | T170: =ThreePosition_Basic2($E$3,$E$6,$B$3:$C$3,$B$6:$C$6,B170,O170) -> 
A171: 78 | B171: 1.361356817 | C171: =Burmester($B$3:$C$3,$B$4:$C$4,$B$5:$C$5,$E$3,$E$4,$E$5,B171) ->  | E171: =ThreePosition_Basic2($E$3,$E$5,$B$3:$C$3,$B$5:$C$5,B171,C171) ->  | I171: =ThreePosition_Basic2($E$3,$E$5,$B$3:$C$3,$B$5:$C$5,B171,D171) ->  | N171: =Burmester($B$3:$C$3,$B$4:$C$4,$B$6:$C$6,$E$3,$E$4,$E$6,B171) ->  | P171: =ThreePosition_Basic2($E$3,$E$6,$B$3:$C$3,$B$6:$C$6,B171,N171) ->  | T171: =ThreePosition_Basic2($E$3,$E$6,$B$3:$C$3,$B$6:$C$6,B171,O171) -> 
A172: 78.5 | B172: 1.370083463 | C172: =Burmester($B$3:$C$3,$B$4:$C$4,$B$5:$C$5,$E$3,$E$4,$E$5,B172) ->  | E172: =ThreePosition_Basic2($E$3,$E$5,$B$3:$C$3,$B$5:$C$5,B172,C172) ->  | I172: =ThreePosition_Basic2($E$3,$E$5,$B$3:$C$3,$B$5:$C$5,B172,D172) ->  | N172: =Burmester($B$3:$C$3,$B$4:$C$4,$B$6:$C$6,$E$3,$E$4,$E$6,B172) ->  | P172: =ThreePosition_Basic2($E$3,$E$6,$B$3:$C$3,$B$6:$C$6,B172,N172) ->  | T172: =ThreePosition_Basic2($E$3,$E$6,$B$3:$C$3,$B$6:$C$6,B172,O172) -> 
A173: 79 | B173: 1.378810109 | C173: =Burmester($B$3:$C$3,$B$4:$C$4,$B$5:$C$5,$E$3,$E$4,$E$5,B173) ->  | E173: =ThreePosition_Basic2($E$3,$E$5,$B$3:$C$3,$B$5:$C$5,B173,C173) ->  | I173: =ThreePosition_Basic2($E$3,$E$5,$B$3:$C$3,$B$5:$C$5,B173,D173) ->  | N173: =Burmester($B$3:$C$3,$B$4:$C$4,$B$6:$C$6,$E$3,$E$4,$E$6,B173) ->  | P173: =ThreePosition_Basic2($E$3,$E$6,$B$3:$C$3,$B$6:$C$6,B173,N173) ->  | T173: =ThreePosition_Basic2($E$3,$E$6,$B$3:$C$3,$B$6:$C$6,B173,O173) -> 
A174: 79.5 | B174: 1.387536755 | C174: =Burmester($B$3:$C$3,$B$4:$C$4,$B$5:$C$5,$E$3,$E$4,$E$5,B174) ->  | E174: =ThreePosition_Basic2($E$3,$E$5,$B$3:$C$3,$B$5:$C$5,B174,C174) ->  | I174: =ThreePosition_Basic2($E$3,$E$5,$B$3:$C$3,$B$5:$C$5,B174,D174) ->  | N174: =Burmester($B$3:$C$3,$B$4:$C$4,$B$6:$C$6,$E$3,$E$4,$E$6,B174) ->  | P174: =ThreePosition_Basic2($E$3,$E$6,$B$3:$C$3,$B$6:$C$6,B174,N174) ->  | T174: =ThreePosition_Basic2($E$3,$E$6,$B$3:$C$3,$B$6:$C$6,B174,O174) -> 
A175: 80 | B175: 1.396263402 | C175: =Burmester($B$3:$C$3,$B$4:$C$4,$B$5:$C$5,$E$3,$E$4,$E$5,B175) ->  | E175: =ThreePosition_Basic2($E$3,$E$5,$B$3:$C$3,$B$5:$C$5,B175,C175) ->  | I175: =ThreePosition_Basic2($E$3,$E$5,$B$3:$C$3,$B$5:$C$5,B175,D175) ->  | N175: =Burmester($B$3:$C$3,$B$4:$C$4,$B$6:$C$6,$E$3,$E$4,$E$6,B175) ->  | P175: =ThreePosition_Basic2($E$3,$E$6,$B$3:$C$3,$B$6:$C$6,B175,N175) ->  | T175: =ThreePosition_Basic2($E$3,$E$6,$B$3:$C$3,$B$6:$C$6,B175,O175) -> 
A176: 80.5 | B176: 1.404990048 | C176: =Burmester($B$3:$C$3,$B$4:$C$4,$B$5:$C$5,$E$3,$E$4,$E$5,B176) ->  | E176: =ThreePosition_Basic2($E$3,$E$5,$B$3:$C$3,$B$5:$C$5,B176,C176) ->  | I176: =ThreePosition_Basic2($E$3,$E$5,$B$3:$C$3,$B$5:$C$5,B176,D176) ->  | N176: =Burmester($B$3:$C$3,$B$4:$C$4,$B$6:$C$6,$E$3,$E$4,$E$6,B176) ->  | P176: =ThreePosition_Basic2($E$3,$E$6,$B$3:$C$3,$B$6:$C$6,B176,N176) ->  | T176: =ThreePosition_Basic2($E$3,$E$6,$B$3:$C$3,$B$6:$C$6,B176,O176) -> 
A177: 81 | B177: 1.413716694 | C177: =Burmester($B$3:$C$3,$B$4:$C$4,$B$5:$C$5,$E$3,$E$4,$E$5,B177) ->  | E177: =ThreePosition_Basic2($E$3,$E$5,$B$3:$C$3,$B$5:$C$5,B177,C177) ->  | I177: =ThreePosition_Basic2($E$3,$E$5,$B$3:$C$3,$B$5:$C$5,B177,D177) ->  | N177: =Burmester($B$3:$C$3,$B$4:$C$4,$B$6:$C$6,$E$3,$E$4,$E$6,B177) ->  | P177: =ThreePosition_Basic2($E$3,$E$6,$B$3:$C$3,$B$6:$C$6,B177,N177) ->  | T177: =ThreePosition_Basic2($E$3,$E$6,$B$3:$C$3,$B$6:$C$6,B177,O177) -> 
A178: 81.5 | B178: 1.42244334 | C178: =Burmester($B$3:$C$3,$B$4:$C$4,$B$5:$C$5,$E$3,$E$4,$E$5,B178) ->  | E178: =ThreePosition_Basic2($E$3,$E$5,$B$3:$C$3,$B$5:$C$5,B178,C178) ->  | I178: =ThreePosition_Basic2($E$3,$E$5,$B$3:$C$3,$B$5:$C$5,B178,D178) ->  | N178: =Burmester($B$3:$C$3,$B$4:$C$4,$B$6:$C$6,$E$3,$E$4,$E$6,B178) ->  | P178: =ThreePosition_Basic2($E$3,$E$6,$B$3:$C$3,$B$6:$C$6,B178,N178) ->  | T178: =ThreePosition_Basic2($E$3,$E$6,$B$3:$C$3,$B$6:$C$6,B178,O178) -> 
A179: 82 | B179: 1.431169987 | C179: =Burmester($B$3:$C$3,$B$4:$C$4,$B$5:$C$5,$E$3,$E$4,$E$5,B179) ->  | E179: =ThreePosition_Basic2($E$3,$E$5,$B$3:$C$3,$B$5:$C$5,B179,C179) ->  | I179: =ThreePosition_Basic2($E$3,$E$5,$B$3:$C$3,$B$5:$C$5,B179,D179) ->  | N179: =Burmester($B$3:$C$3,$B$4:$C$4,$B$6:$C$6,$E$3,$E$4,$E$6,B179) ->  | P179: =ThreePosition_Basic2($E$3,$E$6,$B$3:$C$3,$B$6:$C$6,B179,N179) ->  | T179: =ThreePosition_Basic2($E$3,$E$6,$B$3:$C$3,$B$6:$C$6,B179,O179) -> 
A180: 82.5 | B180: 1.439896633 | C180: =Burmester($B$3:$C$3,$B$4:$C$4,$B$5:$C$5,$E$3,$E$4,$E$5,B180) ->  | E180: =ThreePosition_Basic2($E$3,$E$5,$B$3:$C$3,$B$5:$C$5,B180,C180) ->  | I180: =ThreePosition_Basic2($E$3,$E$5,$B$3:$C$3,$B$5:$C$5,B180,D180) ->  | N180: =Burmester($B$3:$C$3,$B$4:$C$4,$B$6:$C$6,$E$3,$E$4,$E$6,B180) ->  | P180: =ThreePosition_Basic2($E$3,$E$6,$B$3:$C$3,$B$6:$C$6,B180,N180) ->  | T180: =ThreePosition_Basic2($E$3,$E$6,$B$3:$C$3,$B$6:$C$6,B180,O180) -> 
A181: 83 | B181: 1.448623279 | C181: =Burmester($B$3:$C$3,$B$4:$C$4,$B$5:$C$5,$E$3,$E$4,$E$5,B181) ->  | E181: =ThreePosition_Basic2($E$3,$E$5,$B$3:$C$3,$B$5:$C$5,B181,C181) ->  | I181: =ThreePosition_Basic2($E$3,$E$5,$B$3:$C$3,$B$5:$C$5,B181,D181) ->  | N181: =Burmester($B$3:$C$3,$B$4:$C$4,$B$6:$C$6,$E$3,$E$4,$E$6,B181) ->  | P181: =ThreePosition_Basic2($E$3,$E$6,$B$3:$C$3,$B$6:$C$6,B181,N181) ->  | T181: =ThreePosition_Basic2($E$3,$E$6,$B$3:$C$3,$B$6:$C$6,B181,O181) -> 
A182: 83.5 | B182: 1.457349925 | C182: =Burmester($B$3:$C$3,$B$4:$C$4,$B$5:$C$5,$E$3,$E$4,$E$5,B182) ->  | E182: =ThreePosition_Basic2($E$3,$E$5,$B$3:$C$3,$B$5:$C$5,B182,C182) ->  | I182: =ThreePosition_Basic2($E$3,$E$5,$B$3:$C$3,$B$5:$C$5,B182,D182) ->  | N182: =Burmester($B$3:$C$3,$B$4:$C$4,$B$6:$C$6,$E$3,$E$4,$E$6,B182) ->  | P182: =ThreePosition_Basic2($E$3,$E$6,$B$3:$C$3,$B$6:$C$6,B182,N182) ->  | T182: =ThreePosition_Basic2($E$3,$E$6,$B$3:$C$3,$B$6:$C$6,B182,O182) -> 
A183: 84 | B183: 1.466076572 | C183: =Burmester($B$3:$C$3,$B$4:$C$4,$B$5:$C$5,$E$3,$E$4,$E$5,B183) ->  | E183: =ThreePosition_Basic2($E$3,$E$5,$B$3:$C$3,$B$5:$C$5,B183,C183) ->  | I183: =ThreePosition_Basic2($E$3,$E$5,$B$3:$C$3,$B$5:$C$5,B183,D183) ->  | N183: =Burmester($B$3:$C$3,$B$4:$C$4,$B$6:$C$6,$E$3,$E$4,$E$6,B183) ->  | P183: =ThreePosition_Basic2($E$3,$E$6,$B$3:$C$3,$B$6:$C$6,B183,N183) ->  | T183: =ThreePosition_Basic2($E$3,$E$6,$B$3:$C$3,$B$6:$C$6,B183,O183) -> 
A184: 84.5 | B184: 1.474803218 | C184: =Burmester($B$3:$C$3,$B$4:$C$4,$B$5:$C$5,$E$3,$E$4,$E$5,B184) ->  | E184: =ThreePosition_Basic2($E$3,$E$5,$B$3:$C$3,$B$5:$C$5,B184,C184) ->  | I184: =ThreePosition_Basic2($E$3,$E$5,$B$3:$C$3,$B$5:$C$5,B184,D184) ->  | N184: =Burmester($B$3:$C$3,$B$4:$C$4,$B$6:$C$6,$E$3,$E$4,$E$6,B184) ->  | P184: =ThreePosition_Basic2($E$3,$E$6,$B$3:$C$3,$B$6:$C$6,B184,N184) ->  | T184: =ThreePosition_Basic2($E$3,$E$6,$B$3:$C$3,$B$6:$C$6,B184,O184) -> 
A185: 85 | B185: 1.483529864 | C185: =Burmester($B$3:$C$3,$B$4:$C$4,$B$5:$C$5,$E$3,$E$4,$E$5,B185) ->  | E185: =ThreePosition_Basic2($E$3,$E$5,$B$3:$C$3,$B$5:$C$5,B185,C185) ->  | I185: =ThreePosition_Basic2($E$3,$E$5,$B$3:$C$3,$B$5:$C$5,B185,D185) ->  | N185: =Burmester($B$3:$C$3,$B$4:$C$4,$B$6:$C$6,$E$3,$E$4,$E$6,B185) ->  | P185: =ThreePosition_Basic2($E$3,$E$6,$B$3:$C$3,$B$6:$C$6,B185,N185) ->  | T185: =ThreePosition_Basic2($E$3,$E$6,$B$3:$C$3,$B$6:$C$6,B185,O185) -> 
A186: 85.5 | B186: 1.49225651 | C186: =Burmester($B$3:$C$3,$B$4:$C$4,$B$5:$C$5,$E$3,$E$4,$E$5,B186) ->  | E186: =ThreePosition_Basic2($E$3,$E$5,$B$3:$C$3,$B$5:$C$5,B186,C186) ->  | I186: =ThreePosition_Basic2($E$3,$E$5,$B$3:$C$3,$B$5:$C$5,B186,D186) ->  | N186: =Burmester($B$3:$C$3,$B$4:$C$4,$B$6:$C$6,$E$3,$E$4,$E$6,B186) ->  | P186: =ThreePosition_Basic2($E$3,$E$6,$B$3:$C$3,$B$6:$C$6,B186,N186) ->  | T186: =ThreePosition_Basic2($E$3,$E$6,$B$3:$C$3,$B$6:$C$6,B186,O186) -> 
A187: 86 | B187: 1.500983157 | C187: =Burmester($B$3:$C$3,$B$4:$C$4,$B$5:$C$5,$E$3,$E$4,$E$5,B187) ->  | E187: =ThreePosition_Basic2($E$3,$E$5,$B$3:$C$3,$B$5:$C$5,B187,C187) ->  | I187: =ThreePosition_Basic2($E$3,$E$5,$B$3:$C$3,$B$5:$C$5,B187,D187) ->  | N187: =Burmester($B$3:$C$3,$B$4:$C$4,$B$6:$C$6,$E$3,$E$4,$E$6,B187) ->  | P187: =ThreePosition_Basic2($E$3,$E$6,$B$3:$C$3,$B$6:$C$6,B187,N187) ->  | T187: =ThreePosition_Basic2($E$3,$E$6,$B$3:$C$3,$B$6:$C$6,B187,O187) -> 
A188: 86.5 | B188: 1.509709803 | C188: =Burmester($B$3:$C$3,$B$4:$C$4,$B$5:$C$5,$E$3,$E$4,$E$5,B188) ->  | E188: =ThreePosition_Basic2($E$3,$E$5,$B$3:$C$3,$B$5:$C$5,B188,C188) ->  | I188: =ThreePosition_Basic2($E$3,$E$5,$B$3:$C$3,$B$5:$C$5,B188,D188) ->  | N188: =Burmester($B$3:$C$3,$B$4:$C$4,$B$6:$C$6,$E$3,$E$4,$E$6,B188) ->  | P188: =ThreePosition_Basic2($E$3,$E$6,$B$3:$C$3,$B$6:$C$6,B188,N188) ->  | T188: =ThreePosition_Basic2($E$3,$E$6,$B$3:$C$3,$B$6:$C$6,B188,O188) -> 
A189: 87 | B189: 1.518436449 | C189: =Burmester($B$3:$C$3,$B$4:$C$4,$B$5:$C$5,$E$3,$E$4,$E$5,B189) ->  | E189: =ThreePosition_Basic2($E$3,$E$5,$B$3:$C$3,$B$5:$C$5,B189,C189) ->  | I189: =ThreePosition_Basic2($E$3,$E$5,$B$3:$C$3,$B$5:$C$5,B189,D189) ->  | N189: =Burmester($B$3:$C$3,$B$4:$C$4,$B$6:$C$6,$E$3,$E$4,$E$6,B189) ->  | P189: =ThreePosition_Basic2($E$3,$E$6,$B$3:$C$3,$B$6:$C$6,B189,N189) ->  | T189: =ThreePosition_Basic2($E$3,$E$6,$B$3:$C$3,$B$6:$C$6,B189,O189) -> 
A190: 87.5 | B190: 1.527163095 | C190: =Burmester($B$3:$C$3,$B$4:$C$4,$B$5:$C$5,$E$3,$E$4,$E$5,B190) ->  | E190: =ThreePosition_Basic2($E$3,$E$5,$B$3:$C$3,$B$5:$C$5,B190,C190) ->  | I190: =ThreePosition_Basic2($E$3,$E$5,$B$3:$C$3,$B$5:$C$5,B190,D190) ->  | N190: =Burmester($B$3:$C$3,$B$4:$C$4,$B$6:$C$6,$E$3,$E$4,$E$6,B190) ->  | P190: =ThreePosition_Basic2($E$3,$E$6,$B$3:$C$3,$B$6:$C$6,B190,N190) ->  | T190: =ThreePosition_Basic2($E$3,$E$6,$B$3:$C$3,$B$6:$C$6,B190,O190) -> 
A191: 88 | B191: 1.535889742 | C191: =Burmester($B$3:$C$3,$B$4:$C$4,$B$5:$C$5,$E$3,$E$4,$E$5,B191) ->  | E191: =ThreePosition_Basic2($E$3,$E$5,$B$3:$C$3,$B$5:$C$5,B191,C191) ->  | I191: =ThreePosition_Basic2($E$3,$E$5,$B$3:$C$3,$B$5:$C$5,B191,D191) ->  | N191: =Burmester($B$3:$C$3,$B$4:$C$4,$B$6:$C$6,$E$3,$E$4,$E$6,B191) ->  | P191: =ThreePosition_Basic2($E$3,$E$6,$B$3:$C$3,$B$6:$C$6,B191,N191) ->  | T191: =ThreePosition_Basic2($E$3,$E$6,$B$3:$C$3,$B$6:$C$6,B191,O191) -> 
A192: 88.5 | B192: 1.544616388 | C192: =Burmester($B$3:$C$3,$B$4:$C$4,$B$5:$C$5,$E$3,$E$4,$E$5,B192) ->  | E192: =ThreePosition_Basic2($E$3,$E$5,$B$3:$C$3,$B$5:$C$5,B192,C192) ->  | I192: =ThreePosition_Basic2($E$3,$E$5,$B$3:$C$3,$B$5:$C$5,B192,D192) ->  | N192: =Burmester($B$3:$C$3,$B$4:$C$4,$B$6:$C$6,$E$3,$E$4,$E$6,B192) ->  | P192: =ThreePosition_Basic2($E$3,$E$6,$B$3:$C$3,$B$6:$C$6,B192,N192) ->  | T192: =ThreePosition_Basic2($E$3,$E$6,$B$3:$C$3,$B$6:$C$6,B192,O192) -> 
A193: 89 | B193: 1.553343034 | C193: =Burmester($B$3:$C$3,$B$4:$C$4,$B$5:$C$5,$E$3,$E$4,$E$5,B193) ->  | E193: =ThreePosition_Basic2($E$3,$E$5,$B$3:$C$3,$B$5:$C$5,B193,C193) ->  | I193: =ThreePosition_Basic2($E$3,$E$5,$B$3:$C$3,$B$5:$C$5,B193,D193) ->  | N193: =Burmester($B$3:$C$3,$B$4:$C$4,$B$6:$C$6,$E$3,$E$4,$E$6,B193) ->  | P193: =ThreePosition_Basic2($E$3,$E$6,$B$3:$C$3,$B$6:$C$6,B193,N193) ->  | T193: =ThreePosition_Basic2($E$3,$E$6,$B$3:$C$3,$B$6:$C$6,B193,O193) -> 
A194: 89.5 | B194: 1.562069681 | C194: =Burmester($B$3:$C$3,$B$4:$C$4,$B$5:$C$5,$E$3,$E$4,$E$5,B194) ->  | E194: =ThreePosition_Basic2($E$3,$E$5,$B$3:$C$3,$B$5:$C$5,B194,C194) ->  | I194: =ThreePosition_Basic2($E$3,$E$5,$B$3:$C$3,$B$5:$C$5,B194,D194) ->  | N194: =Burmester($B$3:$C$3,$B$4:$C$4,$B$6:$C$6,$E$3,$E$4,$E$6,B194) ->  | P194: =ThreePosition_Basic2($E$3,$E$6,$B$3:$C$3,$B$6:$C$6,B194,N194) ->  | T194: =ThreePosition_Basic2($E$3,$E$6,$B$3:$C$3,$B$6:$C$6,B194,O194) -> 
A195: 90 | B195: 1.570796327 | C195: =Burmester($B$3:$C$3,$B$4:$C$4,$B$5:$C$5,$E$3,$E$4,$E$5,B195) ->  | E195: =ThreePosition_Basic2($E$3,$E$5,$B$3:$C$3,$B$5:$C$5,B195,C195) ->  | I195: =ThreePosition_Basic2($E$3,$E$5,$B$3:$C$3,$B$5:$C$5,B195,D195) ->  | N195: =Burmester($B$3:$C$3,$B$4:$C$4,$B$6:$C$6,$E$3,$E$4,$E$6,B195) ->  | P195: =ThreePosition_Basic2($E$3,$E$6,$B$3:$C$3,$B$6:$C$6,B195,N195) ->  | T195: =ThreePosition_Basic2($E$3,$E$6,$B$3:$C$3,$B$6:$C$6,B195,O195) -> 
A196: 90.5 | B196: 1.579522973 | C196: =Burmester($B$3:$C$3,$B$4:$C$4,$B$5:$C$5,$E$3,$E$4,$E$5,B196) ->  | E196: =ThreePosition_Basic2($E$3,$E$5,$B$3:$C$3,$B$5:$C$5,B196,C196) ->  | I196: =ThreePosition_Basic2($E$3,$E$5,$B$3:$C$3,$B$5:$C$5,B196,D196) ->  | N196: =Burmester($B$3:$C$3,$B$4:$C$4,$B$6:$C$6,$E$3,$E$4,$E$6,B196) ->  | P196: =ThreePosition_Basic2($E$3,$E$6,$B$3:$C$3,$B$6:$C$6,B196,N196) ->  | T196: =ThreePosition_Basic2($E$3,$E$6,$B$3:$C$3,$B$6:$C$6,B196,O196) -> 
A197: 91 | B197: 1.588249619 | C197: =Burmester($B$3:$C$3,$B$4:$C$4,$B$5:$C$5,$E$3,$E$4,$E$5,B197) ->  | E197: =ThreePosition_Basic2($E$3,$E$5,$B$3:$C$3,$B$5:$C$5,B197,C197) ->  | I197: =ThreePosition_Basic2($E$3,$E$5,$B$3:$C$3,$B$5:$C$5,B197,D197) ->  | N197: =Burmester($B$3:$C$3,$B$4:$C$4,$B$6:$C$6,$E$3,$E$4,$E$6,B197) ->  | P197: =ThreePosition_Basic2($E$3,$E$6,$B$3:$C$3,$B$6:$C$6,B197,N197) ->  | T197: =ThreePosition_Basic2($E$3,$E$6,$B$3:$C$3,$B$6:$C$6,B197,O197) -> 
A198: 91.5 | B198: 1.596976266 | C198: =Burmester($B$3:$C$3,$B$4:$C$4,$B$5:$C$5,$E$3,$E$4,$E$5,B198) ->  | E198: =ThreePosition_Basic2($E$3,$E$5,$B$3:$C$3,$B$5:$C$5,B198,C198) ->  | I198: =ThreePosition_Basic2($E$3,$E$5,$B$3:$C$3,$B$5:$C$5,B198,D198) ->  | N198: =Burmester($B$3:$C$3,$B$4:$C$4,$B$6:$C$6,$E$3,$E$4,$E$6,B198) ->  | P198: =ThreePosition_Basic2($E$3,$E$6,$B$3:$C$3,$B$6:$C$6,B198,N198) ->  | T198: =ThreePosition_Basic2($E$3,$E$6,$B$3:$C$3,$B$6:$C$6,B198,O198) -> 
A199: 92 | B199: 1.605702912 | C199: =Burmester($B$3:$C$3,$B$4:$C$4,$B$5:$C$5,$E$3,$E$4,$E$5,B199) ->  | E199: =ThreePosition_Basic2($E$3,$E$5,$B$3:$C$3,$B$5:$C$5,B199,C199) ->  | I199: =ThreePosition_Basic2($E$3,$E$5,$B$3:$C$3,$B$5:$C$5,B199,D199) ->  | N199: =Burmester($B$3:$C$3,$B$4:$C$4,$B$6:$C$6,$E$3,$E$4,$E$6,B199) ->  | P199: =ThreePosition_Basic2($E$3,$E$6,$B$3:$C$3,$B$6:$C$6,B199,N199) ->  | T199: =ThreePosition_Basic2($E$3,$E$6,$B$3:$C$3,$B$6:$C$6,B199,O199) -> 
A200: 92.5 | B200: 1.614429558 | C200: =Burmester($B$3:$C$3,$B$4:$C$4,$B$5:$C$5,$E$3,$E$4,$E$5,B200) ->  | E200: =ThreePosition_Basic2($E$3,$E$5,$B$3:$C$3,$B$5:$C$5,B200,C200) ->  | I200: =ThreePosition_Basic2($E$3,$E$5,$B$3:$C$3,$B$5:$C$5,B200,D200) ->  | N200: =Burmester($B$3:$C$3,$B$4:$C$4,$B$6:$C$6,$E$3,$E$4,$E$6,B200) ->  | P200: =ThreePosition_Basic2($E$3,$E$6,$B$3:$C$3,$B$6:$C$6,B200,N200) ->  | T200: =ThreePosition_Basic2($E$3,$E$6,$B$3:$C$3,$B$6:$C$6,B200,O200) -> 
A201: 93 | B201: 1.623156204 | C201: =Burmester($B$3:$C$3,$B$4:$C$4,$B$5:$C$5,$E$3,$E$4,$E$5,B201) ->  | E201: =ThreePosition_Basic2($E$3,$E$5,$B$3:$C$3,$B$5:$C$5,B201,C201) ->  | I201: =ThreePosition_Basic2($E$3,$E$5,$B$3:$C$3,$B$5:$C$5,B201,D201) ->  | N201: =Burmester($B$3:$C$3,$B$4:$C$4,$B$6:$C$6,$E$3,$E$4,$E$6,B201) ->  | P201: =ThreePosition_Basic2($E$3,$E$6,$B$3:$C$3,$B$6:$C$6,B201,N201) ->  | T201: =ThreePosition_Basic2($E$3,$E$6,$B$3:$C$3,$B$6:$C$6,B201,O201) -> 
A202: 93.5 | B202: 1.631882851 | C202: =Burmester($B$3:$C$3,$B$4:$C$4,$B$5:$C$5,$E$3,$E$4,$E$5,B202) ->  | E202: =ThreePosition_Basic2($E$3,$E$5,$B$3:$C$3,$B$5:$C$5,B202,C202) ->  | I202: =ThreePosition_Basic2($E$3,$E$5,$B$3:$C$3,$B$5:$C$5,B202,D202) ->  | N202: =Burmester($B$3:$C$3,$B$4:$C$4,$B$6:$C$6,$E$3,$E$4,$E$6,B202) ->  | P202: =ThreePosition_Basic2($E$3,$E$6,$B$3:$C$3,$B$6:$C$6,B202,N202) ->  | T202: =ThreePosition_Basic2($E$3,$E$6,$B$3:$C$3,$B$6:$C$6,B202,O202) -> 
A203: 94 | B203: 1.640609497 | C203: =Burmester($B$3:$C$3,$B$4:$C$4,$B$5:$C$5,$E$3,$E$4,$E$5,B203) ->  | E203: =ThreePosition_Basic2($E$3,$E$5,$B$3:$C$3,$B$5:$C$5,B203,C203) ->  | I203: =ThreePosition_Basic2($E$3,$E$5,$B$3:$C$3,$B$5:$C$5,B203,D203) ->  | N203: =Burmester($B$3:$C$3,$B$4:$C$4,$B$6:$C$6,$E$3,$E$4,$E$6,B203) ->  | P203: =ThreePosition_Basic2($E$3,$E$6,$B$3:$C$3,$B$6:$C$6,B203,N203) ->  | T203: =ThreePosition_Basic2($E$3,$E$6,$B$3:$C$3,$B$6:$C$6,B203,O203) -> 
... 532 more rows
